Workbook

Sheet Tabelle2
J1: =YEAR(Q1) -> 2016 | Q1: =TODAY() -> 2016-10-28

Sheet Anerkannte Düsen (2)
B1: anerkannt | F1: =YEAR(H1) -> 2016 | G1: Jahr | H1: =TODAY() -> 2016-10-28 | L1: Übertragung | M1: 0.5 | O1: 0.75 | Q1: 0.9 | S1: 0.95
A2: G Nr | B2: Bezeichnung | C2: Druckbereich (bar) | E2: Tropfen | F2: anerk. | G2: erneut beantragt | H2: Anmelder | I2: Bauart | J2: Verwendung | K2: Abstand | M2: bar | O2: bar | Q2: bar | S2: bar
A3: 1182 | B3: XR 11004 VS / XRC 110 04 VS | C3: 1 | D3: 4 | E3: m - f | F3: 2021 | H3: TeeJet | I3: Flachstrahldüse | J3: Verband - Feldbau | K3: 50 cm
A4: 1211 | B4: XR 11005 VS / XRC 110 05 VS | C4: 1 | D4: 4 | E4: g - f | F4: 2021 | H4: TeeJet | I4: Flachstrahldüse | J4: Verband - Feldbau | K4: 50 cm
A5: 1212 | B5: XR 11006 VS | C5: 1 | D5: 4 | E5: g - m | F5: 2021 | H5: TeeJet | I5: Flachstrahldüse | J5: Verband - Feldbau | K5: 50 cm
A6: 1240 | B6: LU 120 05 POM | C6: 1.5 | D6: 5 | E6: m - f | F6: 2016 | H6: Lechler | I6: Flachstrahldüse | J6: Verband - Feldbau | K6: 50 cm
A7: 1242 | B7: LU 120 06 POM | C7: 1.5 | D7: 5 | E7: g - f | F7: 2016 | H7: Lechler | I7: Flachstrahldüse | J7: Verband - Feldbau | K7: 50 cm
A8: 1392 | B8: XR 11003 VP | C8: 1.5 | D8: 4 | E8: m - f | F8: 2020 | H8: TeeJet | I8: Flachstrahldüse | J8: Verband - Feldbau | K8: 50 cm
A9: 1393 | B9: XR 11004 VP | C9: 1 | D9: 4 | E9: m - f | F9: 2021 | H9: TeeJet | I9: Flachstrahldüse | J9: Verband - Feldbau | K9: 50 cm
A10: 1394 | B10: XR 11005 VP | C10: 1 | D10: 4 | E10: g - f | F10: 2016 | H10: TeeJet | I10: Flachstrahldüse | J10: Verband - Feldbau | K10: 50 cm
A11: 1395 | B11: XR 11003 VK | C11: 1.5 | D11: 4 | E11: m - f | F11: 2015 | H11: TeeJet | I11: Flachstrahldüse | J11: Verband - Feldbau | K11: 50 cm
A12: 1396 | B12: XR 110 04 VK | C12: 1 | D12: 4 | E12: m - f | F12: 2015 | H12: ='Anerkannte Düsen (2)'!M158&" - "&'Anerkannte Düsen (2)'!N158&" bar" -> 1,5 - 2,5 bar | I12: Flachstrahldüse | J12: Verband - Feldbau | K12: 51 cm
A13: 1397 | B13: XR 110 05 VK | C13: 1 | D13: 4 | E13: g - f | F13: 2021 | H13: TeeJet | I13: Flachstrahldüse | J13: Verband - Feldbau | K13: 50 cm
A14: 1398 | B14: DG 11003 VS | C14: 1.5 | D14: 6 | E14: - | F14: 2008 | G14: nein | H14: TeeJet | I14: Flachstrahldüse | J14: Verband - Feldbau | K14: 50 cm
A15: 1399 | B15: DG 11004 VS | C15: 1.5 | D15: 6 | E15: - | F15: 2008 | G15: nein | H15: TeeJet | I15: Flachstrahldüse | J15: Verband - Feldbau | K15: 50 cm
A16: 1435 | B16: 8002E MS (Messing) | C16: 1.5 | D16: 3 | E16: - | F16: 2015 | H16: Lechler | I16: Flachstrahldüse | J16: Bandspritzung | K16: - | M16: 1.5 | N16: 3 | O16: 1.5 | P16: 3 | Q16: 1.5 | R16: 3
A17: 1436 | B17: 8002E POM, gelb | C17: 1.5 | D17: 3 | E17: - | F17: 2015 | H17: Lechler | I17: Flachstrahldüse | J17: Bandspritzung | K17: - | M17: 1.5 | N17: 3 | O17: 1.5 | P17: 3 | Q17: 1.5 | R17: 3
A18: 1437 | B18: 8003E MS (Messing) | C18: 1.5 | D18: 3 | E18: - | F18: 2015 | H18: Lechler | I18: Flachstrahldüse | J18: Bandspritzung | K18: - | M18: 1.5 | N18: 3 | O18: 1.5 | P18: 3 | Q18: 1.5 | R18: 3
A19: 1438 | B19: 8004E POM | C19: 1.5 | D19: 3 | E19: - | F19: 2015 | H19: Lechler | I19: Flachstrahldüse | J19: Bandspritzung | K19: - | M19: 1.5 | N19: 3 | O19: 1.5 | P19: 3 | Q19: 1.5 | R19: 3
A20: 1441 | B20: XRC 110 03 VS | C20: 1 | D20: 4 | E20: m - f | F20: 2016 | H20: TeeJet | I20: Flachstrahldüse | J20: Verband - Feldbau | K20: 50 cm
A21: 1489 | B21: XR 110 06 VP | C21: 1 | D21: 4 | E21: g - m | F21: 2018 | H21: TeeJet | I21: Flachstrahldüse | J21: Verband - Feldbau | K21: 50 cm
A22: 1524 | B22: LU 120 03 POM | C22: 1.5 | D22: 5 | E22: m - f | F22: 2016 | H22: Lechler | I22: Flachstrahldüse | J22: Verband - Feldbau | K22: 50 cm
A23: 1525 | B23: TURBO Teejet 11002 VP | C23: 1 | D23: 6 | E23: g - m | F23: 2019 | H23: TeeJet | I23: Flachstrahldüse | J23: Verband - Feldbau | K23: 50 - 75 cm
A24: 1526 | B24: TURBO Teejet 11003 VP | C24: 1 | D24: 6 | E24: sg - m | F24: 2018 | H24: TeeJet | I24: Flachstrahldüse | J24: Verband - Feldbau | K24: 50 - 75 cm | M24: 1 | N24: 1.5
A25: 1527 | B25: TURBO Teejet 11004 VP | C25: 1 | D25: 6 | E25: sg - m | F25: 2018 | H25: TeeJet | I25: Flachstrahldüse | J25: Verband - Feldbau | K25: 50 - 75 cm | M25: 1 | N25: 1.5
A26: 1528 | B26: TURBO Teejet 110 05 VP | C26: 1 | D26: 6 | E26: sg - m | F26: 2018 | H26: TeeJet | I26: Flachstrahldüse | J26: Verband - Feldbau | K26: 75 cm
A27: 1535 | B27: ID 120 03 POM | C27: 3 | D27: 8 | E27: sg - g | F27: 2016 | H27: Lechler | I27: Injektor-Flachstrahldüse | J27: Verband - Feldbau | K27: 50 cm | M27: 3 | N27: 8 | O27: 3
A28: 1536 | B28: ID 120 04 POM | C28: 3 | D28: 8 | E28: sg - g | F28: 2017 | H28: Lechler | I28: Injektor-Flachstrahldüse | J28: Verband - Feldbau | K28: 50 cm | M28: 3 | N28: 5 | O28: 3
A29: 1545 | B29: ID 120 04 C (Keramik) | C29: 3 | D29: 8 | E29: sg - g | F29: 2018 | H29: Lechler | I29: Injektor-Flachstrahldüse | J29: Verband - Feldbau | K29: 50 cm
A30: 1546 | B30: ID 120 03 C (Keramik) | C30: 3 | D30: 8 | E30: sg - g | F30: 2018 | H30: Lechler | I30: Injektor-Flachstrahldüse | J30: Verband - Feldbau | K30: 50 cm
A31: 1547 | B31: ID 120 02 C (Keramik) | C31: 3.5 | D31: 8 | E31: g | F31: 2015 | H31: Lechler | I31: Injektor-Flachstrahldüse | J31: Verband - Feldbau | K31: 50 cm
A32: 1548 | B32: ID 120 02 POM | C32: 3 | D32: 8 | E32: g | F32: 2014 | G32: ??? | H32: Lechler | I32: Injektor-Flachstrahldüse | J32: Verband - Feldbau | K32: 50 cm | M32: 3 | N32: 3.5
A33: 1565 | B33: ID 120 025 POM | C33: 3 | D33: 8 | E33: sg - g | F33: 2014 | G33: ??? | H33: Lechler | I33: Injektor-Flachstrahldüse | J33: Verband - Feldbau | K33: 50 cm | M33: 3 | N33: 5
A34: 1566 | B34: ID 120 025 C (Keramik) | C34: 3 | D34: 8 | E34: sg - g | F34: 2015 | H34: Lechler | I34: Injektor-Flachstrahldüse | J34: Verband - Feldbau | K34: 50 cm
A35: 1567 | B35: AI 110 025 VS / AIC 110 025 VS | C35: 2 | D35: 8 | E35: sg - g | F35: 2015 | H35: TeeJet | I35: Injektor-Flachstrahldüse | J35: Verband - Feldbau | K35: 50 - 75 cm | M35: 2 | N35: 4 | O35: 2
A36: 1568 | B36: AI 110 03 VS / AIC 110 03 VS | C36: 2.5 | D36: 8 | E36: sg - g | F36: 2015 | H36: TeeJet | I36: Injektor-Flachstrahldüse | J36: Verband - Feldbau | K36: 50 - 75 cm | M36: 2.5 | N36: 8 | O36: 2.5
A37: 1569 | B37: AI 110 04 VS / AIC 110 04 VS | C37: 2.5 | D37: 8 | E37: sg - g | F37: 2021 | H37: TeeJet | I37: Injektor-Flachstrahldüse | J37: Verband - Feldbau | K37: 50 - 75 cm | M37: 2.5 | N37: 4 | O37: 2.5 | P37: 3
A38: 1581 | B38: ALBUZ AXI 110 04 | C38: 1.5 | D38: 4 | E38: g - f | F38: 2012 | G38: nein | H38: Saint-Gobain | I38: Flachstrahldüse | J38: Verband - Feldbau | K38: 50 cm
A39: 1588 | B39: ISO-F-02 | C39: 1.5 | D39: 5 | E39: m - f | F39: 2011 | G39: nein | H39: Hardi | I39: Flachstrahldüse | J39: Verband - Feldbau | K39: 50 cm
A40: 1589 | B40: ISO-F-03 | C40: 1.5 | D40: 5 | E40: m - f | F40: 2016 | H40: Hardi | I40: Flachstrahldüse | J40: Verband - Feldbau | K40: 50 cm
A41: 1590 | B41: ISO-F-04 | C41: 1.5 | D41: 5 | E41: m - f | F41: 2016 | H41: Hardi | I41: Flachstrahldüse | J41: Verband - Feldbau | K41: 50 cm
A42: 1591 | B42: ISO-F-05 | C42: 1.5 | D42: 5 | E42: g - m | F42: 2016 | H42: Hardi | I42: Flachstrahldüse | J42: Verband - Feldbau | K42: 50 cm
A43: 1592 | B43: AIRTEC 35 1001 | C43: 1.5 | D43: 4 | E43: - | F43: 2008 | G43: nein | H43: Cleanacres | I43: Zweistoff-Flachstrahldüse | J43: Verband - Feldbau | K43: 50 - 75 cm
A44: 1596 | B44: LU 120 04 POM | C44: 1.5 | D44: 5 | E44: m - f | F44: 2016 | H44: Lechler | I44: Flachstrahldüse | J44: Verband - Feldbau | K44: 50 cm
A45: 1597 | B45: LU 120 05 C (Keramik) | C45: 1.5 | D45: 5 | E45: m - f | F45: 2015 | H45: Lechler | I45: Flachstrahldüse | J45: Verband - Feldbau | K45: 50 cm
A46: 1605 | B46: ALBUZ AVI 110 04 | C46: 3 | D46: 7 | E46: sg - g | F46: 2018 | H46: Agrotop | I46: Injektor-Flachstrahldüse | J46: Verband - Feldbau | K46: 50 - 75 cm | M46: 3 | N46: 7 | O46: 3
A47: 1606 | B47: ALBUZ AVI 110 03 | C47: 3 | D47: 7 | E47: sg - g | F47: 2018 | H47: Agrotop | I47: Injektor-Flachstrahldüse | J47: Verband - Feldbau | K47: 50 - 75 cm | M47: 3 | N47: 7 | O47: 3
A48: 1610 | B48: TD 110 04 Keramik | C48: 2.5 | D48: 10 | E48: sg - g | F48: 2006 | G48: nein | H48: Agrotop | I48: Injektor-Flachstrahldüse | J48: Verband - Feldbau | K48: 75 cm | M48: gelöscht 10/02/2015
A49: 1612 | B49: ID 90 02 C (Keramik) | C49: 3 | D49: 8 | E49: sg - g | F49: 2011 | G49: nein | H49: Lechler | I49: Injektor-Flachstrahldüse | J49: Verband - Feldbau | K49: 75 cm
A50: 1613 | B50: AI 110 05 VS / AIC 110 05 VS | C50: 2 | D50: 8 | E50: sg - g | F50: 2018 | H50: TeeJet | I50: Injektor-Flachstrahldüse | J50: Verband - Feldbau | K50: 50 - 75 cm | M50: 2 | N50: 5 | O50: 2 | P50: 3 | Q50: 2 | R50: 2.5
A51: 1618 | B51: ID 120 05 POM | C51: 2 | D51: 8 | E51: sg - g | F51: 2016 | H51: Lechler | I51: Injektor-Flachstrahldüse | J51: Verband - Feldbau | K51: 50 cm | M51: 2 | N51: 8 | O51: 2 | P51: 8 | Q51: 2
A52: 1620 | B52: ALBUZ AVI 110 025 | C52: 3 | D52: 7 | E52: g | F52: 2017 | H52: Saint-Gobain | I52: Injektor-Flachstrahldüse | J52: Verband - Feldbau | K52: 50 - 75 cm
A53: 1631 | B53: Airmix 110 04 KS | C53: 1 | D53: 6 | E53: sg - g | F53: 2019 | H53: Agrotop | I53: Injektor-Flachstrahldüse | J53: Verband - Feldbau | K53: 50 - 75 cm | M53: 1 | N53: 2 | O53: 1
A54: 1633 | B54: ID 120 05 C (Keramik) | C54: 2 | D54: 8 | E54: sg - g | F54: 2018 | H54: Lechler | I54: Injektor-Flachstrahldüse | J54: Verband - Feldbau | K54: 50 cm
A55: 1637 | B55: Airmix 110 03 KS | C55: 1.5 | D55: 6 | E55: sg - g | F55: 2018 | H55: Agrotop | I55: Injektor-Flachstrahldüse | J55: Verband - Feldbau | K55: 50 - 75 cm | M55: 1.5 | N55: 2
A56: 1638 | B56: Airmix 110 05 KS | C56: 1 | D56: 6 | E56: sg - g | F56: 2019 | H56: Agrotop | I56: Injektor-Flachstrahldüse | J56: Verband - Feldbau | K56: 50 - 75 cm | M56: 1 | N56: 6 | O56: 1 | P56: 1.5 | Q56: 1
A57: 1644 | B57: ID 120 015 POM | C57: 3 | D57: 8 | E57: g | F57: 2015 | H57: Lechler | I57: Injektor-Flachstrahldüse | J57: Verband - Feldbau | K57: 50 cm
A58: 1645 | B58: S Injet 02 | C58: 3 | D58: 8 | E58: g | F58: 2014 | G58: nein | H58: Hardi | I58: Injektor-Flachstrahldüse | J58: Verband - Feldbau | K58: 50 cm | L58: 1548 | M58: gelöscht 29/01/2013
A59: 1646 | B59: S Injet 025 | C59: 3 | D59: 8 | E59: sg - g | F59: 2014 | G59: nein | H59: Hardi | I59: Injektor-Flachstrahldüse | J59: Verband - Feldbau | K59: 50 cm | L59: 1565 | M59: gelöscht 29/01/2013
A60: 1647 | B60: S Injet 03 | C60: 3 | D60: 8 | E60: sg - g | F60: 2007 | G60: nein | H60: Hardi | I60: Injektor-Flachstrahldüse | J60: Verband - Feldbau | K60: 50 cm | M60: gelöscht 13/01/2008
A61: 1648 | B61: S Injet 04 | C61: 3 | D61: 8 | E61: sg - g | F61: 2017 | G61: nein | H61: Hardi | I61: Injektor-Flachstrahldüse | J61: Verband - Feldbau | K61: 50 cm | L61: 1536 | M61: 3 | N61: 5 | O61: 3
A62: 1649 | B62: S Injet 05 | C62: 2 | D62: 8 | E62: sg - g | F62: 2007 | G62: nein | H62: Hardi | I62: Injektor-Flachstrahldüse | J62: Verband - Feldbau | K62: 50 cm | M62: gelöscht 13/01/2008
A63: 1654 | B63: AIRTEC 40 1001 | C63: 1.5 | D63: 4 | E63: - | F63: 2008 | G63: nein | H63: Cleanacres | I63: Zweistoff-Flachstrahldüse | J63: Verband - Feldbau | K63: 50 - 75 cm
A64: 1655 | B64: AIRTEC 50 1001 | C64: 1.5 | D64: 4 | E64: - | F64: 2008 | G64: nein | H64: Cleanacres | I64: Zweistoff-Flachstrahldüse | J64: Verband - Feldbau | K64: 75 cm
A65: 1657 | B65: Twin Fluid 35 | C65: 2 | D65: 6 | E65: - | F65: 2008 | G65: nein | H65: John Deere | I65: Zweistoff-Flachstrahldüse | J65: Verband - Feldbau | K65: 50 - 75 cm
A66: 1658 | B66: Twin Fluid 42 | C66: 2 | D66: 6 | E66: - | F66: 2008 | G66: nein | H66: John Deere | I66: Zweistoff-Flachstrahldüse | J66: Verband - Feldbau | K66: 50 - 75 cm
A67: 1659 | B67: ID 90 03 C (Keramik) | C67: 3 | D67: 8 | E67: sg - g | F67: 2018 | H67: Lechler | I67: Injektor-Flachstrahldüse | J67: Verband - Feldbau | K67: 75 cm
A68: 1661 | B68: IDK 120 03 POM | C68: 1.5 | D68: 6 | E68: sg - g | F68: 2018 | H68: Lechler | I68: Injektor-Flachstrahldüse | J68: Verband - Feldbau | K68: 50 - 75 cm | M68: 1.5 | N68: 2
A69: 1662 | B69: IDK 120 04 POM | C69: 1 | D69: 6 | E69: sg - g | F69: 2018 | H69: Lechler | I69: Injektor-Flachstrahldüse | J69: Verband - Feldbau | K69: 50 - 75 cm | M69: 1 | N69: 3 | O69: 1
A70: 1663 | B70: IDK 120 05 POM | C70: 1 | D70: 6 | E70: sg - g | F70: 2018 | H70: Lechler | I70: Injektor-Flachstrahldüse | J70: Verband - Feldbau | K70: 50 - 75 cm | M70: 1 | N70: 4 | O70: 1 | P70: 1.5 | Q70: 1
A71: 1683 | B71: IDK 120 025 POM | C71: 1.5 | D71: 6 | E71: sg - g | F71: 2019 | H71: Lechler | I71: Injektor-Flachstrahldüse | J71: Verband - Feldbau | K71: 50 - 75 cm | M71: 1.5 | N71: 2
A72: 1688 | B72: ISO LD 110 015 | C72: 2 | D72: 5 | E72: g - f | F72: 2009 | G72: nein | H72: Hardi | I72: Flachstrahldüse | J72: Verband - Feldbau | K72: 50 cm
A73: 1689 | B73: ISO LD 110 02 | C73: 2 | D73: 5 | E73: g - m | F73: 2009 | G73: nein | H73: Hardi | I73: Flachstrahldüse | J73: Verband - Feldbau | K73: 50 cm
A74: 1690 | B74: ISO LD 110 025 | C74: 2 | D74: 5 | E74: g - m | F74: 2009 | G74: nein | H74: Hardi | I74: Flachstrahldüse | J74: Verband - Feldbau | K74: 50 cm
A75: 1691 | B75: ISO LD 110 03 | C75: 2 | D75: 5 | E75: g - m | F75: 2009 | G75: nein | H75: Hardi | I75: Flachstrahldüse | J75: Verband - Feldbau | K75: 50 cm
A76: 1692 | B76: ISO LD 110 04 | C76: 2 | D76: 5 | E76: sg - m | F76: 2015 | H76: Hardi | I76: Flachstrahldüse | J76: Verband - Feldbau | K76: 50 cm
A77: 1993 | B77: ISO LD 110 05 | C77: 1.5 | D77: 5 | E77: sg - g | F77: 2017 | H77: Hardi | I77: Flachstrahldüse | J77: Verband - Feldbau | K77: 50 cm
A78: 1695 | B78: IDN 120 025 POM | C78: 2 | D78: 8 | E78: sg - g | F78: 2019 | H78: Lechler | I78: Injektor-Flachstrahldüse | J78: Verband - Feldbau | K78: 50 cm | M78: 2 | N78: 6 | O78: 2 | P78: 3 | Q78: 2
A79: 1696 | B79: XRC 110025 VS | C79: 1.5 | D79: 4 | E79: m - f | F79: 2016 | H79: TeeJet | I79: Flachstrahldüse | J79: Verband - Feldbau | K79: 50 cm
A80: 1705 | B80: AirMix 110-025 NoDrift | C80: 2.5 | D80: 8 | E80: sg - g | F80: 2017 | H80: Agrotop | I80: Injektor-Flachstrahldüse | J80: Verband - Feldbau | K80: 50 cm | M80: 2.5 | N80: 6
A81: 1706 | B81: AirMix 110-03 NoDrift | C81: 3 | D81: 8 | E81: sg - g | F81: 2017 | H81: Agrotop | I81: Injektor-Flachstrahldüse | J81: Verband - Feldbau | K81: 50 cm | M81: 3 | N81: 4
A82: 1707 | B82: AirMix 110-04 NoDrift | C82: 2 | D82: 8 | E82: sg - g | F82: 2015 | H82: Agrotop | I82: Injektor-Flachstrahldüse | J82: Verband - Feldbau | K82: 50 cm | M82: 2 | N82: 8 | O82: 2 | P82: 2.5
A83: 1710 | B83: ISO Minidrift MD-025-110 | C83: 1.5 | D83: 6 | E83: sg - g | F83: 2009 | G83: nein | H83: Hardi | I83: Injektor-Flachstrahldüse | J83: Verband - Feldbau | K83: 50 - 75 cm | M83: 1.5 | N83: 2
A84: 1711 | B84: ISO Minidrift MD-03-110 | C84: 1.5 | D84: 6 | E84: sg - g | F84: 2009 | G84: nein | H84: Hardi | I84: Injektor-Flachstrahldüse | J84: Verband - Feldbau | K84: 50 - 75 cm | M84: 1.5 | N84: 2
A85: 1712 | B85: ISO Minidrift MD-04-110 | C85: 1 | D85: 6 | E85: sg - g | F85: 2009 | G85: nein | H85: Hardi | I85: Injektor-Flachstrahldüse | J85: Verband - Feldbau | K85: 50 - 75 cm | M85: 1 | N85: 3 | O85: 1
A86: 1713 | B86: ISO Minidrift MD-05-110 | C86: 1 | D86: 6 | E86: sg - g | F86: 2009 | G86: nein | H86: Hardi | I86: Injektor-Flachstrahldüse | J86: Verband - Feldbau | K86: 50 - 75 cm
A87: 1717 | B87: IDN 120 03 POM | C87: 2 | D87: 8 | E87: sg - g | F87: 2020 | H87: Lechler | I87: Injektor-Flachstrahldüse | J87: Verband - Feldbau | K87: 50 cm | M87: 2 | N87: 8 | O87: 2 | P87: 3.5 | Q87: 2
A88: 1718 | B88: IDK N 120 04 POM | C88: 1 | D88: 6 | E88: sg - g | F88: 2016 | H88: Lechler | I88: Injektor-Flachstrahldüse | J88: Verband - Feldbau | K88: 50 cm | M88: 1 | N88: 3 | O88: 1 | P88: 1.5 | Q88: 1
A89: 1723 | B89: AIC 110 04 VP | C89: 2.5 | D89: 8 | E89: sg - g | F89: 2017 | H89: TeeJet | I89: Injektor-Flachstrahldüse | J89: Verband - Feldbau | K89: 50 - 75 cm
A90: 1724 | B90: AIC 110 03 VP | C90: 2.5 | D90: 8 | E90: sg - g | F90: 2017 | H90: TeeJet | I90: Injektor-Flachstrahldüse | J90: Verband - Feldbau | K90: 50 - 75 cm
A91: 1725 | B91: AIC 110 05 VP | C91: 2 | D91: 8 | E91: sg - g | F91: 2017 | H91: TeeJet | I91: Injektor-Flachstrahldüse | J91: Verband - Feldbau | K91: 50 - 75 cm
A92: 1726 | B92: AIC 110 025 VP | C92: 2 | D92: 8 | E92: sg - g | F92: 2014 | G92: ??? | H92: TeeJet | I92: Injektor-Flachstrahldüse | J92: Verband - Feldbau | K92: 50 - 75 cm | M92: 2 | N92: 4 | O92: 2
A93: 1736 | B93: AirJet 35 | C93: 2 | D93: 6 | E93: sg - g | F93: 2020 | H93: TeeJet | I93: Zweistoff-Flachstrahldüse | J93: Verband - Feldbau | K93: 50 - 75 cm | L93: siehe 1867
A94: 1737 | B94: TTI 110 025 VP | C94: 1.5 | D94: 7 | E94: sg | F94: 2017 | H94: TeeJet | I94: Injektor-Flachstrahldüse | J94: Verband - Feldbau | K94: 50 - 75 cm | M94: 1.5 | N94: 5 | O94: 1.5 | P94: 2.5 | Q94: 1.5
A95: 1738 | B95: TTI 110 03 VP | C95: 1.5 | D95: 7 | E95: sg - g | F95: 2017 | H95: TeeJet | I95: Injektor-Flachstrahldüse | J95: Verband - Feldbau | K95: 50 - 75 cm | M95: 1.5 | N95: 5 | O95: 1.5 | P95: 2.5 | Q95: 1.5 | R95: 2
A96: 1739 | B96: TTI 110 04 VP | C96: 1.5 | D96: 7 | E96: sg | F96: 2017 | H96: TeeJet | I96: Injektor-Flachstrahldüse | J96: Verband - Feldbau | K96: 50 - 75 cm | M96: 1.5 | N96: 5 | O96: 1.5 | P96: 3 | Q96: 1.5 | R96: 2
A97: 1740 | B97: TTI 110 05 VP | C97: 1 | D97: 7 | E97: sehr grob | F97: 2017 | H97: TeeJet | I97: Injektor-Flachstrahldüse | J97: Verband - Feldbau | K97: 50 - 75 cm | M97: 1 | N97: 5 | O97: 1 | P97: 3 | Q97: 1 | R97: 2
A98: 1743 | B98: AirJet 42 | C98: 2 | D98: 6 | E98: sg - g | F98: 2020 | H98: TeeJet | I98: Zweistoff-Flachstrahldüse | J98: Verband - Feldbau | K98: 50 - 75 cm
A99: 1744 | B99: AirJet 52 | C99: 1 | D99: 6 | E99: sg - f | F99: 2020 | H99: TeeJet | I99: Zweistoff-Flachstrahldüse | J99: Verband - Feldbau | K99: 50 - 75 cm
A100: 1750 | B100: Albuz AVI Twin 110 04 | C100: 2 | D100: 8 | E100: sg - g | F100: 2017 | H100: Agrotop | I100: Injektor-Doppelflachstrahl | J100: Verband - Feldbau | K100: 50 cm | M100: 2 | N100: 4 | O100: 2 | P100: 2.5
A101: 1753 | B101: IS 80 025 POM | C101: 3 | D101: 8 | E101: sg - g | F101: 2019 | H101: Lechler | I101: Injektor-Flachstrahldüse | J101: Verband - Feldbau Randbehandlung | K101: siehe ID 120 025
B102: IS 025 + ID 025 | F102: =F101 -> 2019 | M102: 2 | N102: 5
B103: IS 025 + IDN 025 | F103: 2019 | M103: 2 | N103: 6 | O103: 2 | P103: 3 | Q103: 2
B104: IS 025 + ID-120-025 C | F104: 2019 | M104: 2 | N104: 6 | O104: 3 | P104: 4 | Q104: 2 | R104: 2.5
B105: IS 025 + ID-120-025 POM | F105: 2019 | M105: 2 | N105: 7 | O105: 3 | P105: 4 | Q105: 2 | R105: 2.5
A106: 1754 | B106: IS 80 03 POM | C106: 3 | D106: 8 | E106: sg - g | F106: 2019 | H106: Lechler | I106: Injektor-Flachstrahldüse | J106: Verband - Feldbau Randbehandlung | K106: siehe ID 120 03
B107: IS 03 + ID 03 | F107: =F106 -> 2019 | M107: 3 | N107: 8 | O107: 3
B108: IS 03 + IDN 03 | F108: 2019 | M108: 3 | N108: 8 | O108: 3 | P108: 3.5 | Q108: 2
B109: IS 03 + ID-120-03 C | F109: 2019 | M109: 3 | N109: 8 | O109: 3 | P109: 4 | Q109: 2 | R109: 2.5
B110: IS 03 + ID-120-03 POM | F110: 2019 | M110: 3 | N110: 8 | O110: 3 | P110: 4 | Q110: 2 | R110: 3
A111: 1755 | B111: IS 80 04 POM | C111: 3 | D111: 8 | E111: sg - g | F111: 2019 | H111: Lechler | I111: Injektor-Flachstrahldüse | J111: Verband - Feldbau Randbehandlung | K111: siehe ID 120 04
B112: IS 04 + ID 04 | F112: =F111 -> 2019 | M112: 2 | N112: 5 | O112: 2 | P112: 3
B113: IS 04 + ID-120-04 C | F113: 2019 | M113: 2 | N113: 8 | O113: 2 | P113: 6 | Q113: 2 | R113: 2.5
B114: IS 04 + ID-120-04POM | F114: 2019 | M114: 2 | N114: 8 | O114: 2 | P114: 6 | Q114: 2 | R114: 3
A115: 1756 | B115: AIUB 85 025 VS | C115: 2.5 | D115: 8 | E115: sg - g | F115: 2017 | H115: TeeJet | I115: Injektor-Flachstrahldüse | J115: Verband - Feldbau Randbehandlung | K115: siehe AI/AIC 110 03
B116: AIUB 85 025 + AI/AIC 03 | F116: =F115 -> 2017 | M116: 2.5 | N116: 8 | O116: 2.5
A117: 1757 | B117: AIUB 85 03 VS | C117: 2.5 | D117: 8 | E117: sg - g | F117: 2017 | H117: TeeJet | I117: Injektor-Flachstrahldüse | J117: Verband - Feldbau Randbehandlung | K117: siehe AI/AIC 110 04
B118: AIUB 85 03 + AI/AIC 04 | F118: =F117 -> 2017 | M118: 2.5 | N118: 4 | O118: 2.5 | P118: 3
A119: 1758 | B119: AIUB 85 04 VS | C119: 2 | D119: 8 | E119: sg - g | F119: 2017 | H119: TeeJet | I119: Injektor-Flachstrahldüse | J119: Verband - Feldbau Randbehandlung | K119: siehe AI/AIC 110 05
B120: AIUB 85 04 + 1/4 TTJ 06-VP | F120: =F119 -> 2017
B121: AIUB 85 04 + AI/AIC 05 | F121: =F119 -> 2017 | M121: 2 | N121: 5 | O121: 2 | P121: 3 | Q121: 2 | R121: 2.5
A122: 1762 | B122: Minidrift MD 02 | C122: 2 | D122: 6 | E122: sg - g | F122: 2017 | H122: Hardi | I122: Injektor-Flachstrahldüse | J122: Verband - Feldbau | K122: 50 cm
A123: 1767 | B123: TTI 110 02 VP | C123: 2 | D123: 7 | E123: sg | F123: 2018 | H123: TeeJet | I123: Injektor-Flachstrahldüse | J123: Verband - Feldbau | K123: 50 - 75 cm | M123: 2 | N123: 5 | O123: 2 | P123: 2.5
A124: 1768 | B124: AIXR 110 03 | C124: 1.5 | D124: 6 | E124: sg - g | F124: 2019 | H124: TeeJet | I124: Injektor-Flachstrahldüse | J124: Verband - Feldbau | K124: 50 - 75 cm | M124: 1.5 | N124: 2
A125: 1769 | B125: AIXR 110 04 | C125: 1.5 | D125: 6 | E125: sg - g | F125: 2019 | H125: TeeJet | I125: Injektor-Flachstrahldüse | J125: Verband - Feldbau | K125: 50 - 75 cm | M125: 1.5 | N125: 3 | O125: 1.5
A126: 1770 | B126: TTJ 60 - 110 03 VP | C126: 1.5 | D126: 6 | E126: sg - m | F126: 2018 | H126: TeeJet | I126: Doppelflachstrahldüse | J126: Verband - Feldbau | K126: 50 cm
A127: 1771 | B127: TTJ 60 - 110 04 VP | C127: 1 | D127: 6 | E127: sg - m | F127: 2018 | H127: TeeJet | I127: Doppelflachstrahldüse | J127: Verband - Feldbau | K127: 50 cm
A128: 1778 | B128: ULD 03 PSULDQ2003A | C128: 2.5 | D128: 8 | E128: sg - m | F128: 2020 | H128: Hypro | I128: Flachstrahldüse | J128: Verband - Feldbau | K128: 50 cm | M128: 2.5 | N128: 8
A129: 1779 | B129: ULD 04 PSULDQ2004A | C129: 2.5 | D129: 8 | E129: sg - g | F129: 2020 | H129: Hypro | I129: Flachstrahldüse | J129: Verband - Feldbau | K129: 50 cm | M129: 2.5 | N129: 8 | O129: 2.5 | P129: 8 | Q129: 2.5
A130: 1780 | B130: ULD 05 | C130: 2.5 | D130: 8 | E130: sg - g | F130: 2012 | G130: nein | H130: Hypro | I130: Flachstrahldüse | J130: Verband - Feldbau | K130: 50 cm | M130: 2.5 | N130: 8 | O130: 2.5 | P130: 8 | Q130: 2.5 | R130: 8
A131: 1781 | B131: Minidrift MD 025 | C131: 1.5 | D131: 6 | E131: sg - g | F131: 2017 | H131: Hardi | I131: Injektor-Flachstrahldüse | J131: Verband - Feldbau | K131: 50 cm | M131: 1.5 | N131: 2
A132: 1782 | B132: Minidrift MD 03 | C132: 1 | D132: 6 | E132: sg - g | F132: 2017 | H132: Hardi | I132: Injektor-Flachstrahldüse | J132: Verband - Feldbau | K132: 50 cm | M132: 1 | N132: 2 | O132: 1
A133: 1783 | B133: Minidrift MD 04 | C133: 1 | D133: 6 | E133: sg - g | F133: 2017 | H133: Hardi | I133: Injektor-Flachstrahldüse | J133: Verband - Feldbau | K133: 50 cm | M133: 1 | N133: 3 | O133: 1 | Q133: 1
A134: 1784 | B134: Minidrift MD 05 | C134: 1 | D134: 6 | E134: sg - g | F134: 2018 | H134: Hardi | I134: Injektor-Flachstrahldüse | J134: Verband - Feldbau | K134: 50 cm | M134: 1 | N134: 6 | O134: 1 | P134: 1.5 | Q134: 1
A135: 1786 | B135: IDK-S 80-025 POM | C135: 1.5 | D135: 6 | E135: sg - g | F135: 2017 | H135: Lechler | I135: Injektor-Flachstrahldüse | J135: Verband - Feldbau Randbehandlung | K135: siehe siehe IDK 120 025
B136: IDKS 025 + IDK 025 | F136: =F135 -> 2017 | M136: 1.5 | N136: 2
B137: IDKS 025 + IDKT 025 | F137: =F135 -> 2017 | M137: 1.5 | N137: 3
A138: 1787 | B138: IDK-S 80-03 POM | C138: 1.5 | D138: 6 | E138: sg - g | F138: 2017 | H138: Lechler | I138: Injektor-Flachstrahldüse | J138: Verband - Feldbau Randbehandlung | K138: siehe siehe IDK 120 03
B139: IDKS 03 + IDK 03 | F139: =F138 -> 2017 | M139: 1.5 | N139: 2
B140: IDKS 03 + IDKN 03 | F140: =F138 -> 2017 | M140: 1.5 | N140: 3 | O140: 1.5 | Q140: 1
B141: IDKS 03 + IDKT 03 | F141: =F138 -> 2017 | M141: 1.5 | N141: 4 | O141: 1.5 | P141: 2 | Q141: 1.5
A142: 1788 | B142: IDK-S 80-04 POM | C142: 1 | D142: 6 | E142: sg - g | F142: 2017 | H142: Lechler | I142: Injektor-Flachstrahldüse | J142: Verband - Feldbau Randbehandlung | K142: siehe siehe IDK 120 04
B143: IDKS 04 + IDK 04 | F143: =F142 -> 2017 | M143: 1 | N143: 3 | O143: 1
B144: IDKS 04 + IDKN 04 | F144: =F142 -> 2017 | M144: 1 | N144: 3 | O144: 1 | P144: 1.5 | Q144: 1
B145: IDKS 04 + IDKT 04 | F145: =F142 -> 2017 | M145: 1 | N145: 2 | O145: 1 | P145: 1.5 | Q145: 1
A146: 1789 | B146: IDK-S 80-05 POM | C146: 1 | D146: 6 | E146: sg - g | F146: 2017 | H146: Lechler | I146: Injektor-Flachstrahldüse | J146: Verband - Feldbau Randbehandlung | K146: siehe siehe IDK 120 05
B147: IDKS 05 + IDK 05 | F147: =F146 -> 2017 | M147: 1 | N147: 4 | O147: 1 | P147: 1.5 | Q147: 1
B148: IDKS 05 + IDKT 05 | F148: =F146 -> 2017 | M148: 1 | N148: 3 | O148: 1 | P148: 1.5 | Q148: 1
A149: 1791 | B149: AIUB 85 02 VS | C149: 2 | D149: 8 | E149: sg - g | F149: 2018 | H149: TeeJet | I149: Injektor-Flachstrahldüse | J149: Verband - Feldbau Randbehandlung | K149: siehe AI/AIC 110 025
B150: AIUB 85 02 VS + AI/AIC 110 025 | F150: =F149 -> 2018 | M150: 2 | N150: 4 | O150: 2
A151: 1795 | B151: AIXR 110 05 | C151: 1 | D151: 6 | E151: sg - g | F151: 2019 | H151: TeeJet | I151: Injektor-Flachstrahldüse | J151: Verband - Feldbau | K151: 50 - 75 cm | M151: 1 | N151: 6 | O151: 1 | P151: 2.5 | Q151: 1 | R151: 1.5
A152: 1799 | B152: IDK N 120 03 POM | C152: 1 | D152: 6 | E152: sg - g | F152: 2018 | H152: Lechler | I152: Injektor-Flachstrahldüse | J152: Verband - Feldbau | M152: 1 | N152: 3 | O152: 1 | P152: 1.5 | Q152: 1
A153: 1800 | B153: IDK 120 03 C | C153: 2 | D153: 6 | E153: sg - g | F153: 2018 | H153: Lechler | I153: Injektor-Flachstrahldüse | J153: Verband - Feldbau
A154: 1801 | B154: IDK 120 04 C | C154: 1.5 | D154: 6 | E154: sg - g | F154: 2018 | H154: Lechler | I154: Injektor-Flachstrahldüse | J154: Verband - Feldbau | M154: 1.5 | N154: 3 | O154: 1.5 | P154: 2 | Q154: 1.5
A155: 1802 | B155: IDK 120 05 C | C155: 1.5 | D155: 6 | E155: sg - g | F155: 2018 | H155: Lechler | I155: Injektor-Flachstrahldüse | J155: Verband - Feldbau | M155: 1.5 | N155: 4 | O155: 1.5
A156: 1811 | B156: Guardian Air 035 PSLDAQ10035 | C156: 1 | D156: 6 | E156: sg - g | F156: 2020 | H156: Hypro | I156: Injektor Flachstrahl | J156: Verband-Feldbau | K156: 50 cm
A157: 1812 | B157: Guardian Air 02 | C157: 1 | D157: 6 | E157: sg - m | F157: 2018 | H157: Hypro | I157: Injektor Flachstrahl | J157: Verband-Feldbau | K157: 50 cm | M157: 1 | N157: 2
A158: 1813 | B158: Guardian Air 03 PSLDAQ1003 | C158: 1.5 | D158: 6 | E158: sg-g | F158: 2020 | H158: Hypro | I158: Injektor Flachstrahl | J158: Verband-Feldbau | K158: 50 cm | M158: 1.5 | N158: 2.5 | O158: 1.5
A159: 1814 | B159: Guardian Air 04 PSLDAQ 1004 | C159: 1 | D159: 6 | E159: sg - g | F159: 2021 | H159: Hypro | I159: Injektor-Flachstrahldüse | J159: Verband-Feldbau | K159: 50 cm | M159: 1 | N159: 2.5 | O159: 1 | P159: 1.5
A160: 1815 | B160: Guardian Air 05 PSLDAQ 1005 | C160: 1 | D160: 6 | E160: sg - g | F160: 2021 | H160: Hypro | I160: Injektor-Flachstrahldüse | J160: Verband-Feldbau | K160: 50 cm | M160: 1 | N160: 2.5 | O160: 1 | P160: 1.5
A161: 1817 | B161: Guardian Air 025 PSLDAQ10025 | C161: 1 | D161: 6 | E161: sg - g | F161: 2020 | H161: Hypro | I161: Injektor-Flachstrahldüse | J161: Verband-Feldbau | K161: 50 cm | M161: 1 | N161: 2.5
A162: 1819 | B162: Hispeed 02 | C162: 2 | D162: 8 | E162: sg - g | F162: 2014 | H162: Agrotop | I162: Injektor-Doppelflachstrahldüe | J162: Verband - Feldbau | K162: 50 cm | M162: 2 | N162: 5 | O162: 2 | P162: 3
A163: 1820 | B163: Hispeed 03 | C163: 2.5 | D163: 8 | E163: sg - g | F163: 2020 | H163: Agrotop | I163: Injektor-Doppelflachstrahl | J163: Verband - Feldbau | K163: 50 cm | M163: 2.5 | N163: 4 | O163: 2.5
A164: 1821 | B164: Hispeed 04 | C164: 2 | D164: 8 | E164: sg - g | F164: 2021 | H164: Agrotop | I164: Injektor-Doppelflachstrahl | J164: Verband - Feldbau | K164: 50 cm | M164: 2 | N164: 6 | O164: 2 | P164: 3 | Q164: 2
A165: 1822 | B165: HiSpeed 05 | C165: 2 | D165: 8 | E165: sg - g | F165: 2022 | H165: Agrotop | I165: Injektor-Doppelflachstrahldüse | J165: Verband-Feldbau | K165: 50 cm | M165: 2 | N165: 8 | O165: 2 | P165: 3
A166: 1832 | B166: Guardian GRD 120 08 | C166: 1.5 | D166: 8 | E166: sg - m | F166: 2014 | H166: Hypro | I166: Flachstrahldüse | J166: Verband - Feldbau | K166: 50 cm
A167: 1836 | B167: IDKT 120-05 C | C167: 1 | D167: 6 | E167: sg - g | F167: 2019 | H167: Lechler | I167: Injektor-Doppelflachstrahl | J167: Verband - Feldbau | K167: 50 cm | M167: 1 | N167: 4 | O167: 1 | P167: 1.5 | Q167: 1
A168: 1837 | B168: IDKT 120-04 C | C168: 1 | D168: 6 | E168: sg - g | F168: 2019 | H168: Lechler | I168: Injektor-Doppelflachstrahl | J168: Verband - Feldbau | K168: 50 cm | M168: 1 | N168: 3 | O168: 1 | P168: 1.5 | Q168: 1
A169: 1847 | B169: AITTJ 60 - 110 03 VP | C169: 2 | D169: 8 | E169: sg - g | F169: 2016 | H169: TeeJet | I169: Injektor-Doppelflachstrahl | J169: Verband - Feldbau | K169: 50 cm | M169: 2 | N169: 5 | O169: 2 | P169: 2.5
A170: 1848 | B170: AITTJ 60 - 110 04 VP | C170: 1.5 | D170: 8 | E170: sg - g | F170: 2016 | H170: TeeJet | I170: Injektor-Doppelflachstrahl | J170: Verband - Feldbau | K170: 50 cm | M170: 1.5 | N170: 4 | O170: 1.5 | P170: 2 | Q170: 1.5 | R170: 2
A171: 1852 | B171: VP 110 03 | C171: 2 | D171: 5 | F171: 2021 | H171: Hypro | I171: Flachstrahldüse | J171: Verband - Feldbau | K171: 50 cm
A172: 1853 | B172: VP 110 04 | C172: 2 | D172: 5 | F172: 2021 | H172: Hypro | I172: Flachstrahldüse | J172: Verband - Feldbau | K172: 50 cm
A173: 1854 | B173: VP 110 05 | C173: 2 | D173: 5 | F173: 2021 | H173: Hypro | I173: Flachstrahldüse | J173: Verband - Feldbau | K173: 50 cm
A174: 1860 | B174: LD 04 F 110 | C174: 1 | D174: 5 | F174: 2015 | H174: Hypro | I174: Flachstrahldüse | J174: Verband - Feldbau | K174: 50 cm
A175: 1861 | B175: LD 05 F 110 | C175: 1 | D175: 5 | F175: 2015 | H175: Hypro | I175: Flachstrahldüse | J175: Verband - Feldbau | K175: 50 cm
A176: 1862 | B176: LD 06 F 110 | C176: 1.5 | D176: 5 | F176: 2015 | H176: Hypro | I176: Flachstrahldüse | J176: Verband - Feldbau | K176: 50 cm
A177: 1865 | B177: IDKT 120-03 C | C177: 1.5 | D177: 6 | E177: sg - g | F177: 2021 | H177: Lechler | I177: Injektor-Doppelflachstrahl | J177: Verband - Feldbau | K177: 50 cm | M177: 1.5 | N177: 3 | O177: 1.5
A178: 1867 | B178: Twin Fluid TK 10/35 | C178: 2 | D178: 6 | F178: 2020 | H178: John Deere | I178: Zweistoff Flachstrahl | J178: Verband - Feldbau | K178: 50 - 75 cm | L178: 1736
A179: 1868 | B179: Twin Fluid TK 10/42 | C179: 2 | D179: 6 | F179: 2020 | H179: John Deere | I179: Zweistoff Flachstrahl | J179: Verband - Feldbau | K179: 75 cm | L179: 1743
A180: 1872 | B180: Guardian Air Twin 110 025 PSGAT10025A | C180: 2 | D180: 6 | F180: 2017 | M180: 2 | N180: 2.5
A181: 1874 | B181: Guardian Air Twin 110 03 PSGAT1003A | C181: 2 | D181: 6 | F181: 2017 | M181: 2 | N181: 3
A182: 1875 | B182: Guardian Air Twin 110 04 PSGAT1004A | C182: 2 | D182: 6 | F182: 2017 | M182: 2 | N182: 2.5
A183: 1876 | B183: Guardian Air Twin 110 05 PSGAT1005A | C183: 2 | D183: 6 | F183: 2017 | M183: 2 | N183: 3
A184: 1877 | B184: Guardian Air Twin 110 06 PSGAT1006A | C184: 2 | D184: 6 | F184: 2017 | M184: 2 | N184: 4
A185: 1878 | B185: Guardian Air Twin 110 08 PSGAT1008A | C185: 2 | D185: 6 | F185: 2017
A186: 1882 | B186: IDKT 120-03 POM | C186: 1 | D186: 6 | E186: sg | F186: 2016 | H186: Lechler | I186: Injektor-Doppelflachstrahl | J186: Verband - Feldbau | K186: 50 cm | M186: 1 | N186: 4 | O186: 1 | P186: 2 | Q186: 1 | R186: 1.5
A187: 1883 | B187: IDKT 120-04 POM | C187: 1 | D187: 6 | E187: sg - g | F187: 2016 | H187: Lechler | I187: Injektor-Doppelflachstrahl | J187: Verband - Feldbau | K187: 50 cm | M187: 1 | N187: 2 | O187: 1 | P187: 1.5 | Q187: 1
A188: 1884 | B188: IDKT 120-05 POM | C188: 1 | D188: 6 | E188: sg - g | F188: 2016 | H188: Lechler | I188: Injektor-Doppelflachstrahl | J188: Verband - Feldbau | K188: 50 cm | M188: 1 | N188: 3 | O188: 1 | P188: 1.5 | Q188: 1
A189: 1891 | B189: Airmix OC 80-025 + Airmix 110 03 | C189: 1.5 | D189: 8 | E189: sg - g | F189: 2016 | H189: Agrotop | M189: 1.5 | N189: 2
B190: Airmix OC 025 + CVI Twin 03 | F190: 2020 | M190: 1.5 | N190: 6 | O190: 1.5 | P190: 2 | Q190: 1.5 | R190: 1.5
B191: OC 025 + Avi 03 | F191: 2020 | M191: 3 | N191: 7 | O191: 3 | P191: 3
B192: OC 025 + HiSpeed 03 | F192: 2020 | M192: 2.5 | N192: 4 | O192: 2.5 | P192: 2.5
A193: 1892 | B193: Airmix OC 80-03 + Airmix 110 04 | C193: 1 | D193: 8 | E193: sg - g | F193: 2016 | H193: Agrotop | M193: 1 | N193: 2 | O193: 1
B194: Airmix OC 80-03 + AVI Twin 110 04 | C194: 2 | D194: 8 | F194: 2020 | M194: 2 | N194: 4 | O194: 2.5 | P194: 2.5
B195: OC 03 + CVI Twin 04 | F195: 2020 | M195: 1.5 | N195: 6 | O195: 1.5 | P195: 6 | Q195: 1.5 | R195: 1.5
B196: OC 03 + AVI 110 04 | F196: 2020 | M196: 2.5 | N196: 7 | O196: 2.5 | P196: 3
B197: OC 03 + HiSpeed 04 | F197: 2020 | M197: 2 | N197: 6 | O197: 2 | P197: 3 | Q197: 2 | R197: 2
A198: 1893 | B198: Airmix OC 80-04 + Airmix 110 05 | C198: 1 | D198: 6 | E198: sg - g | F198: 2016 | H198: Agrotop | M198: 1 | N198: 6 | O198: 1 | P198: 1.5 | Q198: 1
B199: OC 04 + HiSpeed 05 | F199: 2020 | M199: 2 | N199: 8 | O199: 2 | P199: 3
B200: OC 04 + CVI Twin 05 | F200: 2020 | M200: 1.5 | N200: 6 | O200: 1.5 | P200: 6
... 51 more rows

Sheet Randdüsen
A2: 200 | B2: gewünschte Wasseraufwandmenge in l/ha | G2: zurück zur Übersicht
A3: Daten in die gelben Felder eintragen
A4: 8 | B4: Fahrgeschwindigkeit in km/hWasseraufwandmenge in l/ha
A7: Düsengröße/-farbe | B7: ="025" -> 025 | E7: ="03" -> 03 | H7: ="04" -> 04 | K7: ="05" -> 05 | N7: ="06" -> 06
A8: Spritzdruck | B8: =IF(POWER((($A$2*0.5*$A$4)/600)*SQRT(3)/1,2)<1,"",POWER((($A$2*0.5*$A$4)/600)*SQRT(3)/1,2)) -> 5.333333333 | C8: =IF(POWER((($D$6*0.5*$H$6)/600)*SQRT(3)/1,2)<1,"",POWER((($D$6*0.5*$H$6)/600)*SQRT(3)/1,2)) ->  | D8: =IF(POWER((($D$6*0.5*$H$6)/600)*SQRT(3)/1,2)<1,"",POWER((($D$6*0.5*$H$6)/600)*SQRT(3)/1,2)) ->  | E8: =IF(POWER((($A$2*0.5*$A$4)/600)*SQRT(3)/1.2,2)<1,"",POWER((($A$2*0.5*$A$4)/600)*SQRT(3)/1.2,2)) -> 3.703703704 | F8: =IF(POWER((($D$6*0.5*$H$6)/600)*SQRT(3)/1,2)<1,"",POWER((($D$6*0.5*$H$6)/600)*SQRT(3)/1,2)) ->  | G8: =IF(POWER((($D$6*0.5*$H$6)/600)*SQRT(3)/1,2)<1,"",POWER((($D$6*0.5*$H$6)/600)*SQRT(3)/1,2)) ->  | H8: =IF(POWER((($A$2*0.5*$A$4)/600)*SQRT(3)/1.6,2)<1,"",POWER((($A$2*0.5*$A$4)/600)*SQRT(3)/1.6,2)) -> 2.083333333 | I8: =IF(POWER((($D$6*0.5*$H$6)/600)*SQRT(3)/1,2)<1,"",POWER((($D$6*0.5*$H$6)/600)*SQRT(3)/1,2)) ->  | J8: =IF(POWER((($D$6*0.5*$H$6)/600)*SQRT(3)/1,2)<1,"",POWER((($D$6*0.5*$H$6)/600)*SQRT(3)/1,2)) ->  | K8: =IF(POWER((($A$2*0.5*$A$4)/600)*SQRT(3)/2,2)<1,"",POWER((($A$2*0.5*$A$4)/600)*SQRT(3)/2,2)) -> 1.333333333 | L8: =IF(POWER((($D$6*0.5*$H$6)/600)*SQRT(3)/1,2)<1,"",POWER((($D$6*0.5*$H$6)/600)*SQRT(3)/1,2)) ->  | M8: =IF(POWER((($D$6*0.5*$H$6)/600)*SQRT(3)/1,2)<1,"",POWER((($D$6*0.5*$H$6)/600)*SQRT(3)/1,2)) ->  | N8: =IF(POWER((($A$2*0.5*$A$4)/600)*SQRT(3)/2.4,2)<1,"",POWER((($A$2*0.5*$A$4)/600)*SQRT(3)/2.4,2)) ->  | O8: =IF(POWER((($D$6*0.5*$H$6)/600)*SQRT(3)/1,2)<1,"",POWER((($D$6*0.5*$H$6)/600)*SQRT(3)/1,2)) ->  | P8: =IF(POWER((($D$6*0.5*$H$6)/600)*SQRT(3)/1,2)<1,"",POWER((($D$6*0.5*$H$6)/600)*SQRT(3)/1,2)) -> 
A9: Volumenstrom/Düse | B9: =(1*SQRT(B8)/SQRT(3)) -> 1.333333333
A10: Abdriftminderungs- klasse* | B10: 50 | C10: 75 | D10: 90 | E10: 50 | F10: 75 | G10: 90 | H10: 50 | I10: 75 | J10: 90 | K10: 50 | L10: 75 | M10: 90 | N10: 50 | O10: 75 | P10: 90
A11: Randdüsen (im Volumenstrom angepasst)
A12: IDK 120° (im Gestänge - Normal) + IDKS 80° (Randdüse) | B12: =IF($E$8>6,"",Abdriftminderungsklasse!E55) -> 1,5 - 2 bar | E12: =IF($E$8>6,"",Abdriftminderungsklasse!H55) -> 1,5 - 2 bar | H12: =IF($E$8>6,"",Abdriftminderungsklasse!K55) -> 1 - 3 bar | I12: =IF($E$8>6,"",Abdriftminderungsklasse!L55) -> 1 bar | K12: =IF($E$8>6,"",Abdriftminderungsklasse!N55) -> 1 - 4 bar | L12: =IF($E$8>6,"",Abdriftminderungsklasse!O55) -> 1 - 1,5 bar | M12: =IF($E$8>6,"",Abdriftminderungsklasse!P55) -> 1 bar | N12: =Abdriftminderungsklasse!Q55 -> 1 - 6 bar | O12: =Abdriftminderungsklasse!R55 -> 1 - 3 bar | P12: =Abdriftminderungsklasse!S55 -> 1 bar
A13: IDKN 120° (im Gestänge - Normal) + IDKS 80° (Randdüse) | E13: =IF($E$8>6,"",Abdriftminderungsklasse!H56) -> 1,5 - 3 bar | F13: =IF($E$8>6,"",Abdriftminderungsklasse!I56) -> 1,5 bar | G13: =IF($E$8>6,"",Abdriftminderungsklasse!J56) -> 1 bar | H13: =IF($E$8>6,"",Abdriftminderungsklasse!K56) -> 1 - 3 bar | I13: =IF($E$8>6,"",Abdriftminderungsklasse!L56) -> 1 - 1,5 bar | J13: =IF($E$8>6,"",Abdriftminderungsklasse!M56) -> 1 bar
A14: IDKT 120° (im Gestänge - Normal) + IDKS 80° (Randdüse) | B14: =IF($E$8>6,"",Abdriftminderungsklasse!E57) -> 1,5 - 3 bar | E14: =IF($E$8>6,"",Abdriftminderungsklasse!H57) -> 1,5 - 4 bar | F14: =IF($E$8>6,"",Abdriftminderungsklasse!I57) -> 1,5 - 2 bar | G14: =IF($E$8>6,"",Abdriftminderungsklasse!J57) -> 1,5 bar | H14: =IF($E$8>6,"",Abdriftminderungsklasse!K57) -> 1 - 2 bar | I14: =IF($E$8>6,"",Abdriftminderungsklasse!L57) -> 1 - 1,5 bar | J14: =IF($E$8>6,"",Abdriftminderungsklasse!M57) -> 1 bar | K14: =IF($E$8>6,"",Abdriftminderungsklasse!N57) -> 1 - 3 bar | L14: =IF($E$8>6,"",Abdriftminderungsklasse!O57) -> 1 - 1,5 bar | M14: =IF($E$8>6,"",Abdriftminderungsklasse!P57) -> 1 bar | N14: =Abdriftminderungsklasse!Q57 -> 1 - 6 bar | O14: =Abdriftminderungsklasse!R57 -> 1 - 3 bar | P14: =Abdriftminderungsklasse!S57 -> 1 bar
A16: ID 120°(im Gestänge - Normal) + IS 80° (Randdüse) | B16: =IF($E$8>6,"",Abdriftminderungsklasse!E51) -> 2 - 5 bar | E16: =IF($E$8>6,"",Abdriftminderungsklasse!H51) -> 3 - 8 bar | F16: =IF($E$8>6,"",Abdriftminderungsklasse!I51) -> 3 bar | H16: =IF($E$8>6,"",Abdriftminderungsklasse!K51) -> 2 - 5 bar | I16: =IF($E$8>6,"",Abdriftminderungsklasse!L51) -> 2 bar | K16: =Abdriftminderungsklasse!N51 -> 2 - 8 bar | L16: =Abdriftminderungsklasse!O51 -> 2 - 8 bar
A17: ID3 120°(im Gestänge - Normal) + IS 80° (Randdüse) | B17: =IF($E$8>6,"",Abdriftminderungsklasse!E52) -> 2 - 7 bar | C17: =IF($E$8>6,"",Abdriftminderungsklasse!F52) -> 3 - 4 bar | D17: =IF($E$8>6,"",Abdriftminderungsklasse!G52) -> 2 - 2,5 bar | E17: =IF($E$8>6,"",Abdriftminderungsklasse!H52) -> 3 - 8 bar | F17: =IF($E$8>6,"",Abdriftminderungsklasse!I52) -> 3 - 4 bar | G17: =IF($E$8>6,"",Abdriftminderungsklasse!J52) -> 2 - 3 bar | H17: =IF($E$8>6,"",Abdriftminderungsklasse!K52) -> 2 - 8 bar | I17: =IF($E$8>6,"",Abdriftminderungsklasse!L52) -> 2 - 6 bar | J17: =IF($E$8>6,"",Abdriftminderungsklasse!M52) -> 2 - 3 bar | K17: =Abdriftminderungsklasse!N52 -> 2 - 8 bar | L17: =Abdriftminderungsklasse!O52 -> 2 - 6 bar | M17: =Abdriftminderungsklasse!P52 -> 2 - 3 bar
A20: Düsengröße/-farbe | B20: Randdüse - Normal 02 - 025 | E20: Randdüse - Normal 025 - 03 | H20: Randdüse - Normal 03 - 04 | K20: Randdüse - Normal 04 - 05
A21: Randdüsen (Volumenstrom nach ISO)
A22: Airmix 110° (im Gestänge - Normal) +Airmix OC 80° (Randdüse) | E22: =IF($E$8>6,"",Abdriftminderungsklasse!E68) -> 1,5 - 2 bar | H22: =IF($E$8>6,"",Abdriftminderungsklasse!H68) -> 1 - 2 bar | K22: =IF($E$8>6,"",Abdriftminderungsklasse!K68) -> 1 - 6 bar | L22: =IF($E$8>6,"",Abdriftminderungsklasse!L68) -> 1 - 1,5 bar | M22: =IF($E$8>6,"",Abdriftminderungsklasse!M68) -> 1 bar
A23: Airmix NoDrift 110° (im Gestänge - Normal) + Airmix OC 80° (Randdüse) | E23: =IF($E$8>6,"",Abdriftminderungsklasse!E68) -> 1,5 - 2 bar | H23: =IF($E$8>6,"",Abdriftminderungsklasse!H68) -> 1 - 2 bar | I23: =IF($E$8>6,"",Abdriftminderungsklasse!I68) -> 1 bar
A24: AVI 110° (im Gestänge - Normal) + Airmix OC 80° (Randdüse) | E24: =IF($E$8>6,"",Abdriftminderungsklasse!E65) -> 2 - 4 bar | H24: =IF($E$8>6,"",Abdriftminderungsklasse!H65) -> 2 - 4 bar | I24: =IF($E$8>6,"",Abdriftminderungsklasse!I65) -> 2,5 bar
A25: HiSpeed 110° (im Gestänge - Normal) + Airmix OC 80° (Randdüse) | B25: =Abdriftminderungsklasse!B66 -> 2,5 - 6 bar | C25: =Abdriftminderungsklasse!C66 -> 2,5 - 3,5 bar | E25: =Abdriftminderungsklasse!E66 -> 2,5 - 7 bar | F25: =Abdriftminderungsklasse!F66 -> 2,5 bar | H25: =Abdriftminderungsklasse!H66 -> 2 - 6 bar | I25: =Abdriftminderungsklasse!I66 -> 2 - 3 bar | J25: =Abdriftminderungsklasse!J66 -> 2 bar | K25: =Abdriftminderungsklasse!K66 -> 2 - 8 bar | L25: =Abdriftminderungsklasse!L66 -> 2 - 3 bar
A26: CVI Twin 110° (im Gestänge) - Normal + Airmix OC 80° (Randdüse) | B26: =Abdriftminderungsklasse!B69 -> 1,5 - 3 bar | C26: =Abdriftminderungsklasse!C69 -> 1,5 - 2 bar | E26: =Abdriftminderungsklasse!E69 -> 1,5 - 6 bar | F26: =Abdriftminderungsklasse!F69 -> 1,5 - 2 bar | G26: =Abdriftminderungsklasse!G69 -> 1,5 bar | H26: =Abdriftminderungsklasse!H69 -> 1,5 - 6 bar | I26: =Abdriftminderungsklasse!I69 -> 1,5 - 6 bar | J26: =Abdriftminderungsklasse!J69 -> 1,5 bar | K26: =Abdriftminderungsklasse!K69 -> 1,5 - 6 bar | L26: =Abdriftminderungsklasse!L69 -> 1,5 - 6 bar
A28: AI 110°(im Gestänge - Normal) + AIUB 80° (Randdüse | B28: =IF($E$8>6,"",Abdriftminderungsklasse!B63) -> 2 - 4 bar | C28: =IF($E$8>6,"",Abdriftminderungsklasse!C63) -> 2 bar | E28: =IF($E$8>6,"",Abdriftminderungsklasse!E63) -> 2,5 - 8 bar | F28: =IF($E$8>6,"",Abdriftminderungsklasse!F63) -> 2,5 bar | H28: =IF($E$8>6,"",Abdriftminderungsklasse!H63) -> 2,5 - 4 bar | I28: =IF($E$8>6,"",Abdriftminderungsklasse!I63) -> 2,5 - 3 bar | K28: =IF($E$8>6,"",Abdriftminderungsklasse!K63) -> 2 - 5 bar | L28: =IF($E$8>6,"",Abdriftminderungsklasse!L63) -> 2 - 3 bar | M28: =IF($E$8>6,"",Abdriftminderungsklasse!M63) -> 2 - 2,5 bar
A29: AIC 110°(im Gestänge - Normal) + AIUB 80° (Randdüse | B29: =IF($E$8>6,"",Abdriftminderungsklasse!B63) -> 2 - 4 bar | C29: =IF($E$8>6,"",Abdriftminderungsklasse!C63) -> 2 bar | E29: =IF($E$8>6,"",Abdriftminderungsklasse!E63) -> 2,5 - 8 bar | F29: =IF($E$8>6,"",Abdriftminderungsklasse!F63) -> 2,5 bar | H29: =IF($E$8>6,"",Abdriftminderungsklasse!H63) -> 2,5 - 4 bar | I29: =IF($E$8>6,"",Abdriftminderungsklasse!I63) -> 2,5 - 3 bar | K29: =IF($E$8>6,"",Abdriftminderungsklasse!K63) -> 2 - 5 bar | L29: =IF($E$8>6,"",Abdriftminderungsklasse!L63) -> 2 - 3 bar | M29: =IF($E$8>6,"",Abdriftminderungsklasse!M63) -> 2 - 2,5 bar
A32: *Der angegebene Druck ist ein tabellarischer Wert, da in jedem Pflanzenschutzgerät Druckverluste auftreten, muss das Gerät vor Inbetriebnahme ausgelitert werden Gültig nur für ISO 10625 genormte Düsen bei einem Düsenabstand von 50 cm! Für Vollständigkeit und Richtigkeit wird keine Gewähr übernommen

Sheet Abdriftminderungsklasse
B2: 02 | E2: 025 | H2: 03 | K2: 04 | N2: 05 | Q2: 06
A3: kompakte | B3: 50 | C3: 75 | D3: 90 | E3: 50 | F3: 75 | G3: 90 | H3: 50 | I3: 75 | J3: 90 | K3: 50 | L3: 75 | M3: 90 | N3: 50 | O3: 75 | P3: 90 | Q3: 50 | R3: 75 | S3: 90
A4: AirMix | H4: ='Anerkannte Düsen (2)'!M55&" - "&'Anerkannte Düsen (2)'!N55&" bar" -> 1,5 - 2 bar | K4: ='Anerkannte Düsen (2)'!M53&" - "&'Anerkannte Düsen (2)'!N53&" bar" -> 1 - 2 bar | L4: ='Anerkannte Düsen (2)'!O53&" bar" -> 1 bar | N4: ='Anerkannte Düsen (2)'!M56&" - "&'Anerkannte Düsen (2)'!N56&" bar" -> 1 - 6 bar | O4: ='Anerkannte Düsen (2)'!O56&" - "&'Anerkannte Düsen (2)'!P56&" bar" -> 1 - 1,5 bar | P4: ='Anerkannte Düsen (2)'!Q56&" bar" -> 1 bar
A5: AirMix NoDrift | E5: ='Anerkannte Düsen (2)'!M80&" - "&'Anerkannte Düsen (2)'!N80&" bar" -> 2,5 - 6 bar | H5: ='Anerkannte Düsen (2)'!M81&" - "&'Anerkannte Düsen (2)'!N81&" bar" -> 3 - 4 bar | K5: ='Anerkannte Düsen (2)'!M82&" - "&'Anerkannte Düsen (2)'!N82&" bar" -> 2 - 8 bar | L5: ='Anerkannte Düsen (2)'!O82&" - "&'Anerkannte Düsen (2)'!P82&" bar" -> 2 - 2,5 bar
A6: IDK POM | E6: ='Anerkannte Düsen (2)'!M71&" - "&'Anerkannte Düsen (2)'!N71&" bar" -> 1,5 - 2 bar | H6: ='Anerkannte Düsen (2)'!M68&" - "&'Anerkannte Düsen (2)'!N68&" bar" -> 1,5 - 2 bar | K6: ='Anerkannte Düsen (2)'!M69&" - "&'Anerkannte Düsen (2)'!N69&" bar" -> 1 - 3 bar | L6: ='Anerkannte Düsen (2)'!O69&" bar" -> 1 bar | N6: ='Anerkannte Düsen (2)'!M70&" - "&'Anerkannte Düsen (2)'!N70&" bar" -> 1 - 4 bar | O6: ='Anerkannte Düsen (2)'!O70&" - "&'Anerkannte Düsen (2)'!P70&" bar" -> 1 - 1,5 bar | P6: ='Anerkannte Düsen (2)'!Q70&" bar" -> 1 bar | Q6: ='Anerkannte Düsen (2)'!M217&" - "&'Anerkannte Düsen (2)'!N217&" bar" -> 1 - 6 bar | R6: ='Anerkannte Düsen (2)'!O217&" - "&'Anerkannte Düsen (2)'!P217&" bar" -> 1 - 3 bar | S6: ='Anerkannte Düsen (2)'!Q217&" bar" -> 1 bar
A7: IDK C | K7: ='Anerkannte Düsen (2)'!M154&" - "&'Anerkannte Düsen (2)'!N154&" bar" -> 1,5 - 3 bar | L7: ='Anerkannte Düsen (2)'!O154&" - "&'Anerkannte Düsen (2)'!P154&" bar" -> 1,5 - 2 bar | M7: ='Anerkannte Düsen (2)'!Q154&" bar" -> 1,5 bar | N7: ='Anerkannte Düsen (2)'!M155&" - "&'Anerkannte Düsen (2)'!N155&" bar" -> 1,5 - 4 bar | O7: ='Anerkannte Düsen (2)'!O155&" bar" -> 1,5 bar
A8: Minidrift (MD) | E8: ='Anerkannte Düsen (2)'!M131&" - "&'Anerkannte Düsen (2)'!N131&" bar" -> 1,5 - 2 bar | H8: ='Anerkannte Düsen (2)'!M132&" - "&'Anerkannte Düsen (2)'!N132&" bar" -> 1 - 2 bar | I8: ='Anerkannte Düsen (2)'!O132&" bar" -> 1 bar | K8: ='Anerkannte Düsen (2)'!M133&" - "&'Anerkannte Düsen (2)'!N133&" bar" -> 1 - 3 bar | L8: ='Anerkannte Düsen (2)'!O133& " bar" -> 1 bar | M8: ='Anerkannte Düsen (2)'!Q133&" bar" -> 1 bar | N8: ='Anerkannte Düsen (2)'!M134&" - "&'Anerkannte Düsen (2)'!N134&" bar" -> 1 - 6 bar | O8: ='Anerkannte Düsen (2)'!O134&" - "&'Anerkannte Düsen (2)'!P134&" bar" -> 1 - 1,5 bar | P8: ='Anerkannte Düsen (2)'!Q134&" bar" -> 1 bar
A9: AIXR | H9: ='Anerkannte Düsen (2)'!M124&" - "&'Anerkannte Düsen (2)'!N124&" bar" -> 1,5 - 2 bar | K9: ='Anerkannte Düsen (2)'!M125&" - "&'Anerkannte Düsen (2)'!N125&" bar" -> 1,5 - 3 bar | L9: ='Anerkannte Düsen (2)'!O125&" bar" -> 1,5 bar | N9: ='Anerkannte Düsen (2)'!M151&" - "&'Anerkannte Düsen (2)'!N151&" bar" -> 1 - 6 bar | O9: ='Anerkannte Düsen (2)'!O151&" - "&'Anerkannte Düsen (2)'!P151&" bar" -> 1 - 2,5 bar | P9: ='Anerkannte Düsen (2)'!Q151&" - "&'Anerkannte Düsen (2)'!R151&" bar" -> 1 - 1,5 bar
A10: ULD / PSULD | H10: ='Anerkannte Düsen (2)'!M128&" - "&'Anerkannte Düsen (2)'!N128&" bar" -> 2,5 - 8 bar | K10: ='Anerkannte Düsen (2)'!M129&" - "&'Anerkannte Düsen (2)'!N129&" bar" -> 2,5 - 8 bar | L10: ='Anerkannte Düsen (2)'!O129&" - "&'Anerkannte Düsen (2)'!P129&" bar" -> 2,5 - 8 bar | M10: ='Anerkannte Düsen (2)'!Q129&" bar" -> 2,5 bar | N10: ='Anerkannte Düsen (2)'!M130&" - "&'Anerkannte Düsen (2)'!N130&" bar" -> 2,5 - 8 bar | O10: ='Anerkannte Düsen (2)'!O130&" - "&'Anerkannte Düsen (2)'!P130&" bar" -> 2,5 - 8 bar | P10: ='Anerkannte Düsen (2)'!Q130&" - "&'Anerkannte Düsen (2)'!R130&" bar" -> 2,5 - 8 bar
A11: TT | H11: ='Anerkannte Düsen (2)'!M24&" - "&'Anerkannte Düsen (2)'!N24&" bar" -> 1 - 1,5 bar | K11: ='Anerkannte Düsen (2)'!M25&" - "&'Anerkannte Düsen (2)'!N25&" bar" -> 1 - 1,5 bar
A12: Guardian Air | B12: ='Anerkannte Düsen (2)'!M157&" - "&'Anerkannte Düsen (2)'!N157&" bar" -> 1 - 2 bar | E12: ='Anerkannte Düsen (2)'!M161&" - "&'Anerkannte Düsen (2)'!N161&" bar" -> 1 - 2,5 bar | H12: ='Anerkannte Düsen (2)'!M158&" - "&'Anerkannte Düsen (2)'!N158&" bar" -> 1,5 - 2,5 bar | I12: ='Anerkannte Düsen (2)'!O158&" bar" -> 1,5 bar | K12: ='Anerkannte Düsen (2)'!M159&" - "&'Anerkannte Düsen (2)'!N159&" bar" -> 1 - 2,5 bar | L12: ='Anerkannte Düsen (2)'!O159&" - "&'Anerkannte Düsen (2)'!P159&" bar" -> 1 - 1,5 bar | N12: ='Anerkannte Düsen (2)'!M160&" - "&'Anerkannte Düsen (2)'!N160&" bar" -> 1 - 2,5 bar | O12: ='Anerkannte Düsen (2)'!O160&" - "&'Anerkannte Düsen (2)'!P160&" bar" -> 1 - 1,5 bar
A13: 1/4 TTJ mit QJ4676-90 | Q13: ='Anerkannte Düsen (2)'!M221&" - "&'Anerkannte Düsen (2)'!N221&" bar" -> 1 - 6 bar | R13: ='Anerkannte Düsen (2)'!O221&" - "&'Anerkannte Düsen (2)'!P221&" bar" -> 1 - 4 bar | S13: ='Anerkannte Düsen (2)'!Q221&" - "&'Anerkannte Düsen (2)'!R221&" bar" -> 1 - 2 bar
A15: CVI 80 02 (25 cm) | B15: ='Anerkannte Düsen (2)'!M224&" - "&'Anerkannte Düsen (2)'!N224&" bar" -> 3 - 8 bar | C15: ='Anerkannte Düsen (2)'!O224&" - "&'Anerkannte Düsen (2)'!P224&" bar" -> 3 - 8 bar | D15: ='Anerkannte Düsen (2)'!Q224&" - "&'Anerkannte Düsen (2)'!R224&" bar" -> 3 - 8 bar
A18: lange
A19: ID | B19: ='Anerkannte Düsen (2)'!M32&" - "&'Anerkannte Düsen (2)'!N32&" bar" -> 3 - 3,5 bar | E19: ='Anerkannte Düsen (2)'!M33&" - "&'Anerkannte Düsen (2)'!N33&" bar" -> 3 - 5 bar | H19: ='Anerkannte Düsen (2)'!M27&" - "&'Anerkannte Düsen (2)'!N27&" bar" -> 3 - 8 bar | I19: ='Anerkannte Düsen (2)'!O27&" bar" -> 3 bar | K19: ='Anerkannte Düsen (2)'!M28&" - "&'Anerkannte Düsen (2)'!N28&" bar" -> 3 - 5 bar | L19: ='Anerkannte Düsen (2)'!O28&" bar" -> 3 bar | N19: ='Anerkannte Düsen (2)'!M51&" - "&'Anerkannte Düsen (2)'!N51&" bar" -> 2 - 8 bar | O19: ='Anerkannte Düsen (2)'!O51&" - "&'Anerkannte Düsen (2)'!P51&" bar" -> 2 - 8 bar | P19: ='Anerkannte Düsen (2)'!Q51&" bar" -> 2 bar
A20: S-Injet | K20: ='Anerkannte Düsen (2)'!M61&" - "&'Anerkannte Düsen (2)'!N61&" bar" -> 3 - 5 bar | L20: ='Anerkannte Düsen (2)'!O61&" bar" -> 3 bar
A22: AVI | H22: ='Anerkannte Düsen (2)'!M47&" - "&'Anerkannte Düsen (2)'!N47&" bar" -> 3 - 7 bar | I22: ='Anerkannte Düsen (2)'!O47&" bar" -> 3 bar | K22: ='Anerkannte Düsen (2)'!M46&" - "&'Anerkannte Düsen (2)'!N46&" bar" -> 3 - 7 bar | L22: ='Anerkannte Düsen (2)'!O46&" bar" -> 3 bar
A23: AI / AIC | E23: ='Anerkannte Düsen (2)'!M35&" - "&'Anerkannte Düsen (2)'!N35&" bar" -> 2 - 4 bar | F23: ='Anerkannte Düsen (2)'!O35&" bar" -> 2 bar | H23: ='Anerkannte Düsen (2)'!M36&" - "&'Anerkannte Düsen (2)'!N36&" bar" -> 2,5 - 8 bar | I23: ='Anerkannte Düsen (2)'!O36&" bar" -> 2,5 bar | K23: ='Anerkannte Düsen (2)'!M37&" - "&'Anerkannte Düsen (2)'!N37&" bar" -> 2,5 - 4 bar | L23: ='Anerkannte Düsen (2)'!O37&" - "&'Anerkannte Düsen (2)'!P37&" bar" -> 2,5 - 3 bar | N23: ='Anerkannte Düsen (2)'!M50&" - "&'Anerkannte Düsen (2)'!N50&" bar" -> 2 - 5 bar | O23: ='Anerkannte Düsen (2)'!O50&" - "&'Anerkannte Düsen (2)'!P50&" bar" -> 2 - 3 bar | P23: ='Anerkannte Düsen (2)'!Q50&" - "&'Anerkannte Düsen (2)'!R50&" bar" -> 2 - 2,5 bar
A27: 50 - 90 %
A28: IDN | E28: ='Anerkannte Düsen (2)'!M78&" - "&'Anerkannte Düsen (2)'!N78&" bar" -> 2 - 6 bar | F28: ='Anerkannte Düsen (2)'!O78&" - "&'Anerkannte Düsen (2)'!P78&" bar" -> 2 - 3 bar | G28: ='Anerkannte Düsen (2)'!Q78&" bar" -> 2 bar | H28: ='Anerkannte Düsen (2)'!M87&" - "&'Anerkannte Düsen (2)'!N87&" bar" -> 2 - 8 bar | I28: ='Anerkannte Düsen (2)'!O87&" - "&'Anerkannte Düsen (2)'!P87&" bar" -> 2 - 3,5 bar | J28: ='Anerkannte Düsen (2)'!Q87&" bar" -> 2 bar
A29: ID3-C | E29: ='Anerkannte Düsen (2)'!M233&" - "&'Anerkannte Düsen (2)'!N233&" bar" -> 2 - 6 bar | F29: ='Anerkannte Düsen (2)'!O233&" - "&'Anerkannte Düsen (2)'!P233&" bar" -> 2 - 4 bar | G29: ='Anerkannte Düsen (2)'!Q233&" bar" -> 2,5 bar | H29: ='Anerkannte Düsen (2)'!M229&" - "&'Anerkannte Düsen (2)'!N229&" bar" -> 2 - 8 bar | I29: ='Anerkannte Düsen (2)'!O229&" - "&'Anerkannte Düsen (2)'!P229&" bar" -> 2 - 4 bar | J29: ='Anerkannte Düsen (2)'!Q229&" - "&'Anerkannte Düsen (2)'!R229&" bar" -> 2 - 2,5 bar | K29: ='Anerkannte Düsen (2)'!M230&" - "&'Anerkannte Düsen (2)'!N230&" bar" -> 2 - 8 bar | L29: ='Anerkannte Düsen (2)'!O230&" - "&'Anerkannte Düsen (2)'!P230&" bar" -> 2 - 6 bar | M29: ='Anerkannte Düsen (2)'!Q230&" - "&'Anerkannte Düsen (2)'!R230&" bar" -> 2 - 2,5 bar | N29: ='Anerkannte Düsen (2)'!M232&" - "&'Anerkannte Düsen (2)'!N232&" bar" -> 2 - 8 bar | O29: ='Anerkannte Düsen (2)'!O232&" - "&'Anerkannte Düsen (2)'!P232&" bar" -> 2 - 8 bar | P29: ='Anerkannte Düsen (2)'!Q232&" - "&'Anerkannte Düsen (2)'!R232&" bar" -> 2 - 4 bar
A30: ID3-POM | B30: ='Anerkannte Düsen (2)'!M228&" - "&'Anerkannte Düsen (2)'!N228&" bar" -> 2,5 - 6 bar | E30: ='Anerkannte Düsen (2)'!M225&" - "&'Anerkannte Düsen (2)'!N225&" bar" -> 2 - 7 bar | F30: ='Anerkannte Düsen (2)'!O225&" - "&'Anerkannte Düsen (2)'!P225&" bar" -> 2 - 4 bar | G30: ='Anerkannte Düsen (2)'!Q225&" - "&'Anerkannte Düsen (2)'!R225&" bar" -> 2 - 2,5 bar | H30: ='Anerkannte Düsen (2)'!M227&" - "&'Anerkannte Düsen (2)'!N227&" bar" -> 2 - 8 bar | I30: ='Anerkannte Düsen (2)'!O227&" - "&'Anerkannte Düsen (2)'!P227&" bar" -> 2 - 4 bar | J30: ='Anerkannte Düsen (2)'!Q227&" - "&'Anerkannte Düsen (2)'!R227&" bar" -> 2 - 3 bar | K30: ='Anerkannte Düsen (2)'!M231&" - "&'Anerkannte Düsen (2)'!N231&" bar" -> 2 - 8 bar | L30: ='Anerkannte Düsen (2)'!O231&" - "&'Anerkannte Düsen (2)'!P231&" bar" -> 2 - 6 bar | M30: ='Anerkannte Düsen (2)'!Q231&" - "&'Anerkannte Düsen (2)'!R231&" bar" -> 2 - 3 bar | N30: ='Anerkannte Düsen (2)'!M226&" - "&'Anerkannte Düsen (2)'!N226&" bar" -> 2 - 8 bar | O30: ='Anerkannte Düsen (2)'!O226&" - "&'Anerkannte Düsen (2)'!P226&" bar" -> 2 - 6 bar | P30: ='Anerkannte Düsen (2)'!Q226&" - "&'Anerkannte Düsen (2)'!R226&" bar" -> 2 - 3 bar
A31: TTI | B31: ='Anerkannte Düsen (2)'!M123&" - "&'Anerkannte Düsen (2)'!N123&" bar" -> 2 - 5 bar | C31: ='Anerkannte Düsen (2)'!O123&" - "&'Anerkannte Düsen (2)'!P123&" bar" -> 2 - 2,5 bar | E31: ='Anerkannte Düsen (2)'!M94&" - "&'Anerkannte Düsen (2)'!N94&" bar" -> 1,5 - 5 bar | F31: ='Anerkannte Düsen (2)'!O94&" - "&'Anerkannte Düsen (2)'!P94&" bar" -> 1,5 - 2,5 bar | G31: ='Anerkannte Düsen (2)'!Q94&" bar" -> 1,5 bar | H31: ='Anerkannte Düsen (2)'!M95&" - "&'Anerkannte Düsen (2)'!N95&" bar" -> 1,5 - 5 bar | I31: ='Anerkannte Düsen (2)'!O95&" - "&'Anerkannte Düsen (2)'!P95&" bar" -> 1,5 - 2,5 bar | J31: ='Anerkannte Düsen (2)'!Q95&" bar" -> 1,5 bar | K31: ='Anerkannte Düsen (2)'!M96&" - "&'Anerkannte Düsen (2)'!N96&" bar" -> 1,5 - 5 bar | L31: ='Anerkannte Düsen (2)'!O96&" - "&'Anerkannte Düsen (2)'!P96&" bar" -> 1,5 - 3 bar | M31: ='Anerkannte Düsen (2)'!Q96&" - "&'Anerkannte Düsen (2)'!R96&" bar" -> 1,5 - 2 bar | N31: ='Anerkannte Düsen (2)'!M97&" - "&'Anerkannte Düsen (2)'!N97&" bar" -> 1 - 5 bar | O31: ='Anerkannte Düsen (2)'!O97&" - "&'Anerkannte Düsen (2)'!P97&" bar" -> 1 - 3 bar | P31: ='Anerkannte Düsen (2)'!Q97&" - "&'Anerkannte Düsen (2)'!R97&" bar" -> 1 - 2 bar | Q31: ='Anerkannte Düsen (2)'!M220&" - "&'Anerkannte Düsen (2)'!N220&" bar" -> 1 - 7 bar | R31: ='Anerkannte Düsen (2)'!O220&" - "&'Anerkannte Düsen (2)'!P220&" bar" -> 1 - 4 bar | S31: ='Anerkannte Düsen (2)'!Q220&" - "&'Anerkannte Düsen (2)'!R220&" bar" -> 1 - 3 bar
A32: IDKN | H32: ='Anerkannte Düsen (2)'!M152&" - "&'Anerkannte Düsen (2)'!N152&" bar" -> 1 - 3 bar | I32: ='Anerkannte Düsen (2)'!O152&" - "&'Anerkannte Düsen (2)'!P152&" bar" -> 1 - 1,5 bar | J32: ='Anerkannte Düsen (2)'!Q152&" bar" -> 1 bar | K32: ='Anerkannte Düsen (2)'!M88&" - "&'Anerkannte Düsen (2)'!N88&" bar" -> 1 - 3 bar | L32: ='Anerkannte Düsen (2)'!O88&" - "&'Anerkannte Düsen (2)'!P88&" bar" -> 1 - 1,5 bar | M32: ='Anerkannte Düsen (2)'!Q88&" bar" -> 1 bar
A37: Doppelflachstrahl
A38: HiSpeed | B38: ='Anerkannte Düsen (2)'!M162&" - "&'Anerkannte Düsen (2)'!N162&" bar" -> 2 - 5 bar | C38: ='Anerkannte Düsen (2)'!O162&" - "&'Anerkannte Düsen (2)'!P162&" bar" -> 2 - 3 bar | E38: ='Anerkannte Düsen (2)'!M201&" - "&'Anerkannte Düsen (2)'!N201&" bar" -> 2,5 - 5 bar | F38: ='Anerkannte Düsen (2)'!O201&" - "&'Anerkannte Düsen (2)'!P201&" bar" -> 2,5 - 3,5 bar | G38: ='Anerkannte Düsen (2)'!Q201&" bar" -> 2,5 bar | H38: ='Anerkannte Düsen (2)'!M163&" - "&'Anerkannte Düsen (2)'!N163&" bar" -> 2,5 - 4 bar | I38: ='Anerkannte Düsen (2)'!O163&" bar" -> 2,5 bar | K38: ='Anerkannte Düsen (2)'!M164&" - "&'Anerkannte Düsen (2)'!N164&" bar" -> 2 - 6 bar | L38: ='Anerkannte Düsen (2)'!O164&" - "&'Anerkannte Düsen (2)'!P164&" bar" -> 2 - 3 bar | M38: ='Anerkannte Düsen (2)'!Q164&" bar" -> 2 bar | N38: ='Anerkannte Düsen (2)'!M165&" - "&'Anerkannte Düsen (2)'!N165&" bar" -> 2 - 8 bar | O38: ='Anerkannte Düsen (2)'!O165&" - "&'Anerkannte Düsen (2)'!P165&" bar" -> 2 - 3 bar
A39: AVI Twin | K39: ='Anerkannte Düsen (2)'!M100&" - "&'Anerkannte Düsen (2)'!N100&" bar" -> 2 - 4 bar | L39: ='Anerkannte Düsen (2)'!O100&" - "&'Anerkannte Düsen (2)'!P100&" bar" -> 2 - 2,5 bar
A40: IDKT C | H40: ='Anerkannte Düsen (2)'!M177&" - "&'Anerkannte Düsen (2)'!N177&" bar" -> 1,5 - 3 bar | I40: ='Anerkannte Düsen (2)'!O177&" bar" -> 1,5 bar | K40: ='Anerkannte Düsen (2)'!M168&" - "&'Anerkannte Düsen (2)'!N168&" bar" -> 1 - 3 bar | L40: ='Anerkannte Düsen (2)'!O168&" - "&'Anerkannte Düsen (2)'!P168&" bar" -> 1 - 1,5 bar | M40: ='Anerkannte Düsen (2)'!Q168&" bar" -> 1 bar | N40: ='Anerkannte Düsen (2)'!M167&" - "&'Anerkannte Düsen (2)'!N167&" bar" -> 1 - 4 bar | O40: ='Anerkannte Düsen (2)'!O167&" - "&'Anerkannte Düsen (2)'!P167&" bar" -> 1 - 1,5 bar | P40: ='Anerkannte Düsen (2)'!Q167&" bar" -> 1 bar
A41: IDKT POM | B41: ='Anerkannte Düsen (2)'!M208&" - "&'Anerkannte Düsen (2)'!N208&" bar" -> 1,5 - 5 bar | C41: ='Anerkannte Düsen (2)'!O208&" - "&'Anerkannte Düsen (2)'!P208&" bar" -> 1,5 - 3 bar | D41: ='Anerkannte Düsen (2)'!Q208&" bar" -> 1,5 bar | E41: ='Anerkannte Düsen (2)'!M209&" - "&'Anerkannte Düsen (2)'!N209&" bar" -> 1,5 - 3 bar | F41: ='Anerkannte Düsen (2)'!O209&" - "&'Anerkannte Düsen (2)'!P209&" bar" -> 1,5 - 2 bar | G41: ='Anerkannte Düsen (2)'!Q209&" bar" -> 1,5 bar | H41: ='Anerkannte Düsen (2)'!M186&" - "&'Anerkannte Düsen (2)'!N186&" bar" -> 1 - 4 bar | I41: ='Anerkannte Düsen (2)'!O186&" - "&'Anerkannte Düsen (2)'!P186&" bar" -> 1 - 2 bar | J41: ='Anerkannte Düsen (2)'!Q186&" - "&'Anerkannte Düsen (2)'!R186&" bar" -> 1 - 1,5 bar | K41: ='Anerkannte Düsen (2)'!M187&" - "&'Anerkannte Düsen (2)'!N187&" bar" -> 1 - 2 bar | L41: ='Anerkannte Düsen (2)'!O187&" - "&'Anerkannte Düsen (2)'!P187&" bar" -> 1 - 1,5 bar | M41: ='Anerkannte Düsen (2)'!Q187&" bar" -> 1 bar | N41: ='Anerkannte Düsen (2)'!M188&" - "&'Anerkannte Düsen (2)'!N188&" bar" -> 1 - 3 bar | O41: ='Anerkannte Düsen (2)'!O188&" - "&'Anerkannte Düsen (2)'!P188&" bar" -> 1 - 1,5 bar | P41: ='Anerkannte Düsen (2)'!Q188&" bar" -> 1 bar | Q41: ='Anerkannte Düsen (2)'!M216&" - "&'Anerkannte Düsen (2)'!N216&" bar" -> 1 - 6 bar | R41: ='Anerkannte Düsen (2)'!O216&" - "&'Anerkannte Düsen (2)'!P216&" bar" -> 1 - 2 bar | S41: ='Anerkannte Düsen (2)'!Q216&" bar" -> 1 bar
A42: AITTJ 60 | H42: ='Anerkannte Düsen (2)'!M169&" - "&'Anerkannte Düsen (2)'!N169&" bar" -> 2 - 5 bar | I42: ='Anerkannte Düsen (2)'!O169&" - "&'Anerkannte Düsen (2)'!P169&" bar" -> 2 - 2,5 bar | K42: ='Anerkannte Düsen (2)'!M170&" - "&'Anerkannte Düsen (2)'!N170&" bar" -> 1,5 - 4 bar | L42: ='Anerkannte Düsen (2)'!O170&" - "&'Anerkannte Düsen (2)'!P170&" bar" -> 1,5 - 2 bar | M42: ='Anerkannte Düsen (2)'!Q170&" bar" -> 1,5 bar
A43: MinidriftDuo | H43: ='Anerkannte Düsen (2)'!M205&" - "&'Anerkannte Düsen (2)'!N205&" bar" -> 1 - 4 bar | I43: ='Anerkannte Düsen (2)'!O205&" - "&'Anerkannte Düsen (2)'!P205&" bar" -> 1 - 2 bar | J43: ='Anerkannte Düsen (2)'!Q205&" - "&'Anerkannte Düsen (2)'!R205&" bar" -> 1 - 1,5 bar | K43: ='Anerkannte Düsen (2)'!M206&" - "&'Anerkannte Düsen (2)'!N206&" bar" -> 1 - 2 bar | L43: ='Anerkannte Düsen (2)'!O206&" - "&'Anerkannte Düsen (2)'!P206&" bar" -> 1 - 1,5 bar | M43: ='Anerkannte Düsen (2)'!Q206&" bar" -> 1 bar | N43: ='Anerkannte Düsen (2)'!M207&" - "&'Anerkannte Düsen (2)'!N207&" bar" -> 1 - 3 bar | O43: ='Anerkannte Düsen (2)'!O207&" - "&'Anerkannte Düsen (2)'!P207&" bar" -> 1 - 1,5 bar | P43: ='Anerkannte Düsen (2)'!Q207&" bar" -> 1 bar
A44: CVI Twin | B44: ='Anerkannte Düsen (2)'!M210&" - "&'Anerkannte Düsen (2)'!N210&" bar" -> 1,5 - 3 bar | E44: ='Anerkannte Düsen (2)'!M203&" - "&'Anerkannte Düsen (2)'!N203&" bar" -> 1,5 - 3 bar | F44: ='Anerkannte Düsen (2)'!O203&" - "&'Anerkannte Düsen (2)'!P203&" bar" -> 1,5 - 2 bar | H44: ='Anerkannte Düsen (2)'!M202&" - "&'Anerkannte Düsen (2)'!N202&" bar" -> 1,5 - 6 bar | I44: ='Anerkannte Düsen (2)'!O202&" - "&'Anerkannte Düsen (2)'!P202&" bar" -> 1,5 - 2 bar | J44: ='Anerkannte Düsen (2)'!Q202&" bar" -> 1,5 bar | K44: ='Anerkannte Düsen (2)'!M204&" - "&'Anerkannte Düsen (2)'!N204&" bar" -> 1,5 - 6 bar | L44: ='Anerkannte Düsen (2)'!O204&" - "&'Anerkannte Düsen (2)'!P204&" bar" -> 1,5 - 6 bar | M44: ='Anerkannte Düsen (2)'!Q204&" bar" -> 1,5 bar | N44: ='Anerkannte Düsen (2)'!M211&" - "&'Anerkannte Düsen (2)'!N211&" bar" -> 1,5 - 6 bar | O44: ='Anerkannte Düsen (2)'!O211&" - "&'Anerkannte Düsen (2)'!P211&" bar" -> 1,5 - 6 bar
A45: Guardian Air Twin | E45: ='Anerkannte Düsen (2)'!M180&" - "&'Anerkannte Düsen (2)'!N180&" bar" -> 2 - 2,5 bar | H45: ='Anerkannte Düsen (2)'!M181&" - "&'Anerkannte Düsen (2)'!N181&" bar" -> 2 - 3 bar | K45: ='Anerkannte Düsen (2)'!M182&" - "&'Anerkannte Düsen (2)'!N182&" bar" -> 2 - 2,5 bar | N45: ='Anerkannte Düsen (2)'!M183&" - "&'Anerkannte Düsen (2)'!N183&" bar" -> 2 - 3 bar | Q45: ='Anerkannte Düsen (2)'!M184&" - "&'Anerkannte Düsen (2)'!N184&" bar" -> 2 - 4 bar
A46: JohnDeere PSGAT | E46: ='Anerkannte Düsen (2)'!M180&" - "&'Anerkannte Düsen (2)'!N180&" bar" -> 2 - 2,5 bar | H46: ='Anerkannte Düsen (2)'!M181&" - "&'Anerkannte Düsen (2)'!N181&" bar" -> 2 - 3 bar | K46: ='Anerkannte Düsen (2)'!M182&" - "&'Anerkannte Düsen (2)'!N182&" bar" -> 2 - 2,5 bar | N46: ='Anerkannte Düsen (2)'!M183&" - "&'Anerkannte Düsen (2)'!N183&" bar" -> 2 - 3 bar | Q46: ='Anerkannte Düsen (2)'!M184&" - "&'Anerkannte Düsen (2)'!N184&" bar" -> 2 - 4 bar
A50: Randdüsen
A51: ID 120° + IS 80° | B51: ='Anerkannte Düsen (2)'!M239&" - "&'Anerkannte Düsen (2)'!N239&" bar" -> 3 - 3,5 bar | E51: ='Anerkannte Düsen (2)'!M102&" - "&'Anerkannte Düsen (2)'!N102&" bar" -> 2 - 5 bar | H51: ='Anerkannte Düsen (2)'!M107&" - "&'Anerkannte Düsen (2)'!N107&" bar" -> 3 - 8 bar | I51: ='Anerkannte Düsen (2)'!O107&" bar" -> 3 bar | K51: ='Anerkannte Düsen (2)'!M112&" - "&'Anerkannte Düsen (2)'!N112&" bar" -> 2 - 5 bar | L51: ='Anerkannte Düsen (2)'!O112&" bar" -> 2 bar | N51: ='Anerkannte Düsen (2)'!M243&" - "&'Anerkannte Düsen (2)'!N243&" bar" -> 2 - 8 bar | O51: ='Anerkannte Düsen (2)'!O243&" - "&'Anerkannte Düsen (2)'!P243&" bar" -> 2 - 8 bar
A52: ID3 120° POM+ IS 80° | B52: ='Anerkannte Düsen (2)'!M240&" - "&'Anerkannte Düsen (2)'!N240&" bar" -> 3 - 6 bar | E52: ='Anerkannte Düsen (2)'!M105&" - "&'Anerkannte Düsen (2)'!N105&" bar" -> 2 - 7 bar | F52: ='Anerkannte Düsen (2)'!O105&" - "&'Anerkannte Düsen (2)'!P105&" bar" -> 3 - 4 bar | G52: ='Anerkannte Düsen (2)'!Q105&" - "&'Anerkannte Düsen (2)'!R105&" bar" -> 2 - 2,5 bar | H52: ='Anerkannte Düsen (2)'!M110&" - "&'Anerkannte Düsen (2)'!N110&" bar" -> 3 - 8 bar | I52: ='Anerkannte Düsen (2)'!O110&" - "&'Anerkannte Düsen (2)'!P110&" bar" -> 3 - 4 bar | J52: ='Anerkannte Düsen (2)'!Q110&" - "&'Anerkannte Düsen (2)'!R110&" bar" -> 2 - 3 bar | K52: ='Anerkannte Düsen (2)'!M114&" - "&'Anerkannte Düsen (2)'!N114&" bar" -> 2 - 8 bar | L52: ='Anerkannte Düsen (2)'!O114&" - "&'Anerkannte Düsen (2)'!P114&" bar" -> 2 - 6 bar | M52: ='Anerkannte Düsen (2)'!Q114&" - "&'Anerkannte Düsen (2)'!R114&" bar" -> 2 - 3 bar | N52: ='Anerkannte Düsen (2)'!M241&" - "&'Anerkannte Düsen (2)'!N241&" bar" -> 2 - 8 bar | O52: ='Anerkannte Düsen (2)'!O241&" - "&'Anerkannte Düsen (2)'!P241&" bar" -> 2 - 6 bar | P52: ='Anerkannte Düsen (2)'!Q241&" - "&'Anerkannte Düsen (2)'!R241&" bar" -> 2 - 3 bar
A53: ID 120°-C + IS 80° | K53: ='Anerkannte Düsen (2)'!M112&" - "&'Anerkannte Düsen (2)'!N112&" bar" -> 2 - 5 bar | N53: ='Anerkannte Düsen (2)'!M243&" - "&'Anerkannte Düsen (2)'!N243&" bar" -> 2 - 8 bar | O53: ='Anerkannte Düsen (2)'!O243&" - "&'Anerkannte Düsen (2)'!P243&" bar" -> 2 - 8 bar | P53: ='Anerkannte Düsen (2)'!Q243&"bar" -> 2bar
A55: IDK 120° + IDKS 80° | E55: ='Anerkannte Düsen (2)'!M136&" - "&'Anerkannte Düsen (2)'!N136&" bar" -> 1,5 - 2 bar | H55: ='Anerkannte Düsen (2)'!M139&" - "&'Anerkannte Düsen (2)'!N139&" bar" -> 1,5 - 2 bar | K55: ='Anerkannte Düsen (2)'!M143&" - "&'Anerkannte Düsen (2)'!N143&" bar" -> 1 - 3 bar | L55: ='Anerkannte Düsen (2)'!O143&" bar" -> 1 bar | N55: ='Anerkannte Düsen (2)'!M147&" - "&'Anerkannte Düsen (2)'!N147&" bar" -> 1 - 4 bar | O55: ='Anerkannte Düsen (2)'!O147&" - "&'Anerkannte Düsen (2)'!P147&" bar" -> 1 - 1,5 bar | P55: ='Anerkannte Düsen (2)'!Q147&" bar" -> 1 bar | Q55: ='Anerkannte Düsen (2)'!M238&" - "&'Anerkannte Düsen (2)'!N238&" bar" -> 1 - 6 bar | R55: ='Anerkannte Düsen (2)'!O238&" - "&'Anerkannte Düsen (2)'!P238&" bar" -> 1 - 3 bar | S55: ='Anerkannte Düsen (2)'!Q238&" bar" -> 1 bar
A56: IDKN 120° + IDKS 80° | H56: ='Anerkannte Düsen (2)'!M140&" - "&'Anerkannte Düsen (2)'!N140&" bar" -> 1,5 - 3 bar | I56: ='Anerkannte Düsen (2)'!O140&" bar" -> 1,5 bar | J56: ='Anerkannte Düsen (2)'!Q140&" bar" -> 1 bar | K56: ='Anerkannte Düsen (2)'!M144&" - "&'Anerkannte Düsen (2)'!N144&" bar" -> 1 - 3 bar | L56: ='Anerkannte Düsen (2)'!O144&" - "&'Anerkannte Düsen (2)'!P144&" bar" -> 1 - 1,5 bar | M56: ='Anerkannte Düsen (2)'!Q144&" bar" -> 1 bar
A57: IDKT 120° + IDKS 80° | E57: ='Anerkannte Düsen (2)'!M137&" - "&'Anerkannte Düsen (2)'!N137&" bar" -> 1,5 - 3 bar | H57: ='Anerkannte Düsen (2)'!M141&" - "&'Anerkannte Düsen (2)'!N141&" bar" -> 1,5 - 4 bar | I57: ='Anerkannte Düsen (2)'!O141&" - "&'Anerkannte Düsen (2)'!P141&" bar" -> 1,5 - 2 bar | J57: ='Anerkannte Düsen (2)'!Q141&" bar" -> 1,5 bar | K57: ='Anerkannte Düsen (2)'!M145&" - "&'Anerkannte Düsen (2)'!N145&" bar" -> 1 - 2 bar | L57: ='Anerkannte Düsen (2)'!O145&" - "&'Anerkannte Düsen (2)'!P145&" bar" -> 1 - 1,5 bar | M57: ='Anerkannte Düsen (2)'!Q145&" bar" -> 1 bar | N57: ='Anerkannte Düsen (2)'!M148&" - "&'Anerkannte Düsen (2)'!N148&" bar" -> 1 - 3 bar | O57: ='Anerkannte Düsen (2)'!O148&" - "&'Anerkannte Düsen (2)'!P148&" bar" -> 1 - 1,5 bar | P57: ='Anerkannte Düsen (2)'!Q148&" bar" -> 1 bar | Q57: ='Anerkannte Düsen (2)'!M238&" - "&'Anerkannte Düsen (2)'!N238&" bar" -> 1 - 6 bar | R57: ='Anerkannte Düsen (2)'!O238&" - "&'Anerkannte Düsen (2)'!P238&" bar" -> 1 - 3 bar | S57: ='Anerkannte Düsen (2)'!Q238&" bar" -> 1 bar
B62: Randdüse - Normal 02 - 025 | E62: Randdüse - Normal 025 - 03 | H62: Randdüse - Normal 03 - 04 | K62: Randdüse - Normal 04 - 05
A63: AI/AIC 110° + AIUB 85° | B63: ='Anerkannte Düsen (2)'!M150&" - "&'Anerkannte Düsen (2)'!N150&" bar" -> 2 - 4 bar | C63: ='Anerkannte Düsen (2)'!O150&" bar" -> 2 bar | E63: ='Anerkannte Düsen (2)'!M116&" - "&'Anerkannte Düsen (2)'!N116&" bar" -> 2,5 - 8 bar | F63: ='Anerkannte Düsen (2)'!O116&" bar" -> 2,5 bar | H63: ='Anerkannte Düsen (2)'!M118&" - "&'Anerkannte Düsen (2)'!N118&" bar" -> 2,5 - 4 bar | I63: ='Anerkannte Düsen (2)'!O118&" - "&'Anerkannte Düsen (2)'!P118&" bar" -> 2,5 - 3 bar | K63: ='Anerkannte Düsen (2)'!M121&" - "&'Anerkannte Düsen (2)'!N121&" bar" -> 2 - 5 bar | L63: ='Anerkannte Düsen (2)'!O121&" - "&'Anerkannte Düsen (2)'!P121&" bar" -> 2 - 3 bar | M63: ='Anerkannte Düsen (2)'!Q121&" - "&'Anerkannte Düsen (2)'!R121&" bar" -> 2 - 2,5 bar
A64: AVI + Airmix OC | E64: ='Anerkannte Düsen (2)'!M191&" - "&'Anerkannte Düsen (2)'!N191&" bar" -> 3 - 7 bar | F64: ='Anerkannte Düsen (2)'!O191&" bar" -> 3 bar | H64: ='Anerkannte Düsen (2)'!M196&" - "&'Anerkannte Düsen (2)'!N196&" bar" -> 2,5 - 7 bar | I64: ='Anerkannte Düsen (2)'!O196&" bar" -> 2,5 bar
A65: AVI Twin 110° + Airmix OC | E65: ='Anerkannte Düsen (2)'!M194&" - "&'Anerkannte Düsen (2)'!N194&" bar" -> 2 - 4 bar | H65: ='Anerkannte Düsen (2)'!M194&" - "&'Anerkannte Düsen (2)'!N194&" bar" -> 2 - 4 bar | I65: ='Anerkannte Düsen (2)'!O194&" bar" -> 2,5 bar
A66: HiSpeed 110° + Airmix OC | B66: ='Anerkannte Düsen (2)'!M237&" - "&'Anerkannte Düsen (2)'!N237&" bar" -> 2,5 - 6 bar | C66: ='Anerkannte Düsen (2)'!O237&" - "&'Anerkannte Düsen (2)'!P237&" bar" -> 2,5 - 3,5 bar | E66: ='Anerkannte Düsen (2)'!M196&" - "&'Anerkannte Düsen (2)'!N196&" bar" -> 2,5 - 7 bar | F66: ='Anerkannte Düsen (2)'!O196&" bar" -> 2,5 bar | H66: ='Anerkannte Düsen (2)'!M197&" - "&'Anerkannte Düsen (2)'!N197&" bar" -> 2 - 6 bar | I66: ='Anerkannte Düsen (2)'!O197&" - "&'Anerkannte Düsen (2)'!P197&" bar" -> 2 - 3 bar | J66: ='Anerkannte Düsen (2)'!Q197&" bar" -> 2 bar | K66: ='Anerkannte Düsen (2)'!M199&" - "&'Anerkannte Düsen (2)'!N199&" bar" -> 2 - 8 bar | L66: ='Anerkannte Düsen (2)'!O199&" - "&'Anerkannte Düsen (2)'!P199&" bar" -> 2 - 3 bar
A68: Airmix 110°/Nodrift + Airmix OC 80° | E68: ='Anerkannte Düsen (2)'!M189&" - "&'Anerkannte Düsen (2)'!N189&" bar" -> 1,5 - 2 bar | H68: ='Anerkannte Düsen (2)'!M193&" - "&'Anerkannte Düsen (2)'!N193&" bar" -> 1 - 2 bar | I68: ='Anerkannte Düsen (2)'!O193&" bar" -> 1 bar | K68: ='Anerkannte Düsen (2)'!M198&" - "&'Anerkannte Düsen (2)'!N198&" bar" -> 1 - 6 bar | L68: ='Anerkannte Düsen (2)'!O198&" - "&'Anerkannte Düsen (2)'!P198&" bar" -> 1 - 1,5 bar | M68: ='Anerkannte Düsen (2)'!Q198&" bar" -> 1 bar
A69: CVI Twin 110° / Airmix OC 80° | B69: ='Anerkannte Düsen (2)'!M236&" - "&'Anerkannte Düsen (2)'!N236&" bar" -> 1,5 - 3 bar | C69: ='Anerkannte Düsen (2)'!O236&" - "&'Anerkannte Düsen (2)'!P236&" bar" -> 1,5 - 2 bar | E69: ='Anerkannte Düsen (2)'!M190&" - "&'Anerkannte Düsen (2)'!N190&" bar" -> 1,5 - 6 bar | F69: ='Anerkannte Düsen (2)'!O190&" - "&'Anerkannte Düsen (2)'!P190&" bar" -> 1,5 - 2 bar | G69: ='Anerkannte Düsen (2)'!Q190&" bar" -> 1,5 bar | H69: ='Anerkannte Düsen (2)'!M195&" - "&'Anerkannte Düsen (2)'!N195&" bar" -> 1,5 - 6 bar | I69: ='Anerkannte Düsen (2)'!O195&" - "&'Anerkannte Düsen (2)'!P195&" bar" -> 1,5 - 6 bar | J69: ='Anerkannte Düsen (2)'!Q195&" bar" -> 1,5 bar | K69: ='Anerkannte Düsen (2)'!M200&" - "&'Anerkannte Düsen (2)'!N200&" bar" -> 1,5 - 6 bar | L69: ='Anerkannte Düsen (2)'!O200&" - "&'Anerkannte Düsen (2)'!P200&" bar" -> 1,5 - 6 bar
A73: Mischbestückung | B73: 02 | E73: 025 | H73: 03 | K73: 04 | N73: 05 | Q73: 06
A75: IDKT + 6x IDKN zum Einbau hinter der Spritze (Mittelteil) | H75: ='Anerkannte Düsen (2)'!M213&" - "&'Anerkannte Düsen (2)'!N213&" bar" -> 1 - 3 bar | I75: ='Anerkannte Düsen (2)'!O213&" - "&'Anerkannte Düsen (2)'!P213&" bar" -> 1 - 1,5 bar | J75: ='Anerkannte Düsen (2)'!Q213&" bar" -> 1 bar | K75: ='Anerkannte Düsen (2)'!M214&" - "&'Anerkannte Düsen (2)'!N214&" bar" -> 1 - 2 bar | L75: ='Anerkannte Düsen (2)'!O214&" - "&'Anerkannte Düsen (2)'!P214&" bar" -> 1 - 1,5 bar | M75: ='Anerkannte Düsen (2)'!Q214&" bar" -> 1 bar | N75: ='Anerkannte Düsen (2)'!M215&" - "&'Anerkannte Düsen (2)'!N215&" bar" -> 1 - 3 bar | O75: ='Anerkannte Düsen (2)'!O215&" - "&'Anerkannte Düsen (2)'!P215&" bar" -> 1 - 1,5 bar | P75: ='Anerkannte Düsen (2)'!Q215&" bar" -> 1 bar | Q75: ='Anerkannte Düsen (2)'!M218&" - "&'Anerkannte Düsen (2)'!N218&" bar" -> 1 - 6 bar | R75: ='Anerkannte Düsen (2)'!O218&" - "&'Anerkannte Düsen (2)'!P218&" bar" -> 1 - 2 bar | S75: ='Anerkannte Düsen (2)'!Q218&" bar" -> 1 bar
A77: AITTJ60 + 6x AI/AIC zum Einbau hinter der Spritze (Mittelteil) | H77: ='Anerkannte Düsen (2)'!M222&" - "&'Anerkannte Düsen (2)'!N222&" bar" -> 2 - 5 bar | I77: ='Anerkannte Düsen (2)'!O222&" bar" -> 2,5 bar | K77: ='Anerkannte Düsen (2)'!M223&" - "&'Anerkannte Düsen (2)'!N223&" bar" -> 2 - 5 bar | L77: ='Anerkannte Düsen (2)'!O223&" bar" -> 2 bar
N80: 50 | O80: 75 | P80: 90 | Q80: 95
A81: Vorauflauf
A82: Syngenta 130-05 | N82: ='Anerkannte Düsen (2)'!M219&" - "&'Anerkannte Düsen (2)'!N219&" bar" -> 1,5 - 8 bar | O82: ='Anerkannte Düsen (2)'!O219&" - "&'Anerkannte Düsen (2)'!P219&" bar" -> 1,5 - 8 bar | P82: ='Anerkannte Düsen (2)'!Q219&" - "&'Anerkannte Düsen (2)'!R219&" bar" -> 1,5 - 6 bar | Q82: ='Anerkannte Düsen (2)'!S219&" - "&'Anerkannte Düsen (2)'!T219&" bar" -> 1,5 - 5 bar
A83: Lechler PRE 130-05 | N83: ='Anerkannte Düsen (2)'!M234&" - "&'Anerkannte Düsen (2)'!N234&" bar" -> 1,5 - 8 bar | O83: ='Anerkannte Düsen (2)'!O234&" - "&'Anerkannte Düsen (2)'!P234&" bar" -> 1,5 - 8 bar | P83: ='Anerkannte Düsen (2)'!Q234&" - "&'Anerkannte Düsen (2)'!R234&" bar" -> 1,5 - 6 bar | Q83: ='Anerkannte Düsen (2)'!S234&" - "&'Anerkannte Düsen (2)'!T234&" bar" -> 1,5 - 5 bar
A87: 80° Düsen / 25 cm Düsenabstand
A89: CVI 80 02 | B89: ='Anerkannte Düsen (2)'!M224&" - "&'Anerkannte Düsen (2)'!N224&" bar" -> 3 - 8 bar | C89: ='Anerkannte Düsen (2)'!O224&" - "&'Anerkannte Düsen (2)'!P224&" bar" -> 3 - 8 bar | D89: ='Anerkannte Düsen (2)'!Q224&" - "&'Anerkannte Düsen (2)'!R224&" bar" -> 3 - 8 bar
A99: letzte Änderung | B99: 2016-03-18
B103: von | C103: bis | D103: max
A104: kompakte | B104: 2 | C104: 3 | D104: 6
A105: lange | B105: 4 | C105: 6 | D105: 8
A106: kompakte 90 | B106: 2 | C106: 3 | D106: 6
A107: lange 90 | B107: 4 | C107: 6 | D107: 8

Sheet Doppelkompakt mit 90
A2: 200 | B2: gewünschte Wasseraufwandmenge in l/ha | G2: zurück zur Übersicht
A3: Daten in die gelben Felder eintragen
A4: 6 | B4: Fahrgeschwindigkeit in km/hWasseraufwandmenge in l/ha
A7: Düsengröße/-farbe | B7: ="02" -> 02 | E7: ="025" -> 025 | H7: ="03" -> 03 | K7: ="04" -> 04 | N7: ="05" -> 05 | Q7: ="06" -> 06
A8: Spritzdruck* | B8: =IF(POWER((($A$2*0.5*$A$4)/600)*SQRT(3)/0.8,2)<1,"",POWER((($A$2*0.5*$A$4)/600)*SQRT(3)/0.8,2)) -> 4.6875 | C8: =IF(POWER((($D$6*0.5*$H$6)/600)*SQRT(3)/1,2)<1,"",POWER((($D$6*0.5*$H$6)/600)*SQRT(3)/1,2)) ->  | D8: =IF(POWER((($D$6*0.5*$H$6)/600)*SQRT(3)/1,2)<1,"",POWER((($D$6*0.5*$H$6)/600)*SQRT(3)/1,2)) ->  | E8: =IF(POWER((($A$2*0.5*$A$4)/600)*SQRT(3)/1,2)<1,"",POWER((($A$2*0.5*$A$4)/600)*SQRT(3)/1,2)) -> 3 | F8: =IF(POWER((($D$6*0.5*$H$6)/600)*SQRT(3)/1,2)<1,"",POWER((($D$6*0.5*$H$6)/600)*SQRT(3)/1,2)) ->  | G8: =IF(POWER((($D$6*0.5*$H$6)/600)*SQRT(3)/1,2)<1,"",POWER((($D$6*0.5*$H$6)/600)*SQRT(3)/1,2)) ->  | H8: =IF(POWER((($A$2*0.5*$A$4)/600)*SQRT(3)/1.2,2)<1,"",POWER((($A$2*0.5*$A$4)/600)*SQRT(3)/1.2,2)) -> 2.083333333 | I8: =IF(POWER((($D$6*0.5*$H$6)/600)*SQRT(3)/1,2)<1,"",POWER((($D$6*0.5*$H$6)/600)*SQRT(3)/1,2)) ->  | K8: =IF(POWER((($A$2*0.5*$A$4)/600)*SQRT(3)/1.6,2)<1,"",POWER((($A$2*0.5*$A$4)/600)*SQRT(3)/1.6,2)) -> 1.171875 | L8: =IF(POWER((($D$6*0.5*$H$6)/600)*SQRT(3)/1,2)<1,"",POWER((($D$6*0.5*$H$6)/600)*SQRT(3)/1,2)) ->  | N8: =IF(POWER((($A$2*0.5*$A$4)/600)*SQRT(3)/2,2)<1,"",POWER((($A$2*0.5*$A$4)/600)*SQRT(3)/2,2)) ->  | O8: =IF(POWER((($D$6*0.5*$H$6)/600)*SQRT(3)/1,2)<1,"",POWER((($D$6*0.5*$H$6)/600)*SQRT(3)/1,2)) ->  | Q8: =IF(POWER((($A$2*0.5*$A$4)/600)*SQRT(3)/2.4,2)<1,"",POWER((($A$2*0.5*$A$4)/600)*SQRT(3)/2.4,2)) ->  | R8: =IF(POWER((($D$6*0.5*$H$6)/600)*SQRT(3)/1,2)<1,"",POWER((($D$6*0.5*$H$6)/600)*SQRT(3)/1,2)) -> 
A9: Volumenstrom/Düse | B9: =(0.8*SQRT(B8)/SQRT(3)) -> 1
A10: Abdriftminderungsklasse | B10: 50 | C10: 75 | D10: 90 | E10: 50 | F10: 75 | G10: 90 | H10: 50 | I10: 75 | J10: 90 | K10: 50 | L10: 75 | M10: 90 | N10: 50 | O10: 75 | P10: 90 | Q10: 50 | R10: 75 | S10: 90
A12: IDKT C www.lechler.de | H12: =IF($H$8<6,Abdriftminderungsklasse!H40,"") -> 1,5 - 3 bar | I12: =IF($H$8<6,Abdriftminderungsklasse!I40,"") -> 1,5 bar | K12: =IF($K$8<6,Abdriftminderungsklasse!K40,"") -> 1 - 3 bar | L12: =IF($K$8<6,Abdriftminderungsklasse!L40,"") -> 1 - 1,5 bar | M12: =IF($K$8<6,Abdriftminderungsklasse!M40,"") -> 1 bar | N12: =IF($N$8<6,Abdriftminderungsklasse!N40,"") ->  | O12: =IF($N$8<6,Abdriftminderungsklasse!O40,"") ->  | P12: =IF($N$8<6,Abdriftminderungsklasse!P40,"") -> 
A13: IDKT POM www.lechler.de | B13: =IF($B$8<6,Abdriftminderungsklasse!B41,"") -> 1,5 - 5 bar | C13: =IF($B$8<6,Abdriftminderungsklasse!C41,"") -> 1,5 - 3 bar | D13: =IF($B$8<6,Abdriftminderungsklasse!D41,"") -> 1,5 bar | E13: =IF($E$8<6,Abdriftminderungsklasse!E41,"") -> 1,5 - 3 bar | F13: =IF($E$8<6,Abdriftminderungsklasse!F41,"") -> 1,5 - 2 bar | G13: =IF($E$8<6,Abdriftminderungsklasse!G41,"") -> 1,5 bar | H13: =IF($H$8<6,Abdriftminderungsklasse!H41,"") -> 1 - 4 bar | I13: =IF($H$8<6,Abdriftminderungsklasse!I41,"") -> 1 - 2 bar | J13: =IF($H$8<6,Abdriftminderungsklasse!J41,"") -> 1 - 1,5 bar | K13: =IF($K$8<6,Abdriftminderungsklasse!K41,"") -> 1 - 2 bar | L13: =IF($K$8<6,Abdriftminderungsklasse!L41,"") -> 1 - 1,5 bar | M13: =IF($K$8<6,Abdriftminderungsklasse!M41,"") -> 1 bar | N13: =IF($N$8<6,Abdriftminderungsklasse!N41,"") ->  | O13: =IF($N$8<6,Abdriftminderungsklasse!O41,"") ->  | P13: =IF($N$8<6,Abdriftminderungsklasse!P41,"") ->  | Q13: =IF($Q$8<6,Abdriftminderungsklasse!Q41,"") ->  | R13: =IF($Q$8<6,Abdriftminderungsklasse!R41,"") ->  | S13: =IF($Q$8<6,Abdriftminderungsklasse!S41,"") -> 
A14: MinidriftDuo www.hardi-gmbh.com/de/Home.aspx | H14: =IF($H$8<6,Abdriftminderungsklasse!H43,"") -> 1 - 4 bar | I14: =IF($H$8<6,Abdriftminderungsklasse!I43,"") -> 1 - 2 bar | J14: =IF($H$8<6,Abdriftminderungsklasse!J43,"") -> 1 - 1,5 bar | K14: =IF($K$8<6,Abdriftminderungsklasse!K43,"") -> 1 - 2 bar | L14: =IF($K$8<6,Abdriftminderungsklasse!L43,"") -> 1 - 1,5 bar | M14: =IF($K$8<6,Abdriftminderungsklasse!M43,"") -> 1 bar | N14: =IF($N$8<6,Abdriftminderungsklasse!N43,"") ->  | O14: =IF($N$8<6,Abdriftminderungsklasse!O43,"") ->  | P14: =IF($N$8<6,Abdriftminderungsklasse!P43,"") -> 
A15: CVI Twin www.agrotop.com | H15: =IF($H$8<6,Abdriftminderungsklasse!H44,"") -> 1,5 - 6 bar | I15: =IF($H$8<6,Abdriftminderungsklasse!I44,"") -> 1,5 - 2 bar | J15: =IF($H$8<6,Abdriftminderungsklasse!J44,"") -> 1,5 bar | K15: =IF($K$8<6,Abdriftminderungsklasse!K44,"") -> 1,5 - 6 bar | L15: =IF($K$8<6,Abdriftminderungsklasse!L44,"") -> 1,5 - 6 bar | M15: =IF($K$8<6,Abdriftminderungsklasse!M44,"") -> 1,5 bar
A17: *Der angegebene Druck ist ein tabellarischer Wert, da in jedem Pflanzenschutzgerät Druckverluste auftreten, muss das Gerät vor Inbetriebnahme ausgelitert werden Gültig nur für ISO 10625 genormte Düsen bei einem Düsenabstand von 50 cm! Für Vollständigkeit und Richtigkeit wird keine Gewähr übernommen

Sheet 25cm Düsenabstand
A2: 200 | B2: gewünschte Wasseraufwandmenge in l/ha | G2: zurück zur Übersicht
A3: Daten in die gelben Felder eintragen
A4: 10 | B4: Fahrgeschwindigkeit in km/hWasseraufwandmenge in l/ha
A7: Düsengröße/-farbe | B7: ="02" -> 02 | E7: ="025" -> 025 | H7: ="03" -> 03 | K7: ="04" -> 04 | N7: ="05" -> 05 | Q7: ="06" -> 06
A8: Spritzdruck* | B8: =IF(POWER((($A$2*0.25*$A$4)/600)*SQRT(3)/0.8,2)<1,"",POWER((($A$2*0.25*$A$4)/600)*SQRT(3)/0.8,2)) -> 3.255208333 | C8: =IF(POWER((($D$6*0.5*$H$6)/600)*SQRT(3)/1,2)<1,"",POWER((($D$6*0.5*$H$6)/600)*SQRT(3)/1,2)) ->  | D8: =IF(POWER((($D$6*0.5*$H$6)/600)*SQRT(3)/1,2)<1,"",POWER((($D$6*0.5*$H$6)/600)*SQRT(3)/1,2)) ->  | E8: =IF(POWER((($A$2*0.25*$A$4)/600)*SQRT(3)/1,2)<1,"",POWER((($A$2*0.25*$A$4)/600)*SQRT(3)/1,2)) -> 2.083333333 | F8: =IF(POWER((($D$6*0.5*$H$6)/600)*SQRT(3)/1,2)<1,"",POWER((($D$6*0.5*$H$6)/600)*SQRT(3)/1,2)) ->  | G8: =IF(POWER((($D$6*0.5*$H$6)/600)*SQRT(3)/1,2)<1,"",POWER((($D$6*0.5*$H$6)/600)*SQRT(3)/1,2)) ->  | H8: =IF(POWER((($A$2*0.25*$A$4)/600)*SQRT(3)/1.2,2)<1,"",POWER((($A$2*0.25*$A$4)/600)*SQRT(3)/1.2,2)) -> 1.446759259 | I8: =IF(POWER((($D$6*0.5*$H$6)/600)*SQRT(3)/1,2)<1,"",POWER((($D$6*0.5*$H$6)/600)*SQRT(3)/1,2)) ->  | K8: =IF(POWER((($A$2*0.25*$A$4)/600)*SQRT(3)/1.6,2)<1,"",POWER((($A$2*0.255*$A$4)/600)*SQRT(3)/1.6,2)) ->  | L8: =IF(POWER((($D$6*0.5*$H$6)/600)*SQRT(3)/1,2)<1,"",POWER((($D$6*0.5*$H$6)/600)*SQRT(3)/1,2)) ->  | N8: =IF(POWER((($A$2*0.25*$A$4)/600)*SQRT(3)/2,2)<1,"",POWER((($A$2*0.25*$A$4)/600)*SQRT(3)/2,2)) ->  | O8: =IF(POWER((($D$6*0.5*$H$6)/600)*SQRT(3)/1,2)<1,"",POWER((($D$6*0.5*$H$6)/600)*SQRT(3)/1,2)) ->  | Q8: =IF(POWER((($A$2*0.25*$A$4)/600)*SQRT(3)/2.4,2)<1,"",POWER((($A$2*0.25*$A$4)/600)*SQRT(3)/2.4,2)) ->  | R8: =IF(POWER((($D$6*0.5*$H$6)/600)*SQRT(3)/1,2)<1,"",POWER((($D$6*0.5*$H$6)/600)*SQRT(3)/1,2)) -> 
A9: Volumenstrom/Düse | B9: =(0.8*SQRT(B8)/SQRT(3)) -> 0.8333333333
A10: Abdriftminderungsklasse | B10: 50 | C10: 75 | D10: 90 | E10: 50 | F10: 75 | G10: 90 | H10: 50 | I10: 75 | J10: 90 | K10: 50 | L10: 75 | M10: 90 | N10: 50 | O10: 75 | P10: 90 | Q10: 50 | R10: 75 | S10: 90
A13: CVI 80° www.agrotop.com | B13: =IF($B$8<6,Abdriftminderungsklasse!B15,"") -> 3 - 8 bar | C13: =IF($B$8<6,Abdriftminderungsklasse!C15,"") -> 3 - 8 bar | D13: =IF($B$8<6,Abdriftminderungsklasse!D15,"") -> 3 - 8 bar
A17: *Der angegebene Druck ist ein tabellarischer Wert, da in jedem Pflanzenschutzgerät Druckverluste auftreten, muss das Gerät vor Inbetriebnahme ausgelitert werden Gültig nur für ISO 10625 genormte Düsen bei einem Düsenabstand von 50 cm! Für Vollständigkeit und Richtigkeit wird keine Gewähr übernommen

Sheet kompakt<90%
A2: 150 | B2: gewünschte Wasseraufwandmenge in l/ha | G2: zurück zur Übersicht
A3: Daten in die gelben Felder eintragen
A4: 10 | B4: Fahrgeschwindigkeit in km/hWasseraufwandmenge in l/ha
A7: Düsengröße/-farbe | B7: ="025" -> 025 | E7: ="03" -> 03 | H7: ="04" -> 04 | K7: ="05" -> 05 | N7: ="06" -> 06
A8: Spritzdruck* | B8: =IF(POWER((($A$2*0.5*$A$4)/600)*SQRT(3)/1,2)<1,"",POWER((($A$2*0.5*$A$4)/600)*SQRT(3)/1,2)) -> 4.6875 | C8: =IF(POWER((($D$6*0.5*$H$6)/600)*SQRT(3)/1,2)<1,"",POWER((($D$6*0.5*$H$6)/600)*SQRT(3)/1,2)) ->  | D8: =IF(POWER((($D$6*0.5*$H$6)/600)*SQRT(3)/1,2)<1,"",POWER((($D$6*0.5*$H$6)/600)*SQRT(3)/1,2)) ->  | E8: =IF(POWER((($A$2*0.5*$A$4)/600)*SQRT(3)/1.2,2)<1,"",POWER((($A$2*0.5*$A$4)/600)*SQRT(3)/1.2,2)) -> 3.255208333 | F8: =IF(POWER((($D$6*0.5*$H$6)/600)*SQRT(3)/1,2)<1,"",POWER((($D$6*0.5*$H$6)/600)*SQRT(3)/1,2)) ->  | G8: =IF(POWER((($D$6*0.5*$H$6)/600)*SQRT(3)/1,2)<1,"",POWER((($D$6*0.5*$H$6)/600)*SQRT(3)/1,2)) ->  | H8: =IF(POWER((($A$2*0.5*$A$4)/600)*SQRT(3)/1.6,2)<1,"",POWER((($A$2*0.5*$A$4)/600)*SQRT(3)/1.6,2)) -> 1.831054687 | I8: =IF(POWER((($D$6*0.5*$H$6)/600)*SQRT(3)/1,2)<1,"",POWER((($D$6*0.5*$H$6)/600)*SQRT(3)/1,2)) ->  | J8: =IF(POWER((($D$6*0.5*$H$6)/600)*SQRT(3)/1,2)<1,"",POWER((($D$6*0.5*$H$6)/600)*SQRT(3)/1,2)) ->  | K8: =IF(POWER((($A$2*0.5*$A$4)/600)*SQRT(3)/2,2)<1,"",POWER((($A$2*0.5*$A$4)/600)*SQRT(3)/2,2)) -> 1.171875 | L8: =IF(POWER((($D$6*0.5*$H$6)/600)*SQRT(3)/1,2)<1,"",POWER((($D$6*0.5*$H$6)/600)*SQRT(3)/1,2)) ->  | M8: =IF(POWER((($D$6*0.5*$H$6)/600)*SQRT(3)/1,2)<1,"",POWER((($D$6*0.5*$H$6)/600)*SQRT(3)/1,2)) ->  | N8: =IF(POWER((($A$2*0.5*$A$4)/600)*SQRT(3)/2.4,2)<1,"",POWER((($A$2*0.5*$A$4)/600)*SQRT(3)/2.4,2)) ->  | O8: =IF(POWER((($D$6*0.5*$H$6)/600)*SQRT(3)/1,2)<1,"",POWER((($D$6*0.5*$H$6)/600)*SQRT(3)/1,2)) ->  | P8: =IF(POWER((($D$6*0.5*$H$6)/600)*SQRT(3)/1,2)<1,"",POWER((($D$6*0.5*$H$6)/600)*SQRT(3)/1,2)) -> 
A9: Volumenstrom/Düse | B9: =(1*SQRT(B8)/SQRT(3)) -> 1.25
A10: Abdriftminderungsklasse | B10: 50 | C10: 75 | D10: 90 | E10: 50 | F10: 75 | G10: 90 | H10: 50 | I10: 75 | J10: 90 | K10: 50 | L10: 75 | M10: 90 | N10: 50 | O10: 75 | P10: 90
A12: AirMix www.agrotop.com | E12: =IF($E$8<6,Abdriftminderungsklasse!H4,"") -> 1,5 - 2 bar | H12: =IF($H$8<6,Abdriftminderungsklasse!K4,"") -> 1 - 2 bar | I12: =IF($H$8<6,Abdriftminderungsklasse!L4,"") -> 1 bar
A13: AirMix NoDrift www.agrotop.com | B13: =IF($B$8<6,Abdriftminderungsklasse!E5,"") -> 2,5 - 6 bar | E13: =IF($E$8<6,Abdriftminderungsklasse!H5,"") -> 3 - 4 bar | H13: =IF($H$8<6,Abdriftminderungsklasse!K5,"") -> 2 - 8 bar | I13: =IF($H$8<6,Abdriftminderungsklasse!L5,"") -> 2 - 2,5 bar
A14: IDK POM www.lechler.de | B14: =IF($B$8<6,Abdriftminderungsklasse!E6,"") -> 1,5 - 2 bar | E14: =IF($E$8<6,Abdriftminderungsklasse!H6,"") -> 1,5 - 2 bar | H14: =IF($H$8<6,Abdriftminderungsklasse!K6,"") -> 1 - 3 bar | I14: =IF($H$8<6,Abdriftminderungsklasse!L6,"") -> 1 bar
A15: IDK C www.lechler.de | K15: =IF($K$8<6,Abdriftminderungsklasse!N7,"") -> 1,5 - 4 bar | L15: =IF($K$8<6,Abdriftminderungsklasse!O7,"") -> 1,5 bar
A16: Minidrift (MD) www.hardi-gmbh.com/de | B16: =IF($B$8<6,Abdriftminderungsklasse!E8,"") -> 1,5 - 2 bar | E16: =IF($E$8<6,Abdriftminderungsklasse!H8,"") -> 1 - 2 bar | F16: =IF($E$8<6,Abdriftminderungsklasse!I8,"") -> 1 bar
A17: AIXR www.teejet.de | E17: =IF($E$8<6,Abdriftminderungsklasse!H9,"") -> 1,5 - 2 bar | H17: =IF($H$8<6,Abdriftminderungsklasse!K9,"") -> 1,5 - 3 bar | I17: =IF($H$8<6,Abdriftminderungsklasse!L9,"") -> 1,5 bar
A18: TurboTeejet (TT) www.teejet.de | E18: =IF($E$8<6,Abdriftminderungsklasse!H11,"") -> 1 - 1,5 bar | H18: =IF($H$8<6,Abdriftminderungsklasse!K11,"") -> 1 - 1,5 bar
A19: ULD / John Deere PSULDQ20 www.ppv-wellbrock.de/duesen | E19: =IF($E$8<6,Abdriftminderungsklasse!H10,"") -> 2,5 - 8 bar
A20: Guardian Air / John Deere PSLDAQ www.ppv-wellbrock.de/duesen | B20: =IF(B8<6,Abdriftminderungsklasse!B12,"") -> 1 - 2 bar | E20: =IF(E8<6,Abdriftminderungsklasse!H12,"") -> 1,5 - 2,5 bar | F20: =IF(E8<6,Abdriftminderungsklasse!I12,"") -> 1,5 bar | H20: =IF(H8<6,Abdriftminderungsklasse!K12,"") -> 1 - 2,5 bar | I20: =IF(H8<6,Abdriftminderungsklasse!L12,"") -> 1 - 1,5 bar | K20: =IF($K$8<6,Abdriftminderungsklasse!N12,"") -> 1 - 2,5 bar | L20: =IF($K$8<6,Abdriftminderungsklasse!O12,"") -> 1 - 1,5 bar
A23: *Der angegebene Druck ist ein tabellarischer Wert, da in jedem Pflanzenschutzgerät Druckverluste auftreten, muss das Gerät vor Inbetriebnahme ausgelitert werden Gültig nur für ISO 10625 genormte Düsen bei einem Düsenabstand von 50 cm! Für Vollständigkeit und Richtigkeit wird keine Gewähr übernommen

Sheet kompakt mit 90%
A2: 200 | B2: gewünschte Wasseraufwandmenge in l/ha | G2: zurück zur Übersicht
A3: Daten in die gelben Felder eintragen
A4: 10 | B4: Fahrgeschwindigkeit in km/hWasseraufwandmenge in l/ha
A7: Düsengröße/-farbe | B7: ="02" -> 02 | E7: ="025" -> 025 | H7: ="03" -> 03 | K7: ="04" -> 04 | N7: ="05" -> 05 | Q7: ="06" -> 06
A8: Spritzdruck* | B8: =IF(POWER((($A$2*0.5*$A$4)/600)*SQRT(3)/0.8,2)<1,"",POWER((($A$2*0.5*$A$4)/600)*SQRT(3)/0.8,2)) -> 13.02083333 | C8: =IF(POWER((($D$6*0.5*$H$6)/600)*SQRT(3)/1,2)<1,"",POWER((($D$6*0.5*$H$6)/600)*SQRT(3)/1,2)) ->  | D8: =IF(POWER((($D$6*0.5*$H$6)/600)*SQRT(3)/1,2)<1,"",POWER((($D$6*0.5*$H$6)/600)*SQRT(3)/1,2)) ->  | E8: =IF(POWER((($A$2*0.5*$A$4)/600)*SQRT(3)/1,2)<1,"",POWER((($A$2*0.5*$A$4)/600)*SQRT(3)/1,2)) -> 8.333333333 | F8: =IF(POWER((($D$6*0.5*$H$6)/600)*SQRT(3)/1,2)<1,"",POWER((($D$6*0.5*$H$6)/600)*SQRT(3)/1,2)) ->  | G8: =IF(POWER((($D$6*0.5*$H$6)/600)*SQRT(3)/1,2)<1,"",POWER((($D$6*0.5*$H$6)/600)*SQRT(3)/1,2)) ->  | H8: =IF(POWER((($A$2*0.5*$A$4)/600)*SQRT(3)/1.2,2)<1,"",POWER((($A$2*0.5*$A$4)/600)*SQRT(3)/1.2,2)) -> 5.787037037 | I8: =IF(POWER((($D$6*0.5*$H$6)/600)*SQRT(3)/1,2)<1,"",POWER((($D$6*0.5*$H$6)/600)*SQRT(3)/1,2)) ->  | K8: =IF(POWER((($A$2*0.5*$A$4)/600)*SQRT(3)/1.6,2)<1,"",POWER((($A$2*0.5*$A$4)/600)*SQRT(3)/1.6,2)) -> 3.255208333 | L8: =IF(POWER((($D$6*0.5*$H$6)/600)*SQRT(3)/1,2)<1,"",POWER((($D$6*0.5*$H$6)/600)*SQRT(3)/1,2)) ->  | N8: =IF(POWER((($A$2*0.5*$A$4)/600)*SQRT(3)/2,2)<1,"",POWER((($A$2*0.5*$A$4)/600)*SQRT(3)/2,2)) -> 2.083333333 | O8: =IF(POWER((($D$6*0.5*$H$6)/600)*SQRT(3)/1,2)<1,"",POWER((($D$6*0.5*$H$6)/600)*SQRT(3)/1,2)) ->  | Q8: =IF(POWER((($A$2*0.5*$A$4)/600)*SQRT(3)/2.4,2)<1,"",POWER((($A$2*0.5*$A$4)/600)*SQRT(3)/2.4,2)) -> 1.446759259 | R8: =IF(POWER((($D$6*0.5*$H$6)/600)*SQRT(3)/1,2)<1,"",POWER((($D$6*0.5*$H$6)/600)*SQRT(3)/1,2)) -> 
A9: Volumenstrom/Düse | B9: =(0.8*SQRT(B8)/SQRT(3)) -> 1.666666667
A10: Abdriftminderungsklasse | B10: 50 | C10: 75 | D10: 90 | E10: 50 | F10: 75 | G10: 90 | H10: 50 | I10: 75 | J10: 90 | K10: 50 | L10: 75 | M10: 90 | N10: 50 | O10: 75 | P10: 90 | Q10: 50 | R10: 75 | S10: 90
A13: IDKN www.lechler.de | H13: =IF($H$8<8,Abdriftminderungsklasse!H32,"") -> 1 - 3 bar | I13: =IF($H$8<8,Abdriftminderungsklasse!I32,"") -> 1 - 1,5 bar | J13: =IF($H$8<8,Abdriftminderungsklasse!J32,"") -> 1 bar | K13: =IF($K$8<8,Abdriftminderungsklasse!K32,"") -> 1 - 3 bar | L13: =IF($K$8<8,Abdriftminderungsklasse!L32,"") -> 1 - 1,5 bar | M13: =IF($K$8<8,Abdriftminderungsklasse!M32,"") -> 1 bar
A14: IDK POM www.lechler.de | N14: =IF($N$8<6,Abdriftminderungsklasse!N6,"") -> 1 - 4 bar | O14: =IF($N$8<6,Abdriftminderungsklasse!O6,"") -> 1 - 1,5 bar | P14: =IF($N$8<6,Abdriftminderungsklasse!P6,"") -> 1 bar | Q14: =IF($Q$8<6,Abdriftminderungsklasse!Q6,"") -> 1 - 6 bar | R14: =IF($Q$8<6,Abdriftminderungsklasse!R6,"") -> 1 - 3 bar | S14: =IF($Q$8<6,Abdriftminderungsklasse!S6,"") -> 1 bar
A15: IDK C www.lechler.de | K15: =IF($K$8<8,Abdriftminderungsklasse!K7,"") -> 1,5 - 3 bar | L15: =IF($K$8<8,Abdriftminderungsklasse!L7,"") -> 1,5 - 2 bar | M15: =IF($K$8<8,Abdriftminderungsklasse!M7,"") -> 1,5 bar
A16: AirMix www.agrotop.com | N16: =IF($N$8<6,Abdriftminderungsklasse!N4,"") -> 1 - 6 bar | O16: =IF($N$8<6,Abdriftminderungsklasse!O4,"") -> 1 - 1,5 bar | P16: =IF($N$8<6,Abdriftminderungsklasse!P4,"") -> 1 bar
A17: ULD / John Deere PSULDQ20 www.ppv-wellbrock.de/duesen | K17: =IF($K$8<6,Abdriftminderungsklasse!K10,"") -> 2,5 - 8 bar | L17: =IF($K$8<6,Abdriftminderungsklasse!L10,"") -> 2,5 - 8 bar | M17: =IF($K$8<6,Abdriftminderungsklasse!M10,"") -> 2,5 bar | N17: =IF($N$8<6,Abdriftminderungsklasse!N10,"") -> 2,5 - 8 bar | O17: =IF($N$8<6,Abdriftminderungsklasse!O10,"") -> 2,5 - 8 bar | P17: =IF($N$8<6,Abdriftminderungsklasse!P10,"") -> 2,5 - 8 bar
A18: AIXR www.teejet.de | N18: =IF($N$8<6,Abdriftminderungsklasse!N9,"") -> 1 - 6 bar | O18: =IF($N$8<6,Abdriftminderungsklasse!O9,"") -> 1 - 2,5 bar | P18: =IF($N$8<6,Abdriftminderungsklasse!P9,"") -> 1 - 1,5 bar
A19: 1/4 TTJ + QJ 4676-90 www.teejet.de | Q19: =IF($N$8<6,Abdriftminderungsklasse!Q13,"") -> 1 - 6 bar | R19: =IF($N$8<6,Abdriftminderungsklasse!R13,"") -> 1 - 4 bar | S19: =IF($N$8<6,Abdriftminderungsklasse!S13,"") -> 1 - 2 bar
A20: MD www.hardi-gmbh.com | K20: =IF($K$8<8,Abdriftminderungsklasse!K8,"") -> 1 - 3 bar | L20: =IF($K$8<8,Abdriftminderungsklasse!L8,"") -> 1 bar | M20: =IF($K$8<8,Abdriftminderungsklasse!M8,"") -> 1 bar | N20: =IF($N$8<8,Abdriftminderungsklasse!N8,"") -> 1 - 6 bar | O20: =IF($N$8<8,Abdriftminderungsklasse!O8,"") -> 1 - 1,5 bar | P20: =IF($N$8<8,Abdriftminderungsklasse!P8,"") -> 1 bar
A22: *Der angegebene Druck ist ein tabellarischer Wert, da in jedem Pflanzenschutzgerät Druckverluste auftreten, muss das Gerät vor Inbetriebnahme ausgelitert werden Gültig nur für ISO 10625 genormte Düsen bei einem Düsenabstand von 50 cm! Für Vollständigkeit und Richtigkeit wird keine Gewähr übernommen

Sheet Doppelkompakt<90
A2: 200 | B2: gewünschte Wasseraufwandmenge in l/ha | G2: zurück zur Übersicht
A3: Daten in die gelben Felder eintragen
A4: 8 | B4: Fahrgeschwindigkeit in km/hWasseraufwandmenge in l/ha
A7: Düsengröße/-farbe | B7: ="02" -> 02 | E7: ="025" -> 025 | H7: ="03" -> 03 | K7: ="04" -> 04 | N7: ="05" -> 05 | Q7: ="06" -> 06
A8: Spritzdruck* | B8: =IF(POWER((($A$2*0.5*$A$4)/600)*SQRT(3)/0.8,2)<1,"",POWER((($A$2*0.5*$A$4)/600)*SQRT(3)/0.8,2)) -> 8.333333333 | C8: =IF(POWER((($D$6*0.5*$H$6)/600)*SQRT(3)/1,2)<1,"",POWER((($D$6*0.5*$H$6)/600)*SQRT(3)/1,2)) ->  | D8: =IF(POWER((($D$6*0.5*$H$6)/600)*SQRT(3)/1,2)<1,"",POWER((($D$6*0.5*$H$6)/600)*SQRT(3)/1,2)) ->  | E8: =IF(POWER((($A$2*0.5*$A$4)/600)*SQRT(3)/1,2)<1,"",POWER((($A$2*0.5*$A$4)/600)*SQRT(3)/1,2)) -> 5.333333333 | F8: =IF(POWER((($D$6*0.5*$H$6)/600)*SQRT(3)/1,2)<1,"",POWER((($D$6*0.5*$H$6)/600)*SQRT(3)/1,2)) ->  | G8: =IF(POWER((($D$6*0.5*$H$6)/600)*SQRT(3)/1,2)<1,"",POWER((($D$6*0.5*$H$6)/600)*SQRT(3)/1,2)) ->  | H8: =IF(POWER((($A$2*0.5*$A$4)/600)*SQRT(3)/1.2,2)<1,"",POWER((($A$2*0.5*$A$4)/600)*SQRT(3)/1.2,2)) -> 3.703703704 | I8: =IF(POWER((($D$6*0.5*$H$6)/600)*SQRT(3)/1,2)<1,"",POWER((($D$6*0.5*$H$6)/600)*SQRT(3)/1,2)) ->  | K8: =IF(POWER((($A$2*0.5*$A$4)/600)*SQRT(3)/1.6,2)<1,"",POWER((($A$2*0.5*$A$4)/600)*SQRT(3)/1.6,2)) -> 2.083333333 | L8: =IF(POWER((($D$6*0.5*$H$6)/600)*SQRT(3)/1,2)<1,"",POWER((($D$6*0.5*$H$6)/600)*SQRT(3)/1,2)) ->  | N8: =IF(POWER((($A$2*0.5*$A$4)/600)*SQRT(3)/2,2)<1,"",POWER((($A$2*0.5*$A$4)/600)*SQRT(3)/2,2)) -> 1.333333333 | O8: =IF(POWER((($D$6*0.5*$H$6)/600)*SQRT(3)/1,2)<1,"",POWER((($D$6*0.5*$H$6)/600)*SQRT(3)/1,2)) ->  | Q8: =IF(POWER((($A$2*0.5*$A$4)/600)*SQRT(3)/2.4,2)<1,"",POWER((($A$2*0.5*$A$4)/600)*SQRT(3)/2.4,2)) ->  | R8: =IF(POWER((($D$6*0.5*$H$6)/600)*SQRT(3)/1,2)<1,"",POWER((($D$6*0.5*$H$6)/600)*SQRT(3)/1,2)) -> 
A9: Volumenstrom/Düse | B9: =(0.8*SQRT(B8)/SQRT(3)) -> 1.333333333
A10: Abdriftminderungsklasse | B10: 50 | C10: 75 | D10: 90 | E10: 50 | F10: 75 | G10: 90 | H10: 50 | I10: 75 | J10: 90 | K10: 50 | L10: 75 | M10: 90 | N10: 50 | O10: 75 | P10: 90 | Q10: 50 | R10: 75 | S10: 90
A12: IDKT C www.lechler.de | H12: =IF($H$8<6,Abdriftminderungsklasse!H40,"") -> 1,5 - 3 bar | I12: =IF($H$8<6,Abdriftminderungsklasse!I40,"") -> 1,5 bar
A13: CVI Twin www.agrotop.com | B13: =IF($E$8<6,Abdriftminderungsklasse!B44,"") -> 1,5 - 3 bar | E13: =IF($E$8<6,Abdriftminderungsklasse!E44,"") -> 1,5 - 3 bar | F13: =IF($E$8<6,Abdriftminderungsklasse!F44,"") -> 1,5 - 2 bar | K13: =IF($K$8<6,Abdriftminderungsklasse!N44,"") -> 1,5 - 6 bar | L13: =IF($K$8<6,Abdriftminderungsklasse!O44,"") -> 1,5 - 6 bar
A14: Guardian Air Twin / John Deere PSGAT www.hypro-eu.com | E14: =IF($E$8<6,Abdriftminderungsklasse!E45,"") -> 2 - 2,5 bar | H14: =IF($H$8<6,Abdriftminderungsklasse!H45,"") -> 2 - 3 bar | K14: =IF($K$8<6,Abdriftminderungsklasse!K45,"") -> 2 - 2,5 bar | N14: =IF($N$8<6,Abdriftminderungsklasse!N45,"") -> 2 - 3 bar | Q14: =IF($Q$8<6,Abdriftminderungsklasse!Q45,"") -> 
A16: *Der angegebene Druck ist ein tabellarischer Wert, da in jedem Pflanzenschutzgerät Druckverluste auftreten, muss das Gerät vor Inbetriebnahme ausgelitert werden Gültig nur für ISO 10625 genormte Düsen bei einem Düsenabstand von 50 cm! Für Vollständigkeit und Richtigkeit wird keine Gewähr übernommen

Sheet lange < 90
A2: 200 | B2: gewünschte Wasseraufwandmenge in l/ha | G2: zurück zur Übersicht
A3: Daten in die gelben Felder eintragen
A4: 7 | B4: Fahrgeschwindigkeit in km/hWasseraufwandmenge in l/ha
A7: Düsengröße/-farbe | B7: ="02" -> 02 | E7: ="025" -> 025 | H7: ="03" -> 03 | K7: ="04" -> 04 | N7: ="05" -> 05
A8: Spritzdruck* | B8: =IF(POWER((($A$2*0.5*$A$4)/600)*SQRT(3)/0.8,2)<1,"",POWER((($A$2*0.5*$A$4)/600)*SQRT(3)/0.8,2)) -> 6.380208333 | C8: =IF(POWER((($D$6*0.5*$H$6)/600)*SQRT(3)/1,2)<1,"",POWER((($D$6*0.5*$H$6)/600)*SQRT(3)/1,2)) ->  | D8: =IF(POWER((($D$6*0.5*$H$6)/600)*SQRT(3)/1,2)<1,"",POWER((($D$6*0.5*$H$6)/600)*SQRT(3)/1,2)) ->  | E8: =IF(POWER((($A$2*0.5*$A$4)/600)*SQRT(3)/1,2)<1,"",POWER((($A$2*0.5*$A$4)/600)*SQRT(3)/1,2)) -> 4.083333333 | F8: =IF(POWER((($D$6*0.5*$H$6)/600)*SQRT(3)/1,2)<1,"",POWER((($D$6*0.5*$H$6)/600)*SQRT(3)/1,2)) ->  | G8: =IF(POWER((($D$6*0.5*$H$6)/600)*SQRT(3)/1,2)<1,"",POWER((($D$6*0.5*$H$6)/600)*SQRT(3)/1,2)) ->  | H8: =IF(POWER((($A$2*0.5*$A$4)/600)*SQRT(3)/1.2,2)<1,"",POWER((($A$2*0.5*$A$4)/600)*SQRT(3)/1.2,2)) -> 2.835648148 | I8: =IF(POWER((($D$6*0.5*$H$6)/600)*SQRT(3)/1,2)<1,"",POWER((($D$6*0.5*$H$6)/600)*SQRT(3)/1,2)) ->  | K8: =IF(POWER((($A$2*0.5*$A$4)/600)*SQRT(3)/1.6,2)<1,"",POWER((($A$2*0.5*$A$4)/600)*SQRT(3)/1.6,2)) -> 1.595052083 | L8: =IF(POWER((($D$6*0.5*$H$6)/600)*SQRT(3)/1,2)<1,"",POWER((($D$6*0.5*$H$6)/600)*SQRT(3)/1,2)) ->  | N8: =IF(POWER((($A$2*0.5*$A$4)/600)*SQRT(3)/2,2)<1,"",POWER((($A$2*0.5*$A$4)/600)*SQRT(3)/2,2)) -> 1.020833333 | O8: =IF(POWER((($D$6*0.5*$H$6)/600)*SQRT(3)/1,2)<1,"",POWER((($D$6*0.5*$H$6)/600)*SQRT(3)/1,2)) ->  | R8: =IF(POWER((($D$6*0.5*$H$6)/600)*SQRT(3)/1,2)<1,"",POWER((($D$6*0.5*$H$6)/600)*SQRT(3)/1,2)) -> 
A9: Volumenstrom/Düse | B9: =(0.8*SQRT(B8)/SQRT(3)) -> 1.166666667
A10: Abdriftminderungsklasse | B10: 50 | C10: 75 | D10: 90 | E10: 50 | F10: 75 | G10: 90 | H10: 50 | I10: 75 | J10: 90 | K10: 50 | L10: 75 | M10: 90 | N10: 50 | O10: 75 | P10: 90
A12: ID www.lechler.de | B12: =IF($B$8<8,Abdriftminderungsklasse!B19,"") -> 3 - 3,5 bar | E12: =IF($E$8<8,Abdriftminderungsklasse!E19,"") -> 3 - 5 bar | H12: =IF($H$8<8,Abdriftminderungsklasse!H19,"") -> 3 - 8 bar | I12: =IF($H$8<8,Abdriftminderungsklasse!I19,"") -> 3 bar | K12: =IF($K$8<8,Abdriftminderungsklasse!K19,"") -> 3 - 5 bar | L12: =IF($K$8<8,Abdriftminderungsklasse!L19,"") -> 3 bar
A13: ID3 - POM (ID-120-XX-) www.lechler.de | B13: =IF($B$8<8,Abdriftminderungsklasse!B30,"") -> 2,5 - 6 bar
A14: S Injet www.hardi-gmbh.com/de | K14: =IF($K$8<8,Abdriftminderungsklasse!K20,"") -> 3 - 5 bar | L14: =IF($K$8<8,Abdriftminderungsklasse!L20,"") -> 3 bar
A15: AVI www.agrotop.com | H15: =IF($H$8<8,Abdriftminderungsklasse!H22,"") -> 3 - 7 bar | I15: =IF($H$8<8,Abdriftminderungsklasse!I22,"") -> 3 bar | K15: =IF($K$8<8,Abdriftminderungsklasse!K22,"") -> 3 - 7 bar | L15: =IF($K$8<8,Abdriftminderungsklasse!L22,"") -> 3 bar
A16: AI / AIC www.teejet.de | E16: =IF($E$8<8,Abdriftminderungsklasse!E23,"") -> 2 - 4 bar | F16: =IF($E$8<8,Abdriftminderungsklasse!F23,"") -> 2 bar | H16: =IF($H$8<8,Abdriftminderungsklasse!H23,"") -> 2,5 - 8 bar | I16: =IF($H$8<8,Abdriftminderungsklasse!I23,"") -> 2,5 bar | K16: =IF($K$8<8,Abdriftminderungsklasse!K23,"") -> 2,5 - 4 bar | L16: =IF($K$8<8,Abdriftminderungsklasse!L23,"") -> 2,5 - 3 bar
A17: TTI www.teejet.de | B17: =IF($B$8<8,Abdriftminderungsklasse!B31,"") -> 2 - 5 bar | C17: =IF($B$8<8,Abdriftminderungsklasse!C31,"") -> 2 - 2,5 bar
A20: *Der angegebene Druck ist ein tabellarischer Wert, da in jedem Pflanzenschutzgerät Druckverluste auftreten, muss das Gerät vor Inbetriebnahme ausgelitert werden Gültig nur für ISO 10625 genormte Düsen bei einem Düsenabstand von 50 cm! Für Vollständigkeit und Richtigkeit wird keine Gewähr übernommen

Sheet lang mit 90
A2: 200 | B2: gewünschte Wasseraufwandmenge in l/ha | G2: zurück zur Übersicht
A3: Daten in die gelben Felder eintragen
A4: 8 | B4: Fahrgeschwindigkeit in km/hWasseraufwandmenge in l/ha
A7: Düsengröße/-farbe | B7: ="02" -> 02 | E7: ="025" -> 025 | H7: ="03" -> 03 | K7: ="04" -> 04 | N7: ="05" -> 05 | Q7: ="06" -> 06
A8: Spritzdruck* | B8: =IF(POWER((($A$2*0.5*$A$4)/600)*SQRT(3)/0.8,2)<1,"",POWER((($A$2*0.5*$A$4)/600)*SQRT(3)/0.8,2)) -> 8.333333333 | C8: =IF(POWER((($D$6*0.5*$H$6)/600)*SQRT(3)/1,2)<1,"",POWER((($D$6*0.5*$H$6)/600)*SQRT(3)/1,2)) ->  | D8: =IF(POWER((($D$6*0.5*$H$6)/600)*SQRT(3)/1,2)<1,"",POWER((($D$6*0.5*$H$6)/600)*SQRT(3)/1,2)) ->  | E8: =IF(POWER((($A$2*0.5*$A$4)/600)*SQRT(3)/1,2)<1,"",POWER((($A$2*0.5*$A$4)/600)*SQRT(3)/1,2)) -> 5.333333333 | F8: =IF(POWER((($D$6*0.5*$H$6)/600)*SQRT(3)/1,2)<1,"",POWER((($D$6*0.5*$H$6)/600)*SQRT(3)/1,2)) ->  | G8: =IF(POWER((($D$6*0.5*$H$6)/600)*SQRT(3)/1,2)<1,"",POWER((($D$6*0.5*$H$6)/600)*SQRT(3)/1,2)) ->  | H8: =IF(POWER((($A$2*0.5*$A$4)/600)*SQRT(3)/1.2,2)<1,"",POWER((($A$2*0.5*$A$4)/600)*SQRT(3)/1.2,2)) -> 3.703703704 | I8: =IF(POWER((($D$6*0.5*$H$6)/600)*SQRT(3)/1,2)<1,"",POWER((($D$6*0.5*$H$6)/600)*SQRT(3)/1,2)) ->  | K8: =IF(POWER((($A$2*0.5*$A$4)/600)*SQRT(3)/1.6,2)<1,"",POWER((($A$2*0.5*$A$4)/600)*SQRT(3)/1.6,2)) -> 2.083333333 | L8: =IF(POWER((($D$6*0.5*$H$6)/600)*SQRT(3)/1,2)<1,"",POWER((($D$6*0.5*$H$6)/600)*SQRT(3)/1,2)) ->  | N8: =IF(POWER((($A$2*0.5*$A$4)/600)*SQRT(3)/2,2)<1,"",POWER((($A$2*0.5*$A$4)/600)*SQRT(3)/2,2)) -> 1.333333333 | O8: =IF(POWER((($D$6*0.5*$H$6)/600)*SQRT(3)/1,2)<1,"",POWER((($D$6*0.5*$H$6)/600)*SQRT(3)/1,2)) ->  | Q8: =IF(POWER((($A$2*0.5*$A$4)/600)*SQRT(3)/2.4,2)<1,"",POWER((($A$2*0.5*$A$4)/600)*SQRT(3)/2.4,2)) ->  | R8: =IF(POWER((($D$6*0.5*$H$6)/600)*SQRT(3)/1,2)<1,"",POWER((($D$6*0.5*$H$6)/600)*SQRT(3)/1,2)) -> 
A9: Volumenstrom/Düse | B9: =(0.8*SQRT(B8)/SQRT(3)) -> 1.333333333
A10: Abdriftminderungsklasse | B10: 50 | C10: 75 | D10: 90 | E10: 50 | F10: 75 | G10: 90 | H10: 50 | I10: 75 | J10: 90 | K10: 50 | L10: 75 | M10: 90 | N10: 50 | O10: 75 | P10: 90 | Q10: 50 | R10: 75 | S10: 90
A13: IDN www.lechler.de | E13: =IF($E$8<8,Abdriftminderungsklasse!E28,"") -> 2 - 6 bar | F13: =IF($E$8<8,Abdriftminderungsklasse!F28,"") -> 2 - 3 bar | G13: =IF($E$8<8,Abdriftminderungsklasse!G28,"") -> 2 bar | H13: =IF($H$8<8,Abdriftminderungsklasse!H28,"") -> 2 - 8 bar | I13: =IF($H$8<8,Abdriftminderungsklasse!I28,"") -> 2 - 3,5 bar | J13: =IF($H$8<8,Abdriftminderungsklasse!J28,"") -> 2 bar
A14: ID www.lechler.de | N14: =IF($N$8<8,Abdriftminderungsklasse!N19,"") -> 2 - 8 bar | O14: =IF($N$8<8,Abdriftminderungsklasse!O19,"") -> 2 - 8 bar | P14: =IF($N$8<8,Abdriftminderungsklasse!P19,"") -> 2 bar
A15: ID3 - C (ID-120-XX-) www.lechler.de | E15: =IF($E$8<8,Abdriftminderungsklasse!E29,"") -> 2 - 6 bar | F15: =IF($E$8<8,Abdriftminderungsklasse!F29,"") -> 2 - 4 bar | G15: =IF($E$8<8,Abdriftminderungsklasse!G29,"") -> 2,5 bar | H15: =IF($E$8<8,Abdriftminderungsklasse!H29,"") -> 2 - 8 bar | I15: =IF($E$8<8,Abdriftminderungsklasse!I29,"") -> 2 - 4 bar | J15: =IF($E$8<8,Abdriftminderungsklasse!J29,"") -> 2 - 2,5 bar | K15: =IF($E$8<8,Abdriftminderungsklasse!K29,"") -> 2 - 8 bar | L15: =IF($E$8<8,Abdriftminderungsklasse!L29,"") -> 2 - 6 bar | M15: =IF($E$8<8,Abdriftminderungsklasse!M29,"") -> 2 - 2,5 bar | N15: =IF($E$8<8,Abdriftminderungsklasse!N29,"") -> 2 - 8 bar | O15: =IF($E$8<8,Abdriftminderungsklasse!O29,"") -> 2 - 8 bar | P15: =IF($E$8<8,Abdriftminderungsklasse!P29,"") -> 2 - 4 bar
A16: ID3 - POM (ID-120-XX-) www.lechler.de | E16: =IF($E$8<8,Abdriftminderungsklasse!E30,"") -> 2 - 7 bar | F16: =IF($E$8<8,Abdriftminderungsklasse!F30,"") -> 2 - 4 bar | G16: =IF($E$8<8,Abdriftminderungsklasse!G30,"") -> 2 - 2,5 bar | H16: =IF($H$8<8,Abdriftminderungsklasse!H30,"") -> 2 - 8 bar | I16: =IF($H$8<8,Abdriftminderungsklasse!I30,"") -> 2 - 4 bar | J16: =IF($H$8<8,Abdriftminderungsklasse!J30,"") -> 2 - 3 bar | K16: =IF($H$8<8,Abdriftminderungsklasse!K30,"") -> 2 - 8 bar | L16: =IF($H$8<8,Abdriftminderungsklasse!L30,"") -> 2 - 6 bar | M16: =IF($H$8<8,Abdriftminderungsklasse!M30,"") -> 2 - 3 bar | N16: =IF($H$8<8,Abdriftminderungsklasse!N30,"") -> 2 - 8 bar | O16: =IF($H$8<8,Abdriftminderungsklasse!O30,"") -> 2 - 6 bar | P16: =IF($H$8<8,Abdriftminderungsklasse!P30,"") -> 2 - 3 bar
A17: TTI www.teejet.de | E17: =IF($E$8<8,Abdriftminderungsklasse!E31,"") -> 1,5 - 5 bar | F17: =IF($E$8<8,Abdriftminderungsklasse!F31,"") -> 1,5 - 2,5 bar | G17: =IF($E$8<8,Abdriftminderungsklasse!G31,"") -> 1,5 bar | H17: =IF($H$8<8,Abdriftminderungsklasse!H31,"") -> 1,5 - 5 bar | I17: =IF($H$8<8,Abdriftminderungsklasse!I31,"") -> 1,5 - 2,5 bar | J17: =IF($H$8<8,Abdriftminderungsklasse!J31,"") -> 1,5 bar | K17: =IF($K$8<8,Abdriftminderungsklasse!K31,"") -> 1,5 - 5 bar | L17: =IF($K$8<8,Abdriftminderungsklasse!L31,"") -> 1,5 - 3 bar | M17: =IF($K$8<8,Abdriftminderungsklasse!M31,"") -> 1,5 - 2 bar | N17: =IF($N$8<8,Abdriftminderungsklasse!N31,"") -> 1 - 5 bar | O17: =IF($N$8<8,Abdriftminderungsklasse!O31,"") -> 1 - 3 bar | P17: =IF($N$8<8,Abdriftminderungsklasse!P31,"") -> 1 - 2 bar | Q17: =IF($Q$8<6,Abdriftminderungsklasse!Q31,"") ->  | R17: =IF($Q$8<6,Abdriftminderungsklasse!R31,"") ->  | S17: =IF($Q$8<6,Abdriftminderungsklasse!S31,"") -> 
A18: AI/AIC www.teejet.de | N18: =IF($N$8<8,Abdriftminderungsklasse!N23,"") -> 2 - 5 bar | O18: =IF($N$8<8,Abdriftminderungsklasse!O23,"") -> 2 - 3 bar | P18: =IF($N$8<8,Abdriftminderungsklasse!P23,"") -> 2 - 2,5 bar
A21: *Der angegebene Druck ist ein tabellarischer Wert, da in jedem Pflanzenschutzgerät Druckverluste auftreten, muss das Gerät vor Inbetriebnahme ausgelitert werden Gültig nur für ISO 10625 genormte Düsen bei einem Düsenabstand von 50 cm! Für Vollständigkeit und Richtigkeit wird keine Gewähr übernommen

Sheet Doppellang <90
A2: 200 | B2: gewünschte Wasseraufwandmenge in l/ha | G2: zurück zur Übersicht
A3: Daten in die gelben Felder eintragen
A4: 9 | B4: Fahrgeschwindigkeit in km/hWasseraufwandmenge in l/ha
A7: Düsengröße/-farbe | B7: ="02" -> 02 | E7: ="025" -> 025 | H7: ="03" -> 03 | K7: ="04" -> 04 | N7: ="05" -> 05 | Q7: ="06" -> 06
A8: Spritzdruck* | B8: =IF(POWER((($A$2*0.5*$A$4)/600)*SQRT(3)/0.8,2)<1,"",POWER((($A$2*0.5*$A$4)/600)*SQRT(3)/0.8,2)) -> 10.546875 | C8: =IF(POWER((($D$6*0.5*$H$6)/600)*SQRT(3)/1,2)<1,"",POWER((($D$6*0.5*$H$6)/600)*SQRT(3)/1,2)) ->  | D8: =IF(POWER((($D$6*0.5*$H$6)/600)*SQRT(3)/1,2)<1,"",POWER((($D$6*0.5*$H$6)/600)*SQRT(3)/1,2)) ->  | E8: =IF(POWER((($A$2*0.5*$A$4)/600)*SQRT(3)/1,2)<1,"",POWER((($A$2*0.5*$A$4)/600)*SQRT(3)/1,2)) -> 6.75 | F8: =IF(POWER((($D$6*0.5*$H$6)/600)*SQRT(3)/1,2)<1,"",POWER((($D$6*0.5*$H$6)/600)*SQRT(3)/1,2)) ->  | G8: =IF(POWER((($D$6*0.5*$H$6)/600)*SQRT(3)/1,2)<1,"",POWER((($D$6*0.5*$H$6)/600)*SQRT(3)/1,2)) ->  | H8: =IF(POWER((($A$2*0.5*$A$4)/600)*SQRT(3)/1.2,2)<1,"",POWER((($A$2*0.5*$A$4)/600)*SQRT(3)/1.2,2)) -> 4.6875 | I8: =IF(POWER((($D$6*0.5*$H$6)/600)*SQRT(3)/1,2)<1,"",POWER((($D$6*0.5*$H$6)/600)*SQRT(3)/1,2)) ->  | K8: =IF(POWER((($A$2*0.5*$A$4)/600)*SQRT(3)/1.6,2)<1,"",POWER((($A$2*0.5*$A$4)/600)*SQRT(3)/1.6,2)) -> 2.63671875 | L8: =IF(POWER((($D$6*0.5*$H$6)/600)*SQRT(3)/1,2)<1,"",POWER((($D$6*0.5*$H$6)/600)*SQRT(3)/1,2)) ->  | N8: =IF(POWER((($A$2*0.5*$A$4)/600)*SQRT(3)/2,2)<1,"",POWER((($A$2*0.5*$A$4)/600)*SQRT(3)/2,2)) -> 1.6875 | O8: =IF(POWER((($D$6*0.5*$H$6)/600)*SQRT(3)/1,2)<1,"",POWER((($D$6*0.5*$H$6)/600)*SQRT(3)/1,2)) ->  | Q8: =IF(POWER((($A$2*0.5*$A$4)/600)*SQRT(3)/2.4,2)<1,"",POWER((($A$2*0.5*$A$4)/600)*SQRT(3)/2.4,2)) -> 1.171875 | R8: =IF(POWER((($D$6*0.5*$H$6)/600)*SQRT(3)/1,2)<1,"",POWER((($D$6*0.5*$H$6)/600)*SQRT(3)/1,2)) -> 
A9: Volumenstrom/Düse | B9: =(0.8*SQRT(B8)/SQRT(3)) -> 1.5
A10: Abdriftminderungsklasse | B10: 50 | C10: 75 | D10: 90 | E10: 50 | F10: 75 | G10: 90 | H10: 50 | I10: 75 | J10: 90 | K10: 50 | L10: 75 | M10: 90 | N10: 50 | O10: 75 | P10: 90 | Q10: 50 | R10: 75 | S10: 90
A14: HiSpeed www.agrotop.com | B14: =IF($B$8<8,Abdriftminderungsklasse!B38,"") ->  | C14: =IF($B$8<8,Abdriftminderungsklasse!C38,"") ->  | H14: =IF($H$8<8,Abdriftminderungsklasse!H38,"") -> 2,5 - 4 bar | I14: =IF($H$8<8,Abdriftminderungsklasse!I38,"") -> 2,5 bar | N14: =IF($N$8<8,Abdriftminderungsklasse!N38,"") -> 2 - 8 bar | O14: =IF($N$8<8,Abdriftminderungsklasse!O38,"") -> 2 - 3 bar
A15: AVI Twin www.agrotop.com | K15: =IF($K$8<8,Abdriftminderungsklasse!K39,"") -> 2 - 4 bar | L15: =IF($K$8<8,Abdriftminderungsklasse!L39,"") -> 2 - 2,5 bar
A16: AITTJ www.teejet.de | H16: =IF($H$8<8,Abdriftminderungsklasse!H42,"") -> 2 - 5 bar | I16: =IF($H$8<8,Abdriftminderungsklasse!I42,"") -> 2 - 2,5 bar
A19: *Der angegebene Druck ist ein tabellarischer Wert, da in jedem Pflanzenschutzgerät Druckverluste auftreten, muss das Gerät vor Inbetriebnahme ausgelitert werden Gültig nur für ISO 10625 genormte Düsen bei einem Düsenabstand von 50 cm! Für Vollständigkeit und Richtigkeit wird keine Gewähr übernommen

Sheet Doppellang mit 90
A2: 200 | B2: gewünschte Wasseraufwandmenge in l/ha | G2: zurück zur Übersicht
A3: Daten in die gelben Felder eintragen
A4: 5 | B4: Fahrgeschwindigkeit in km/hWasseraufwandmenge in l/ha
A7: Düsengröße/-farbe | B7: ="02" -> 02 | E7: ="025" -> 025 | H7: ="03" -> 03 | K7: ="04" -> 04 | N7: ="05" -> 05 | Q7: ="06" -> 06
A8: Spritzdruck* | B8: =IF(POWER((($A$2*0.5*$A$4)/600)*SQRT(3)/0.8,2)<1,"",POWER((($A$2*0.5*$A$4)/600)*SQRT(3)/0.8,2)) -> 3.255208333 | C8: =IF(POWER((($D$6*0.5*$H$6)/600)*SQRT(3)/1,2)<1,"",POWER((($D$6*0.5*$H$6)/600)*SQRT(3)/1,2)) ->  | D8: =IF(POWER((($D$6*0.5*$H$6)/600)*SQRT(3)/1,2)<1,"",POWER((($D$6*0.5*$H$6)/600)*SQRT(3)/1,2)) ->  | E8: =IF(POWER((($A$2*0.5*$A$4)/600)*SQRT(3)/1,2)<1,"",POWER((($A$2*0.5*$A$4)/600)*SQRT(3)/1,2)) -> 2.083333333 | F8: =IF(POWER((($D$6*0.5*$H$6)/600)*SQRT(3)/1,2)<1,"",POWER((($D$6*0.5*$H$6)/600)*SQRT(3)/1,2)) ->  | G8: =IF(POWER((($D$6*0.5*$H$6)/600)*SQRT(3)/1,2)<1,"",POWER((($D$6*0.5*$H$6)/600)*SQRT(3)/1,2)) ->  | H8: =IF(POWER((($A$2*0.5*$A$4)/600)*SQRT(3)/1.2,2)<1,"",POWER((($A$2*0.5*$A$4)/600)*SQRT(3)/1.2,2)) -> 1.446759259 | I8: =IF(POWER((($D$6*0.5*$H$6)/600)*SQRT(3)/1,2)<1,"",POWER((($D$6*0.5*$H$6)/600)*SQRT(3)/1,2)) ->  | K8: =IF(POWER((($A$2*0.5*$A$4)/600)*SQRT(3)/1.6,2)<1,"",POWER((($A$2*0.5*$A$4)/600)*SQRT(3)/1.6,2)) ->  | L8: =IF(POWER((($D$6*0.5*$H$6)/600)*SQRT(3)/1,2)<1,"",POWER((($D$6*0.5*$H$6)/600)*SQRT(3)/1,2)) ->  | N8: =IF(POWER((($A$2*0.5*$A$4)/600)*SQRT(3)/2,2)<1,"",POWER((($A$2*0.5*$A$4)/600)*SQRT(3)/2,2)) ->  | O8: =IF(POWER((($D$6*0.5*$H$6)/600)*SQRT(3)/1,2)<1,"",POWER((($D$6*0.5*$H$6)/600)*SQRT(3)/1,2)) ->  | Q8: =IF(POWER((($A$2*0.5*$A$4)/600)*SQRT(3)/2.4,2)<1,"",POWER((($A$2*0.5*$A$4)/600)*SQRT(3)/2.4,2)) ->  | R8: =IF(POWER((($D$6*0.5*$H$6)/600)*SQRT(3)/1,2)<1,"",POWER((($D$6*0.5*$H$6)/600)*SQRT(3)/1,2)) -> 
A9: Volumenstrom/Düse | B9: =(0.8*SQRT(B8)/SQRT(3)) -> 0.8333333333
A10: Abdriftminderungsklasse | B10: 50 | C10: 75 | D10: 90 | E10: 50 | F10: 75 | G10: 90 | H10: 50 | I10: 75 | J10: 90 | K10: 50 | L10: 75 | M10: 90 | N10: 50 | O10: 75 | P10: 90 | Q10: 50 | R10: 75 | S10: 90
A12: HiSpeed www.agrotop.com | E12: =IF($E$8<8,Abdriftminderungsklasse!E38,"") -> 2,5 - 5 bar | F12: =IF($E$8<8,Abdriftminderungsklasse!F38,"") -> 2,5 - 3,5 bar | G12: =IF($E$8<8,Abdriftminderungsklasse!G38,"") -> 2,5 bar | K12: =IF($K$8<8,Abdriftminderungsklasse!K38,"") ->  | L12: =IF($K$8<8,Abdriftminderungsklasse!L38,"") ->  | M12: =IF($K$8<8,Abdriftminderungsklasse!M38,"") -> 
A13: AITTJ www.teejet.de | K13: =IF($K$8<8,Abdriftminderungsklasse!K42,"") ->  | L13: =IF($K$8<8,Abdriftminderungsklasse!L42,"") ->  | M13: =IF($K$8<8,Abdriftminderungsklasse!M42,"") -> 
A16: *Der angegebene Druck ist ein tabellarischer Wert, da in jedem Pflanzenschutzgerät Druckverluste auftreten, muss das Gerät vor Inbetriebnahme ausgelitert werden Gültig nur für ISO 10625 genormte Düsen bei einem Düsenabstand von 50 cm! Für Vollständigkeit und Richtigkeit wird keine Gewähr übernommen

Sheet Doppelflachstrahlvarianten
A2: 200 | B2: gewünschte Wasseraufwandmenge in l/ha | G2: zurück zur Übersicht
A3: Daten in die gelben Felder eintragen
A4: 8 | B4: Fahrgeschwindigkeit in km/hWasseraufwandmenge in l/ha
A7: Düsengröße/-farbe | B7: ="02" -> 02 | E7: ="025" -> 025 | H7: ="03" -> 03 | K7: ="04" -> 04 | N7: ="05" -> 05 | Q7: ="06" -> 06
A8: Spritzdruck* | B8: =IF(POWER((($A$2*0.5*$A$4)/600)*SQRT(3)/0.8,2)<1,"",POWER((($A$2*0.5*$A$4)/600)*SQRT(3)/0.8,2)) -> 8.333333333 | C8: =IF(POWER((($D$6*0.5*$H$6)/600)*SQRT(3)/1,2)<1,"",POWER((($D$6*0.5*$H$6)/600)*SQRT(3)/1,2)) ->  | D8: =IF(POWER((($D$6*0.5*$H$6)/600)*SQRT(3)/1,2)<1,"",POWER((($D$6*0.5*$H$6)/600)*SQRT(3)/1,2)) ->  | E8: =IF(POWER((($A$2*0.5*$A$4)/600)*SQRT(3)/1,2)<1,"",POWER((($A$2*0.5*$A$4)/600)*SQRT(3)/1,2)) -> 5.333333333 | F8: =IF(POWER((($D$6*0.5*$H$6)/600)*SQRT(3)/1,2)<1,"",POWER((($D$6*0.5*$H$6)/600)*SQRT(3)/1,2)) ->  | G8: =IF(POWER((($D$6*0.5*$H$6)/600)*SQRT(3)/1,2)<1,"",POWER((($D$6*0.5*$H$6)/600)*SQRT(3)/1,2)) ->  | H8: =IF(POWER((($A$2*0.5*$A$4)/600)*SQRT(3)/1.2,2)<1,"",POWER((($A$2*0.5*$A$4)/600)*SQRT(3)/1.2,2)) -> 3.703703704 | I8: =IF(POWER((($D$6*0.5*$H$6)/600)*SQRT(3)/1,2)<1,"",POWER((($D$6*0.5*$H$6)/600)*SQRT(3)/1,2)) ->  | K8: =IF(POWER((($A$2*0.5*$A$4)/600)*SQRT(3)/1.6,2)<1,"",POWER((($A$2*0.5*$A$4)/600)*SQRT(3)/1.6,2)) -> 2.083333333 | L8: =IF(POWER((($D$6*0.5*$H$6)/600)*SQRT(3)/1,2)<1,"",POWER((($D$6*0.5*$H$6)/600)*SQRT(3)/1,2)) ->  | N8: =IF(POWER((($A$2*0.5*$A$4)/600)*SQRT(3)/2,2)<1,"",POWER((($A$2*0.5*$A$4)/600)*SQRT(3)/2,2)) -> 1.333333333 | O8: =IF(POWER((($D$6*0.5*$H$6)/600)*SQRT(3)/1,2)<1,"",POWER((($D$6*0.5*$H$6)/600)*SQRT(3)/1,2)) ->  | Q8: =IF(POWER((($A$2*0.5*$A$4)/600)*SQRT(3)/2.4,2)<1,"",POWER((($A$2*0.5*$A$4)/600)*SQRT(3)/2.4,2)) ->  | R8: =IF(POWER((($D$6*0.5*$H$6)/600)*SQRT(3)/1,2)<1,"",POWER((($D$6*0.5*$H$6)/600)*SQRT(3)/1,2)) -> 
A9: Volumenstrom/Düse | B9: =(0.8*SQRT(B8)/SQRT(3)) -> 1.333333333
A10: Abdriftminderungsklasse | B10: 50 | C10: 75 | D10: 90 | E10: 50 | F10: 75 | G10: 90 | H10: 50 | I10: 75 | J10: 90 | K10: 50 | L10: 75 | M10: 90 | N10: 50 | O10: 75 | P10: 90 | Q10: 50 | R10: 75 | S10: 90
A12: kompakte Injektor-Doppelflachstrahldüsen kombiniert mit kompakten Injektordüsen (hinterm Schlepper)
A13: IDKT POM + IDKN www.lechler.de | H13: =IF($H$8<6,Abdriftminderungsklasse!H75,"") -> 1 - 3 bar | I13: =IF($H$8<6,Abdriftminderungsklasse!I75,"") -> 1 - 1,5 bar | J13: =IF($H$8<6,Abdriftminderungsklasse!J75,"") -> 1 bar | K13: =IF($K$8<6,Abdriftminderungsklasse!K75,"") -> 1 - 2 bar | L13: =IF($K$8<6,Abdriftminderungsklasse!L75,"") -> 1 - 1,5 bar | M13: =IF($K$8<6,Abdriftminderungsklasse!M75,"") -> 1 bar
A14: IDKT POM + IDK www.lechler.de | N14: =IF($N$8<6,Abdriftminderungsklasse!N75,"") -> 1 - 3 bar | O14: =IF($N$8<6,Abdriftminderungsklasse!O75,"") -> 1 - 1,5 bar | P14: =IF($N$8<6,Abdriftminderungsklasse!P75,"") -> 1 bar | Q14: =IF($N$8<6,Abdriftminderungsklasse!Q75,"") -> 1 - 6 bar | R14: =IF($N$8<6,Abdriftminderungsklasse!R75,"") -> 1 - 2 bar | S14: =IF($N$8<6,Abdriftminderungsklasse!S75,"") -> 1 bar
A17: lange Injektor-Doppelflachstrahldüsen kombiniert mit langen Injektordüsen (hinterm Schlepper)
A18: AITTJ + AI/AIC www.teejet.de | H18: =IF($H$8<6,Abdriftminderungsklasse!H77,"") -> 2 - 5 bar | I18: =IF($H$8<6,Abdriftminderungsklasse!I77,"") -> 2,5 bar | K18: =IF($H$8<6,Abdriftminderungsklasse!K77,"") -> 2 - 5 bar | L18: =IF($H$8<6,Abdriftminderungsklasse!L77,"") -> 2 bar
A28: *Der angegebene Druck ist ein tabellarischer Wert, da in jedem Pflanzenschutzgerät Druckverluste auftreten, muss das Gerät vor Inbetriebnahme ausgelitert werden Gültig nur für ISO 10625 genormte Düsen bei einem Düsenabstand von 50 cm! Für Vollständigkeit und Richtigkeit wird keine Gewähr übernommen

Sheet Vorauflauf
A2: 300 | B2: gewünschte Wasseraufwandmenge in l/ha | G2: zurück zur Übersicht
A3: Daten in die gelben Felder eintragen
A4: 7 | B4: Fahrgeschwindigkeit in km/hWasseraufwandmenge in l/ha
A7: Düsengröße/-farbe | B7: ="025" -> 025 | E7: ="03" -> 03 | H7: ="04" -> 04 | K7: ="05" -> 05
A8: Spritzdruck* | B8: =IF(POWER((($A$2*0.5*$A$4)/600)*SQRT(3)/1,2)<1,"",POWER((($A$2*0.5*$A$4)/600)*SQRT(3)/1,2)) -> 9.1875 | C8: =IF(POWER((($D$6*0.5*$H$6)/600)*SQRT(3)/1,2)<1,"",POWER((($D$6*0.5*$H$6)/600)*SQRT(3)/1,2)) ->  | D8: =IF(POWER((($D$6*0.5*$H$6)/600)*SQRT(3)/1,2)<1,"",POWER((($D$6*0.5*$H$6)/600)*SQRT(3)/1,2)) ->  | E8: =IF(POWER((($A$2*0.5*$A$4)/600)*SQRT(3)/1.2,2)<1,"",POWER((($A$2*0.5*$A$4)/600)*SQRT(3)/1.2,2)) -> 6.380208333 | F8: =IF(POWER((($D$6*0.5*$H$6)/600)*SQRT(3)/1,2)<1,"",POWER((($D$6*0.5*$H$6)/600)*SQRT(3)/1,2)) ->  | G8: =IF(POWER((($D$6*0.5*$H$6)/600)*SQRT(3)/1,2)<1,"",POWER((($D$6*0.5*$H$6)/600)*SQRT(3)/1,2)) ->  | H8: =IF(POWER((($A$2*0.5*$A$4)/600)*SQRT(3)/1.6,2)<1,"",POWER((($A$2*0.5*$A$4)/600)*SQRT(3)/1.6,2)) -> 3.588867187 | I8: =IF(POWER((($D$6*0.5*$H$6)/600)*SQRT(3)/1,2)<1,"",POWER((($D$6*0.5*$H$6)/600)*SQRT(3)/1,2)) ->  | J8: =IF(POWER((($D$6*0.5*$H$6)/600)*SQRT(3)/1,2)<1,"",POWER((($D$6*0.5*$H$6)/600)*SQRT(3)/1,2)) ->  | K8: =IF(POWER((($A$2*0.5*$A$4)/600)*SQRT(3)/2,2)<1,"",POWER((($A$2*0.5*$A$4)/600)*SQRT(3)/2,2)) -> 2.296875
A9: Volumenstrom/Düse | B9: =(1*SQRT(B8)/SQRT(3)) -> 1.75
A10: Abdriftminderungsklasse | B10: 50 | C10: 75 | D10: 90 | E10: 50 | F10: 75 | G10: 90 | H10: 50 | I10: 75 | J10: 90 | K10: 50 | L10: 75 | M10: 90 | N10: 95
A12: Lechler PRE 130- www.lechler.de | K12: =IF($K$8<8,Abdriftminderungsklasse!N83,"") -> 1,5 - 8 bar | L12: =IF($K$8<8,Abdriftminderungsklasse!O83,"") -> 1,5 - 8 bar | M12: =IF($K$8<8,Abdriftminderungsklasse!P83,"") -> 1,5 - 6 bar | N12: =IF($K$8<8,Abdriftminderungsklasse!Q83,"") -> 1,5 - 5 bar
A13: SYNGENTA 130 05 www.lechler.de | K13: =IF($K$8<8,Abdriftminderungsklasse!N82,"") -> 1,5 - 8 bar | L13: =IF($K$8<8,Abdriftminderungsklasse!O82,"") -> 1,5 - 8 bar | M13: =IF($K$8<8,Abdriftminderungsklasse!P82,"") -> 1,5 - 6 bar | N13: =IF($K$8<8,Abdriftminderungsklasse!Q82,"") -> 1,5 - 5 bar
A16: *Der angegebene Druck ist ein tabellarischer Wert, da in jedem Pflanzenschutzgerät Druckverluste auftreten, muss das Gerät vor Inbetriebnahme ausgelitert werden Gültig nur für ISO 10625 genormte Düsen bei einem Düsenabstand von 50 cm! Für Vollständigkeit und Richtigkeit wird keine Gewähr übernommen

Sheet Fldgg
D1: Düsenrechner Ackerbau
D2: - Auswahl von Flüssigdüngerdüsen -
J3: =IF(C9=B29,($C$6*(100/E29)*I29),IF(C9=B30,(C6*(100/E30)*I30),IF(C9=B31,(C6*(100/E31)*I31),IF(C9=B32,($C$6*(100/E32)*I32),IF(C9=B33,($C$6*(100/E33)*I33),IF(C9=B34,($C$6*(100/E34)*I34),IF(C9=B35,($C$6*(100/E35)*I35),""))))))) -> 157.8363351 | K3: Ausstoß mit Wasser (zum auslitern an der Spritze)
N4: Zurück zur Übersicht
C6: 50 | G6: 60 | H6: =G6/10 -> 6 | J6: =IF(C9=B29,(J3*H29),IF(C9=B30,(J3*H30),IF(C9=B31,(J3*H31),IF(C9=B32,(J3*H32),IF(C9=B33,(J3*H33),IF(C9=B34,(J3*H34),IF(C9=B35,(J3*H35),""))))))) -> 139.5089286 | K6: Flüssigdüngerausstoß
C9: AHL 28 (28 Gew.-%)
B15: anderer Dünger | C15: 9 | D15: N (kg/dt) | E15: 1.09 | F15: kg/l
B17: nach ISO 10625 codierte Düsengrößen und -farben
B18: Düsengröße und -farbe | C18: 02 gelb | D18: 025 lila | E18: 03 blau | F18: 04 rot | G18: 05 braun | H18: 06 grau | I18: 08 weiss | J18: 10 hellblau | K18: 15 gelbgrün | L18: 20 hellblau
B19: Arbeitsdruck (bar) | C19: =IF(POWER((($J$3*0.5*$H$6)/600)*SQRT(3)/0.8,2)<1,"",POWER((($J$3*0.5*$H$6)/600)*SQRT(3)/0.8,2)) -> 2.919411173 | D19: =IF(POWER((($J$3*0.5*$H$6)/600)*SQRT(3)/1,2)<1,"",POWER((($J$3*0.5*$H$6)/600)*SQRT(3)/1,2)) -> 1.868423151 | E19: =IF(POWER((($J$3*0.5*$H$6)/600)*SQRT(3)/1.2,2)<1,"",POWER((($J$3*0.5*$H$6)/600)*SQRT(3)/1.2,2)) -> 1.297516077 | F19: =IF(POWER((($J$3*0.5*$H$6)/600)*SQRT(3)/1.6,2)<1,"",POWER((($J$3*0.5*$H$6)/600)*SQRT(3)/1.6,2)) ->  | G19: =IF(POWER((($J$3*0.5*$H$6)/600)*SQRT(3)/2,2)<1,"",POWER((($J$3*0.5*$H$6)/600)*SQRT(3)/2,2)) ->  | H19: =IF(POWER((($J$3*0.5*$H$6)/600)*SQRT(3)/2.4,2)<1,"",POWER((($J$3*0.5*$H$6)/600)*SQRT(3)/2.4,2)) ->  | I19: =IF(POWER((($J$3*0.5*$H$6)/600)*SQRT(3)/3.2,2)<1,"",POWER((($J$3*0.5*$H$6)/600)*SQRT(3)/3.2,2)) ->  | J19: =IF(POWER((($J$3*0.5*$H$6)/600)*SQRT(3)/4,2)<1,"",POWER((($J$3*0.5*$H$6)/600)*SQRT(3)/4,2)) ->  | K19: =IF(POWER((($J$3*0.5*$H$6)/600)*SQRT(3)/6,2)<1,"",POWER((($J$3*0.5*$H$6)/600)*SQRT(3)/6,2)) ->  | L19: =IF(POWER((($J$3*0.5*$H$6)/600)*SQRT(3)/8,2)<1,"",POWER((($J$3*0.5*$H$6)/600)*SQRT(3)/8,2)) -> 
B20: l/min und Düse | C20: =IF(C19="","",(0.8*SQRT(C19))/SQRT(3)) -> 0.7891816754
B24: =IF(C9=B29,($C$6*(100/E29)),IF(C9=B30,(C6*(100/E30)),IF(C9=B31,(C6*(100/E31)),IF(C9=B32,($C$6*(100/E32)),IF(C9=B33,($C$6*(100/E33)),IF(C9=B34,($C$6*(100/E34)),IF(C9=B35,($C$6*(100/E35)),""))))))) -> 139.5089286 | C24: Düngertabelle
F25: -0.4142 | G25: 0.4528 | H25: x
F26: 1.42 | G26: 0.5478 | H26: Korrekturfaktor (Wurzel)
C27: Gew.-% | D27: Dichte | E27: Vol.-% | F27: W-Dgg | G27: Dgg-W | H27: W-Dgg | I27: Dgg-W
C28: kg/dt | D28: kg/l | E28: kg/100l
B29: AHL 28 (28 Gew.-%) | C29: 28 | D29: 1.28 | E29: =C29*D29 -> 35.84 | F29: =$F$25*D29+$F$26 -> 0.889824 | G29: =$G$25*D29+$G$26 -> 1.127384 | H29: =SQRT((1/D29)) -> 0.8838834765 | I29: =SQRT(D29) -> 1.13137085
B30: AHL 30 (30 Gew.-%) | C30: 30 | D30: 1.32 | E30: 39.6 | F30: 0.873256 | G30: 1.145496 | H30: 0.8703882798 | I30: 1.148912529
B31: AHL+S (Piasan S 25/6) (25 Gew.-%) | C31: 25 | D31: 1.31 | E31: 32.75 | F31: 0.877398 | G31: 1.140968 | H31: 0.8737040567 | I31: 1.144552314
B32: ASL (8 Gew.-%) | C32: 8 | D32: 1.24 | E32: 9.92 | F32: 0.906392 | G32: 1.109272 | H32: 0.8980265101 | I32: 1.113552873
B33: ATS (12 Gew.-%) | C33: 12 | D33: 1.32 | E33: 15.84 | F33: 0.873256 | G33: 1.145496 | H33: 0.8703882798 | I33: 1.148912529
B34: Ammoniumsulfat-HL (20 Gew.-%) | C34: 20 | D34: 1.25 | E34: 25 | F34: 0.90225 | G34: 1.1138 | H34: 0.894427191 | I34: 1.118033989
B35: anderer Dünger | C35: =C15 -> 9 | D35: =E15 -> 1.09 | E35: 9.81 | F35: 0.968522 | G35: 1.041352 | H35: 0.9578262852 | I35: 1.044030651

Sheet anerkannte Düsen (hidden)
B1: anerkannt | F1: =YEAR(G1) -> 2016 | G1: =TODAY() -> 2016-10-28 | K1: Jahr | L1: Übertragung
A2: G Nr | B2: Bezeichnung | C2: Druckbereich (bar) | E2: Tropfen | F2: anerk. | G2: Anmelder | H2: Bauart | I2: Verwendung | J2: Abstand | K2: erneut beantragt
A3: 1182 | B3: XR 11004 VS / XRC 110 04 VS | C3: 1 | D3: 4 | E3: m - f | F3: 2015 | G3: TeeJet | H3: Flachstrahldüse | I3: Verband - Feldbau | J3: 50 cm
A4: 1211 | B4: XR 11005 VS / XRC 110 05 VS | C4: 1 | D4: 4 | E4: g - f | F4: 2015 | G4: TeeJet | H4: Flachstrahldüse | I4: Verband - Feldbau | J4: 50 cm
A5: 1212 | B5: XR 11006 VS | C5: 1 | D5: 4 | E5: g - m | F5: 2015 | G5: TeeJet | H5: Flachstrahldüse | I5: Verband - Feldbau | J5: 50 cm
A6: 1240 | B6: LU 120 05 POM | C6: 1.5 | D6: 5 | E6: m - f | F6: 2016 | G6: Lechler | H6: Flachstrahldüse | I6: Verband - Feldbau | J6: 50 cm
A7: 1242 | B7: LU 120 06 POM | C7: 1.5 | D7: 5 | E7: g - f | F7: 2011 | G7: Lechler | H7: Flachstrahldüse | I7: Verband - Feldbau | J7: 50 cm
A8: 1392 | B8: XR 11003 VP | C8: 1.5 | D8: 4 | E8: m - f | F8: 2014 | G8: TeeJet | H8: Flachstrahldüse | I8: Verband - Feldbau | J8: 50 cm
A9: 1393 | B9: XR 11004 VP | C9: 1 | D9: 4 | E9: m - f | F9: 2015 | G9: TeeJet | H9: Flachstrahldüse | I9: Verband - Feldbau | J9: 50 cm
A10: 1394 | B10: XR 11005 VP | C10: 1 | D10: 4 | E10: g - f | F10: 2016 | G10: TeeJet | H10: Flachstrahldüse | I10: Verband - Feldbau | J10: 50 cm
A11: 1395 | B11: XR 11003 VK | C11: 1.5 | D11: 4 | E11: m - f | F11: 2015 | G11: TeeJet | H11: Flachstrahldüse | I11: Verband - Feldbau | J11: 50 cm
A12: 1396 | B12: XR 110 04 VK | C12: 1 | D12: 4 | E12: m - f | F12: 2015 | G12: TeeJet | H12: Flachstrahldüse | I12: Verband - Feldbau | J12: 50 cm
A13: 1397 | B13: XR 110 05 VK | C13: 1 | D13: 4 | E13: g - f | F13: 2015 | G13: TeeJet | H13: Flachstrahldüse | I13: Verband - Feldbau | J13: 50 cm
A14: 1398 | B14: DG 11003 VS | C14: 1.5 | D14: 6 | E14: - | F14: 2008 | G14: TeeJet | H14: Flachstrahldüse | I14: Verband - Feldbau | J14: 50 cm | K14: nein
A15: 1399 | B15: DG 11004 VS | C15: 1.5 | D15: 6 | E15: - | F15: 2008 | G15: TeeJet | H15: Flachstrahldüse | I15: Verband - Feldbau | J15: 50 cm | K15: nein
A16: 1435 | B16: ES 90-02 | C16: 1.5 | D16: 3 | E16: - | F16: 2015 | G16: Lechler | H16: Flachstrahldüse | I16: Bandspritzung | J16: -
A17: 1436 | B17: ES 90-02 POM, gelb | C17: 1.5 | D17: 3 | E17: - | F17: 2015 | G17: Lechler | H17: Flachstrahldüse | I17: Bandspritzung | J17: -
A18: 1437 | B18: ES 90-03 Messing | C18: 1.5 | D18: 3 | E18: - | F18: 2015 | G18: Lechler | H18: Flachstrahldüse | I18: Bandspritzung | J18: -
A19: 1438 | B19: ES 90-04 POM, rot | C19: 1.5 | D19: 3 | E19: - | F19: 2015 | G19: Lechler | H19: Flachstrahldüse | I19: Bandspritzung | J19: -
A20: 1441 | B20: XR 11003 VS / XRC 11003 VS | C20: 1 | D20: 4 | E20: m - f | F20: 2010 | G20: TeeJet | H20: Flachstrahldüse | I20: Verband - Feldbau | J20: 50 cm
A21: 1489 | B21: XR 11006 VP | C21: 1 | D21: 4 | E21: g - m | F21: 2012 | G21: TeeJet | H21: Flachstrahldüse | I21: Verband - Feldbau | J21: 50 cm
A22: 1524 | B22: LU 120 03 POM | C22: 1.5 | D22: 5 | E22: m - f | F22: 2016 | G22: Lechler | H22: Flachstrahldüse | I22: Verband - Feldbau | J22: 50 cm
A23: 1525 | B23: TURBO Teejet 11002 VP | C23: 1 | D23: 6 | E23: g - m | F23: 2013 | G23: TeeJet | H23: Flachstrahldüse | I23: Verband - Feldbau | J23: 50 - 75 cm
A24: 1526 | B24: TURBO Teejet 11003 VP | C24: 1 | D24: 6 | E24: sg - m | F24: 2012 | G24: TeeJet | H24: Flachstrahldüse | I24: Verband - Feldbau | J24: 50 - 75 cm
A25: 1527 | B25: TURBO Teejet 11004 VP | C25: 1 | D25: 6 | E25: sg - m | F25: 2012 | G25: TeeJet | H25: Flachstrahldüse | I25: Verband - Feldbau | J25: 50 - 75 cm
A26: 1528 | B26: TURBO Teejet 110 05 VP | C26: 1 | D26: 6 | E26: sg - m | F26: 2012 | G26: TeeJet | H26: Flachstrahldüse | I26: Verband - Feldbau | J26: 75 cm
A27: 1535 | B27: ID 120 03 POM | C27: 3 | D27: 8 | E27: sg - g | F27: 2016 | G27: Lechler | H27: Injektor-Flachstrahldüse | I27: Verband - Feldbau | J27: 50 cm
A28: 1536 | B28: ID 120 04 POM | C28: 3 | D28: 8 | E28: sg - g | F28: 2012 | G28: Lechler | H28: Injektor-Flachstrahldüse | I28: Verband - Feldbau | J28: 50 cm
A29: 1545 | B29: ID 120 04 C (Keramik) | C29: 3 | D29: 8 | E29: sg - g | F29: 2013 | G29: Lechler | H29: Injektor-Flachstrahldüse | I29: Verband - Feldbau | J29: 50 cm
A30: 1546 | B30: ID 120 03 C (Keramik) | C30: 3 | D30: 8 | E30: sg - g | F30: 2013 | G30: Lechler | H30: Injektor-Flachstrahldüse | I30: Verband - Feldbau | J30: 50 cm
A31: 1547 | B31: ID 120 02 C (Keramik) | C31: 3.5 | D31: 8 | E31: g | F31: 2015 | G31: Lechler | H31: Injektor-Flachstrahldüse | I31: Verband - Feldbau | J31: 50 cm
A32: 1548 | B32: ID 120 02 POM | C32: 3 | D32: 8 | E32: g | F32: 2014 | G32: Lechler | H32: Injektor-Flachstrahldüse | I32: Verband - Feldbau | J32: 50 cm
A33: 1565 | B33: ID 120 025 POM | C33: 3 | D33: 8 | E33: sg - g | F33: 2014 | G33: Lechler | H33: Injektor-Flachstrahldüse | I33: Verband - Feldbau | J33: 50 cm
A34: 1566 | B34: ID 120 025 C (Keramik) | C34: 3 | D34: 8 | E34: sg - g | F34: 2015 | G34: Lechler | H34: Injektor-Flachstrahldüse | I34: Verband - Feldbau | J34: 50 cm
A35: 1567 | B35: AI 110 025 VS / AIC 110 025 VS | C35: 2 | D35: 8 | E35: sg - g | F35: 2015 | G35: TeeJet | H35: Injektor-Flachstrahldüse | I35: Verband - Feldbau | J35: 50 - 75 cm | K35: ja
A36: 1568 | B36: AI 110 03 VS / AIC 110 03 VS | C36: 2.5 | D36: 8 | E36: sg - g | F36: 2015 | G36: TeeJet | H36: Injektor-Flachstrahldüse | I36: Verband - Feldbau | J36: 50 - 75 cm | K36: ja
A37: 1569 | B37: AI 110 04 VS / AIC 110 04 VS | C37: 2.5 | D37: 8 | E37: sg - g | F37: 2015 | G37: TeeJet | H37: Injektor-Flachstrahldüse | I37: Verband - Feldbau | J37: 50 - 75 cm | K37: ja
A38: 1581 | B38: ALBUZ AXI 110 04 | C38: 1.5 | D38: 4 | E38: g - f | F38: 2012 | G38: Saint-Gobain | H38: Flachstrahldüse | I38: Verband - Feldbau | J38: 50 cm | K38: ja
A39: 1588 | B39: ISO-F-02 | C39: 1.5 | D39: 5 | E39: m - f | F39: 2011 | G39: Hardi | H39: Flachstrahldüse | I39: Verband - Feldbau | J39: 50 cm
A40: 1589 | B40: ISO-F-03 | C40: 1.5 | D40: 5 | E40: m - f | F40: 2016 | G40: Hardi | H40: Flachstrahldüse | I40: Verband - Feldbau | J40: 50 cm
A41: 1590 | B41: ISO-F-04 | C41: 1.5 | D41: 5 | E41: m - f | F41: 2016 | G41: Hardi | H41: Flachstrahldüse | I41: Verband - Feldbau | J41: 50 cm
A42: 1591 | B42: ISO-F-05 | C42: 1.5 | D42: 5 | E42: g - m | F42: 2016 | G42: Hardi | H42: Flachstrahldüse | I42: Verband - Feldbau | J42: 50 cm
A43: 1592 | B43: AIRTEC 35 1001 | C43: 1.5 | D43: 4 | E43: - | F43: 2008 | G43: Cleanacres | H43: Zweistoff-Flachstrahldüse | I43: Verband - Feldbau | J43: 50 - 75 cm | K43: nein
A44: 1596 | B44: LU 120 04 POM | C44: 1.5 | D44: 5 | E44: m - f | F44: 2016 | G44: Lechler | H44: Flachstrahldüse | I44: Verband - Feldbau | J44: 50 cm
A45: 1597 | B45: LU 120 05 C (Keramik) | C45: 1.5 | D45: 5 | E45: m - f | F45: 2015 | G45: Lechler | H45: Flachstrahldüse | I45: Verband - Feldbau | J45: 50 cm
A46: 1605 | B46: ALBUZ AVI 110 04 | C46: 3 | D46: 7 | E46: sg - g | F46: 2012 | G46: Agrotop | H46: Injektor-Flachstrahldüse | I46: Verband - Feldbau | J46: 50 - 75 cm
A47: 1606 | B47: ALBUZ AVI 110 03 | C47: 3 | D47: 7 | E47: sg - g | F47: 2012 | G47: Agrotop | H47: Injektor-Flachstrahldüse | I47: Verband - Feldbau | J47: 50 - 75 cm
A48: 1610 | B48: TD 110 04 Keramik | C48: 2.5 | D48: 10 | E48: sg - g | F48: 2006 | G48: Agrotop | H48: Injektor-Flachstrahldüse | I48: Verband - Feldbau | J48: 75 cm | K48: ja
A49: 1612 | B49: ID 90 02 C (Keramik) | C49: 3 | D49: 8 | E49: sg - g | F49: 2011 | G49: Lechler | H49: Injektor-Flachstrahldüse | I49: Verband - Feldbau | J49: 75 cm
A50: 1613 | B50: AI 110 05 VS / AIC 110 05 VS | C50: 2 | D50: 8 | E50: sg - g | F50: 2012 | G50: TeeJet | H50: Injektor-Flachstrahldüse | I50: Verband - Feldbau | J50: 50 - 75 cm
A51: 1618 | B51: ID 120 05 POM | C51: 2 | D51: 8 | E51: sg - g | F51: 2016 | G51: Lechler | H51: Injektor-Flachstrahldüse | I51: Verband - Feldbau | J51: 50 cm
A52: 1620 | B52: ALBUZ AVI 110 025 | C52: 3 | D52: 7 | E52: g | F52: 2011 | G52: Saint-Gobain | H52: Injektor-Flachstrahldüse | I52: Verband - Feldbau | J52: 50 - 75 cm
A53: 1631 | B53: Airmix 110 04 KS | C53: 1 | D53: 6 | E53: sg - g | F53: 2013 | G53: Agrotop | H53: Injektor-Flachstrahldüse | I53: Verband - Feldbau | J53: 50 - 75 cm
A54: 1633 | B54: ID 120 05 C (Keramik) | C54: 2 | D54: 8 | E54: sg - g | F54: 2013 | G54: Lechler | H54: Injektor-Flachstrahldüse | I54: Verband - Feldbau | J54: 50 cm
A55: 1637 | B55: Airmix 110 03 KS | C55: 1.5 | D55: 6 | E55: sg - g | F55: 2012 | G55: Agrotop | H55: Injektor-Flachstrahldüse | I55: Verband - Feldbau | J55: 50 - 75 cm
A56: 1638 | B56: Airmix 110 05 KS | C56: 1 | D56: 6 | E56: sg - g | F56: 2013 | G56: Agrotop | H56: Injektor-Flachstrahldüse | I56: Verband - Feldbau | J56: 50 - 75 cm
A57: 1644 | B57: ID 120 015 POM | C57: 3 | D57: 8 | E57: g | F57: 2015 | G57: Lechler | H57: Injektor-Flachstrahldüse | I57: Verband - Feldbau | J57: 50 cm
A58: 1645 | B58: S Injet 02 | C58: 3 | D58: 8 | E58: g | F58: 2012 | G58: Hardi | H58: Injektor-Flachstrahldüse | I58: Verband - Feldbau | J58: 50 cm
A59: 1646 | B59: S Injet 025 | C59: 3 | D59: 8 | E59: sg - g | F59: 2012 | G59: Hardi | H59: Injektor-Flachstrahldüse | I59: Verband - Feldbau | J59: 50 cm
A60: 1647 | B60: S Injet 03 | C60: 3 | D60: 8 | E60: sg - g | F60: 2007 | G60: Hardi | H60: Injektor-Flachstrahldüse | I60: Verband - Feldbau | J60: 50 cm | K60: nein
A61: 1648 | B61: S Injet 04 | C61: 3 | D61: 8 | E61: sg - g | F61: 2011 | G61: Hardi | H61: Injektor-Flachstrahldüse | I61: Verband - Feldbau | J61: 50 cm
A62: 1649 | B62: S Injet 05 | C62: 2 | D62: 8 | E62: sg - g | F62: 2007 | G62: Hardi | H62: Injektor-Flachstrahldüse | I62: Verband - Feldbau | J62: 50 cm | K62: nein
A63: 1654 | B63: AIRTEC 40 1001 | C63: 1.5 | D63: 4 | E63: - | F63: 2008 | G63: Cleanacres | H63: Zweistoff-Flachstrahldüse | I63: Verband - Feldbau | J63: 50 - 75 cm | K63: nein
A64: 1655 | B64: AIRTEC 50 1001 | C64: 1.5 | D64: 4 | E64: - | F64: 2008 | G64: Cleanacres | H64: Zweistoff-Flachstrahldüse | I64: Verband - Feldbau | J64: 75 cm | K64: nein
A65: 1657 | B65: Twin Fluid 35 | C65: 2 | D65: 6 | E65: - | F65: 2008 | G65: John Deere | H65: Zweistoff-Flachstrahldüse | I65: Verband - Feldbau | J65: 50 - 75 cm | K65: nein
A66: 1658 | B66: Twin Fluid 42 | C66: 2 | D66: 6 | E66: - | F66: 2008 | G66: John Deere | H66: Zweistoff-Flachstrahldüse | I66: Verband - Feldbau | J66: 50 - 75 cm | K66: nein
A67: 1659 | B67: ID 90 03 C (Keramik) | C67: 3 | D67: 8 | E67: sg - g | F67: 2013 | G67: Lechler | H67: Injektor-Flachstrahldüse | I67: Verband - Feldbau | J67: 75 cm
A68: 1661 | B68: IDK 120 03 POM | C68: 1.5 | D68: 6 | E68: sg - g | F68: 2013 | G68: Lechler | H68: Injektor-Flachstrahldüse | I68: Verband - Feldbau | J68: 50 - 75 cm
A69: 1662 | B69: IDK 120 04 POM | C69: 1 | D69: 6 | E69: sg - g | F69: 2013 | G69: Lechler | H69: Injektor-Flachstrahldüse | I69: Verband - Feldbau | J69: 50 - 75 cm
A70: 1663 | B70: IDK 120 05 POM | C70: 1 | D70: 6 | E70: sg - g | F70: 2013 | G70: Lechler | H70: Injektor-Flachstrahldüse | I70: Verband - Feldbau | J70: 50 - 75 cm
A71: 1683 | B71: IDK 120 025 POM | C71: 1.5 | D71: 6 | E71: sg - g | F71: 2014 | G71: Lechler | H71: Injektor-Flachstrahldüse | I71: Verband - Feldbau | J71: 50 - 75 cm
A72: 1688 | B72: ISO LD 110 015 | C72: 2 | D72: 5 | E72: g - f | F72: 2009 | G72: Hardi | H72: Flachstrahldüse | I72: Verband - Feldbau | J72: 50 cm | K72: nein
A73: 1689 | B73: ISO LD 110 02 | C73: 2 | D73: 5 | E73: g - m | F73: 2009 | G73: Hardi | H73: Flachstrahldüse | I73: Verband - Feldbau | J73: 50 cm | K73: nein
A74: 1690 | B74: ISO LD 110 025 | C74: 2 | D74: 5 | E74: g - m | F74: 2009 | G74: Hardi | H74: Flachstrahldüse | I74: Verband - Feldbau | J74: 50 cm | K74: nein
A75: 1691 | B75: ISO LD 110 03 | C75: 2 | D75: 5 | E75: g - m | F75: 2009 | G75: Hardi | H75: Flachstrahldüse | I75: Verband - Feldbau | J75: 50 cm | K75: nein
A76: 1692 | B76: ISO LD 110 04 | C76: 2 | D76: 5 | E76: sg - m | F76: 2009 | G76: Hardi | H76: Flachstrahldüse | I76: Verband - Feldbau | J76: 50 cm | K76: nein
A77: 1695 | B77: IDN 120 025 POM | C77: 2 | D77: 8 | E77: sg - g | F77: 2014 | G77: Lechler | H77: Injektor-Flachstrahldüse | I77: Verband - Feldbau | J77: 50 cm
A78: 1696 | B78: XRC 110025 VS | C78: 1.5 | D78: 4 | E78: m - f | F78: 2016 | G78: TeeJet | H78: Flachstrahldüse | I78: Verband - Feldbau | J78: 50 cm
A79: 1705 | B79: AirMix 110-025 NoDrift | C79: 2.5 | D79: 8 | E79: sg - g | F79: 2011 | G79: Agrotop | H79: Injektor-Flachstrahldüse | I79: Verband - Feldbau | J79: 50 cm | K79: ja
A80: 1706 | B80: AirMix 110-03 NoDrift | C80: 3 | D80: 8 | E80: sg - g | F80: 2011 | G80: Agrotop | H80: Injektor-Flachstrahldüse | I80: Verband - Feldbau | J80: 50 cm | K80: ja
A81: 1707 | B81: AirMix 110-04 NoDrift | C81: 2 | D81: 8 | E81: sg - g | F81: 2015 | G81: Agrotop | H81: Injektor-Flachstrahldüse | I81: Verband - Feldbau | J81: 50 cm
A82: 1710 | B82: ISO Minidrift MD-025-110 | C82: 1.5 | D82: 6 | E82: sg - g | F82: 2009 | G82: Hardi | H82: Injektor-Flachstrahldüse | I82: Verband - Feldbau | J82: 50 - 75 cm | K82: nein
A83: 1711 | B83: ISO Minidrift MD-03-110 | C83: 1.5 | D83: 6 | E83: sg - g | F83: 2009 | G83: Hardi | H83: Injektor-Flachstrahldüse | I83: Verband - Feldbau | J83: 50 - 75 cm | K83: nein
A84: 1712 | B84: ISO Minidrift MD-04-110 | C84: 1 | D84: 6 | E84: sg - g | F84: 2009 | G84: Hardi | H84: Injektor-Flachstrahldüse | I84: Verband - Feldbau | J84: 50 - 75 cm | K84: nein
A85: 1713 | B85: ISO Minidrift MD-05-110 | C85: 1 | D85: 6 | E85: sg - g | F85: 2009 | G85: Hardi | H85: Injektor-Flachstrahldüse | I85: Verband - Feldbau | J85: 50 - 75 cm | K85: nein
A86: 1717 | B86: IDN 120 03 POM | C86: 2 | D86: 8 | E86: sg - g | F86: 2010 | G86: Lechler | H86: Injektor-Flachstrahldüse | I86: Verband - Feldbau | J86: 50 cm
A87: 1718 | B87: IDK N 120 04 POM | C87: 1 | D87: 6 | E87: sg - g | F87: 2016 | G87: Lechler | H87: Injektor-Flachstrahldüse | I87: Verband - Feldbau | J87: 50 cm
A88: 1723 | B88: AIC 110 04 VP | C88: 2.5 | D88: 8 | E88: sg - g | F88: 2011 | G88: TeeJet | H88: Injektor-Flachstrahldüse | I88: Verband - Feldbau | J88: 50 - 75 cm
A89: 1724 | B89: AIC 110 03 VP | C89: 2.5 | D89: 8 | E89: sg - g | F89: 2011 | G89: TeeJet | H89: Injektor-Flachstrahldüse | I89: Verband - Feldbau | J89: 50 - 75 cm
A90: 1725 | B90: AIC 110 05 VP | C90: 2 | D90: 8 | E90: sg - g | F90: 2011 | G90: TeeJet | H90: Injektor-Flachstrahldüse | I90: Verband - Feldbau | J90: 50 - 75 cm
A91: 1726 | B91: AIC 025 VP | C91: 2 | D91: 8 | E91: sg - g | F91: 2014 | G91: TeeJet | H91: Injektor-Flachstrahldüse | I91: Verband - Feldbau | J91: 50 - 75 cm
A92: 1736 | B92: AirJet 35 | C92: 2 | D92: 6 | E92: sg - g | F92: 2013 | G92: TeeJet | H92: Zweistoff-Flachstrahldüse | I92: Verband - Feldbau | J92: 50 - 75 cm
A93: 1737 | B93: TTI 110 025 VP | C93: 1.5 | D93: 7 | E93: sg | F93: 2011 | G93: TeeJet | H93: Injektor-Flachstrahldüse | I93: Verband - Feldbau | J93: 50 - 75 cm
A94: 1738 | B94: TTI 110 03 VP | C94: 1.5 | D94: 7 | E94: sg - g | F94: 2011 | G94: TeeJet | H94: Injektor-Flachstrahldüse | I94: Verband - Feldbau | J94: 50 - 75 cm
A95: 1739 | B95: TTI 110 04 VP | C95: 1.5 | D95: 7 | E95: sg | F95: 2011 | G95: TeeJet | H95: Injektor-Flachstrahldüse | I95: Verband - Feldbau | J95: 50 - 75 cm
A96: 1740 | B96: TTI 110 05 VP | C96: 1 | D96: 7 | E96: sehr grob | F96: 2011 | G96: TeeJet | H96: Injektor-Flachstrahldüse | I96: Verband - Feldbau | J96: 50 - 75 cm
A97: 1744 | B97: AirJet 52 | C97: 1 | D97: 6 | E97: sg - f | F97: 2013 | G97: TeeJet | H97: Zweistoff-Flachstrahldüse | I97: Verband - Feldbau | J97: 50 - 75 cm
A98: 1750 | B98: Albuz AVI Twin 110 04 | C98: 2 | D98: 8 | E98: sg - g | F98: 2011 | G98: Agrotop | H98: Injektor-Doppelflachstrahl | I98: Verband - Feldbau | J98: 50 cm | K98: ja
A99: 1753 | B99: IS 80 025 POM | C99: 3 | D99: 8 | E99: sg - g | F99: 2011 | G99: Lechler | H99: Injektor-Flachstrahldüse | I99: Verband - Feldbau Randbehandlung | J99: siehe ID 120 025
A100: 1754 | B100: IS 80 03 POM | C100: 3 | D100: 8 | E100: sg - g | F100: 2011 | G100: Lechler | H100: Injektor-Flachstrahldüse | I100: Verband - Feldbau Randbehandlung | J100: siehe ID 120 03
A101: 1755 | B101: IS 80 04 POM | C101: 3 | D101: 8 | E101: sg - g | F101: 2011 | G101: Lechler | H101: Injektor-Flachstrahldüse | I101: Verband - Feldbau Randbehandlung | J101: siehe ID 120 04
A102: 1756 | B102: AIUB 85 025 VS | C102: 2.5 | D102: 8 | E102: sg - g | F102: 2011 | G102: TeeJet | H102: Injektor-Flachstrahldüse | I102: Verband - Feldbau Randbehandlung | J102: siehe AI/AIC 110 03
A103: 1757 | B103: AIUB 85 03 VS | C103: 2.5 | D103: 8 | E103: sg - g | F103: 2011 | G103: TeeJet | H103: Injektor-Flachstrahldüse | I103: Verband - Feldbau Randbehandlung | J103: siehe AI/AIC 110 04
A104: 1758 | B104: AIUB 85 04 VS | C104: 2 | D104: 8 | E104: sg - g | F104: 2011 | G104: TeeJet | H104: Injektor-Flachstrahldüse | I104: Verband - Feldbau Randbehandlung | J104: siehe AI/AIC 110 05
A105: 1762 | B105: Minidrift MD 02 | C105: 2 | D105: 6 | E105: sg - g | F105: 2012 | G105: Hardi | H105: Injektor-Flachstrahldüse | I105: Verband - Feldbau Randbehandlung | J105: 50 cm
A106: 1767 | B106: TTI 110 02 VP | C106: 2 | D106: 7 | E106: sg | F106: 2012 | G106: TeeJet | H106: Injektor-Flachstrahldüse | I106: Verband - Feldbau | J106: 50 - 75 cm
A107: 1768 | B107: AIXR 110 03 | C107: 1.5 | D107: 6 | E107: sg - g | F107: 2013 | G107: TeeJet | H107: Injektor-Flachstrahldüse | I107: Verband - Feldbau | J107: 50 - 75 cm
A108: 1769 | B108: AIXR 110 04 | C108: 1.5 | D108: 6 | E108: sg - g | F108: 2013 | G108: TeeJet | H108: Injektor-Flachstrahldüse | I108: Verband - Feldbau | J108: 50 - 75 cm
A109: 1770 | B109: TTJ 60 - 110 03 VP | C109: 1.5 | D109: 6 | E109: sg - m | F109: 2012 | G109: TeeJet | H109: Doppelflachstrahldüse | I109: Verband - Feldbau | J109: 50 cm
A110: 1771 | B110: TTJ 60 - 110 04 VP | C110: 1 | D110: 6 | E110: sg - m | F110: 2012 | G110: TeeJet | H110: Doppelflachstrahldüse | I110: Verband - Feldbau | J110: 50 cm
A111: 1778 | B111: ULD 03 | C111: 2.5 | D111: 8 | E111: sg - m | F111: 2012 | G111: Hypro | H111: Flachstrahldüse | I111: Verband - Feldbau | J111: 50 cm
A112: 1779 | B112: ULD 04 | C112: 2.5 | D112: 8 | E112: sg - g | F112: 2012 | G112: Hypro | H112: Flachstrahldüse | I112: Verband - Feldbau | J112: 50 cm
A113: 1780 | B113: ULD 05 | C113: 2.5 | D113: 8 | E113: sg - g | F113: 2012 | G113: Hypro | H113: Flachstrahldüse | I113: Verband - Feldbau | J113: 50 cm
A114: 1781 | B114: Minidrift MD 025 | C114: 1.5 | D114: 6 | E114: sg - g | F114: 2012 | G114: Hardi | H114: Injektor-Flachstrahldüse | I114: Verband - Feldbau | J114: 50 cm
A115: 1782 | B115: Minidrift MD 03 | C115: 1 | D115: 6 | E115: sg - g | F115: 2012 | G115: Hardi | H115: Injektor-Flachstrahldüse | I115: Verband - Feldbau | J115: 50 cm
A116: 1783 | B116: Minidrift MD 04 | C116: 1 | D116: 6 | E116: sg - g | F116: 2012 | G116: Hardi | H116: Injektor-Flachstrahldüse | I116: Verband - Feldbau | J116: 50 cm
A117: 1784 | B117: Minidrift MD 05 | C117: 1 | D117: 6 | E117: sg - g | F117: 2012 | G117: Hardi | H117: Injektor-Flachstrahldüse | I117: Verband - Feldbau | J117: 50 cm
A118: 1786 | B118: IDK-S 80-025 POM | C118: 1.5 | D118: 6 | E118: sg - g | F118: 2012 | G118: Lechler | H118: Injektor-Flachstrahldüse | I118: Verband - Feldbau Randbehandlung | J118: siehe siehe IDK 120 025
A119: 1787 | B119: IDK-S 80-03 POM | C119: 1.5 | D119: 6 | E119: sg - g | F119: 2012 | G119: Lechler | H119: Injektor-Flachstrahldüse | I119: Verband - Feldbau Randbehandlung | J119: siehe siehe IDK 120 03
A120: 1788 | B120: IDK-S 80-04 POM | C120: 1 | D120: 6 | E120: sg - g | F120: 2012 | G120: Lechler | H120: Injektor-Flachstrahldüse | I120: Verband - Feldbau Randbehandlung | J120: siehe siehe IDK 120 04
A121: 1789 | B121: IDK-S 80-05 POM | C121: 1 | D121: 6 | E121: sg - g | F121: 2012 | G121: Lechler | H121: Injektor-Flachstrahldüse | I121: Verband - Feldbau Randbehandlung | J121: siehe siehe IDK 120 05
A122: 1791 | B122: AIUB 85 02 VS | C122: 2 | D122: 8 | E122: sg - g | F122: 2012 | G122: TeeJet | H122: Injektor-Flachstrahldüse | I122: Verband - Feldbau Randbehandlung | J122: siehe AI/AIC 110 025
A123: 1795 | B123: AIXR 110 05 | C123: 1 | D123: 6 | E123: sg - g | F123: 2013 | G123: TeeJet | H123: Injektor-Flachstrahldüse | I123: Verband - Feldbau | J123: 50 - 75 cm
A124: 1799 | B124: IDK N 120 03 POM | C124: 1 | D124: 6 | E124: sg - g | F124: 2013 | G124: Lechler | H124: Injektor-Flachstrahldüse | I124: Verband - Feldbau
A125: 1800 | B125: IDK 120 03 C | C125: 2 | D125: 6 | E125: sg - g | F125: 2013 | G125: Lechler | H125: Injektor-Flachstrahldüse | I125: Verband - Feldbau
A126: 1801 | B126: IDK 120 04 C | C126: 1.5 | D126: 6 | E126: sg - g | F126: 2013 | G126: Lechler | H126: Injektor-Flachstrahldüse | I126: Verband - Feldbau
A127: 1802 | B127: IDK 120 05 C | C127: 1.5 | D127: 6 | E127: sg - g | F127: 2013 | G127: Lechler | H127: Injektor-Flachstrahldüse | I127: Verband - Feldbau
A128: 1813 | B128: Guardian Air 03 | C128: 1.5 | D128: 6 | E128: sg-g | F128: 2014 | G128: Hypro | H128: Injektor Flachstrahl | I128: Verband-Feldbau | J128: 50 cm
A129: 1817 | B129: Guardian Air 025 | C129: 1 | D129: 6 | E129: sg - g | F129: 2014 | G129: Hypro | H129: Injektor-Flachstrahldüse | I129: Verband-Feldbau | J129: 50 cm
A130: 1819 | B130: Hispeed 02 | C130: 2 | D130: 8 | E130: sg - g | F130: 2014 | G130: Agrotop | H130: Injektor-Doppelflachstrahldüe | I130: Verband - Feldbau | J130: 50 cm
A131: 1820 | B131: Hispeed 03 | C131: 2.5 | D131: 8 | E131: sg - g | F131: 2014 | G131: Agrotop | H131: Injektor-Doppelflachstrahl | I131: Verband - Feldbau | J131: 50 cm
A132: 1821 | B132: Hispeed 04 | C132: 2 | D132: 8 | E132: sg - g | F132: 2014 | G132: Agrotop | H132: Injektor-Doppelflachstrahl | I132: Verband - Feldbau | J132: 50 cm
A133: 1822 | B133: HiSpeed 05 | C133: 2 | D133: 8 | E133: sg - g | F133: 2014 | G133: Agrotop | H133: Injektor-Doppelflachstrahldüse | I133: Verband-Feldbau | J133: 50 cm
A134: 1832 | B134: Guardian GRD 120 08 | C134: 1.5 | D134: 8 | E134: sg - m | F134: 2014 | G134: Hypro | H134: Flachstrahldüse | I134: Verband - Feldbau | J134: 50 cm
A135: 1836 | B135: IDKT 05 | C135: 1 | D135: 6 | E135: sg - g | F135: 2014 | G135: Lechler | H135: Injektor-Doppelflachstrahl | I135: Verband - Feldbau | J135: 50 cm
A136: 1837 | B136: IDKT 04 | C136: 1 | D136: 6 | E136: sg - g | F136: 2014 | G136: Lechler | H136: Injektor-Doppelflachstrahl | I136: Verband - Feldbau | J136: 50 cm
A137: 1848 | B137: AITTJ 60 - 110 04 VP | C137: 1.5 | D137: 8 | F137: 2015 | G137: TeeJet | H137: Injektor-Doppelflachstrahl | I137: Verband - Feldbau | J137: 50 cm
A138: 1852 | B138: VP 110 03 | C138: 2 | D138: 5 | F138: 2015 | G138: Hypro | H138: Flachstrahldüse | I138: Verband - Feldbau | J138: 50 cm
A139: 1853 | B139: VP 110 04 | C139: 2 | D139: 5 | F139: 2015 | G139: Hypro | H139: Flachstrahldüse | I139: Verband - Feldbau | J139: 50 cm
A140: 1854 | B140: VP 110 05 | C140: 2 | D140: 5 | F140: 2015 | G140: Hypro | H140: Flachstrahldüse | I140: Verband - Feldbau | J140: 50 cm
A141: 1860 | B141: LD 04 F 110 | C141: 1 | D141: 5 | F141: 2015 | G141: Hypro | H141: Flachstrahldüse | I141: Verband - Feldbau | J141: 50 cm
A142: 1861 | B142: LD 05 F 110 | C142: 1 | D142: 5 | F142: 2015 | G142: Hypro | H142: Flachstrahldüse | I142: Verband - Feldbau | J142: 50 cm
A143: 1862 | B143: LD 06 F 110 | C143: 1.5 | D143: 5 | F143: 2015 | G143: Hypro | H143: Flachstrahldüse | I143: Verband - Feldbau | J143: 50 cm
A144: 1865 | B144: IDKT 03 C | C144: 1.5 | D144: 6 | E144: sg - g | F144: 2015 | G144: Lechler | H144: Injektor-Doppelflachstrahl | I144: Verband - Feldbau | J144: 50 cm
A145: 1867 | B145: Twin Fluid TK 10/35 | C145: 2 | D145: 6 | F145: 2014 | G145: John Deere | H145: Zweistoff Flachstrahl | I145: Verband - Feldbau | J145: 50 - 75 cm | L145: 1736
A146: 1868 | B146: Twin Fluid TK 10/42 | C146: 2 | D146: 6 | F146: 2014 | G146: John Deere | H146: Zweistoff Flachstrahl | I146: Verband - Feldbau | J146: 75 cm | L146: 1743
A147: 1872 | B147: Guardian Air Twin 025 | C147: 2 | D147: 6 | G147: Hypro | H147: Injektor-Doppelflachstrahl
A148: 1882 | B148: IDKT 120 03 POM | C148: 1 | D148: 6 | E148: sg | F148: 2016 | G148: Lechler | H148: Injektor-Doppelflachstrahl | I148: Verband-Feldbau | J148: 50
A149: 1883 | B149: IDKT 120 04 POM | C149: 1 | D149: 6 | E149: sg | F149: 2016 | G149: Lechler | H149: Injektor-Doppelflachstrahl | I149: Verband-Feldbau | J149: 50
A150: 1884 | B150: IDKT 120 05 POM | C150: 1 | D150: 6 | E150: sg | F150: 2016 | G150: Lechler | H150: Injektor-Doppelflachstrahl | I150: Verband-Feldbau | J150: 50
A151: 1891 | B151: AirMix OC 80 025 | C151: 1.5 | D151: 8 | E151: sg - g | F151: 2016 | G151: Agrotop | H151: Injektor-Flachstrahldüse | I151: Verband - Feldbau Randbehandlung | J151: 50
A152: 1892 | B152: AirMix OC 80 03 | C152: 1 | D152: 8 | E152: sg - g | F152: 2016 | G152: Agrotop | H152: Injektor-Flachstrahldüse | I152: Verband - Feldbau Randbehandlung | J152: 50
A153: 1893 | B153: AirMix OC 80 04 | C153: 1 | D153: 6 | E153: sg - g | F153: 2016 | G153: Agrotop | H153: Injektor-Flachstrahldüse | I153: Verband - Feldbau Randbehandlung | J153: 50
A154: 1903 | B154: CVI Twin 110 03 | C154: 1.5 | D154: 6 | F154: 2017
A155: 1905 | B155: CVI Twin 110 04 | C155: 1.5 | D155: 6 | F155: 2017
A156: 1907 | B156: Minidrift Duo 110 03 | C156: 1 | D156: 6 | E156: sg | F156: 2016 | G156: Lechler | H156: Injektor-Doppelflachstrahl | I156: Verband-Feldbau | J156: 50 | L156: 1882
A157: 1908 | B157: Minidrift Duo 110 04 | C157: 1 | D157: 6 | E157: sg | F157: 2016 | G157: Lechler | H157: Injektor-Doppelflachstrahl | I157: Verband-Feldbau | J157: 50 | L157: 1883
A158: 1909 | B158: Minidrift Duo 110 05 | C158: 1 | D158: 6 | E158: sg | F158: 2016 | G158: Lechler | H158: Injektor-Doppelflachstrahl | I158: Verband-Feldbau | J158: 50 | L158: 1884
A159: 1911 | B159: IDKT 120 02 POM | C159: 1.5 | D159: 6 | F159: 2017 | G159: Lechler | H159: Injektor-Doppelflachstrahl | I159: Verband-Feldbau | J159: 50
A160: 1912 | B160: IDKT 120 025 POM | C160: 1.5 | D160: 6 | F160: 2017 | G160: Lechler | H160: Injektor-Doppelflachstrahl | I160: Verband-Feldbau | J160: 50
A161: 1904 | B161: CVI Twin 110 025 | C161: 1.5 | D161: 6 | F161: 2018 | G161: Agrotop | H161: Injektor-Doppelflachstrahl | I161: Verband-Feldbau | J161: 50
A162: 1935 | B162: IDKT 120 06 POM | C162: 1 | D162: 6 | F162: 2018 | G162: Lechler | H162: Injektor-Doppelflachstrahl | I162: Verband-Feldbau | J162: 50
